OrganisationNameLabel,OrganisationURI,EffectiveDate,Directorate/ServiceWhereExpenditureIncurred,ServiceCategoryLabel,ServiceCategoryURI,Supplier,SupplierRegisteredCompany Number,PaymentDate,TransactionNumber,NetAmount,IrrecoverableVAT,PurposeOfSpend,PurposeOfSpend,Procurement (Me,ProcurementClassification:ProclassLabel,ProcrementClassification:ProClassCode
South Lakeland District Council,http://opendatacommunities.org/id/district-council/south-lakeland,31/05/2015,Business Support Community Services,Internal Trading Accounts,,EK MOTOR FACTORS LTD,838524,11/05/2015,47993,14.01,0,Brake pipe,Brake pipe,Transport-Repair & Maintenance,Vehicle Management,380000
South Lakeland District Council,http://opendatacommunities.org/id/district-council/south-lakeland,31/05/2015,Business Support Community Services,Internal Trading Accounts,,RIBBLESDALE AUTO ELECTRICS 1992 LTD,2732686,06/05/2015,48503,172.8,0,Batteries,Batteries,Transport-Repair & Maintenance,Vehicle Management,380000
South Lakeland District Council,http://opendatacommunities.org/id/district-council/south-lakeland,31/05/2015,Social Enterprise Admin,Highways & Transport Services,http://opendatacommunities.org/def/concept/finance/sercop/objective/107,BEMROSE BOOTH PARAGON LTD,4891375,11/05/2015,48645,1128.75,0,"187,500 Aura self-adhesive pay and","187,500 Aura self-adhesive pay and",Printing,Stationery,340000
South Lakeland District Council,http://opendatacommunities.org/id/district-council/south-lakeland,31/05/2015,Business Support Community Services,Cultural Environmental Regulatory & Planning Services,http://opendatacommunities.org/def/concept/finance/sercop/objective/104,Borderloos,3350965,06/05/2015,48662,1537,0,Re: Appleby Horse Fair,Re: Appleby Horse Fair,Hired Services,Facilities & Management Services,190000
South Lakeland District Council,http://opendatacommunities.org/id/district-council/south-lakeland,31/05/2015,Revenues and Benefits,Central Services,http://opendatacommunities.org/def/concept/finance/sercop/objective/102,MERITEC LTD,3224622,06/05/2015,48733,139.5,0,RAB Processing Contract and Agency,RAB Processing Contract and Agency,Contract & Agency staff,Consultancy,150000
South Lakeland District Council,http://opendatacommunities.org/id/district-council/south-lakeland,31/05/2015,Development Implementation,Cultural Environmental Regulatory & Planning Services,http://opendatacommunities.org/def/concept/finance/sercop/objective/104,Echo Events & Association Management,,18/05/2015,48784,2430.35,0,Project Management for Invest in South,Project Management for Invest in South,Economic Development Fund,Environmental Services,180000
South Lakeland District Council,http://opendatacommunities.org/id/district-council/south-lakeland,31/05/2015,Development Implementation,Cultural Environmental Regulatory & Planning Services,http://opendatacommunities.org/def/concept/finance/sercop/objective/104,Echo Events & Association Management,,18/05/2015,48785,-150,0,Project Management for Invest in South,Project Management for Invest in South,Economic Development Fund,Environmental Services,180000
South Lakeland District Council,http://opendatacommunities.org/id/district-council/south-lakeland,31/05/2015,Social Enterprise Admin,Central Services,http://opendatacommunities.org/def/concept/finance/sercop/objective/102,Masterstaff Limited,2777593,11/05/2015,48823,72,0,FAO Adam:  cleaner for 4 weeks starting,FAO Adam:  cleaner for 4 weeks starting,Contract & Agency staff,Consultancy,150000
South Lakeland District Council,http://opendatacommunities.org/id/district-council/south-lakeland,31/05/2015,Revenues and Benefits,Central Services,http://opendatacommunities.org/def/concept/finance/sercop/objective/102,BADENOCH & CLARK,1356186,06/05/2015,48824,440.06,0,Revs and Bens,Denise Calvert,Contract & Agency staff,Consultancy,150000
South Lakeland District Council,http://opendatacommunities.org/id/district-council/south-lakeland,31/05/2015,Business Support Community Services,Transport Planning Policy,http://opendatacommunities.org/def/concept/finance/sercop/objective/107,ARCO LIMITED,133804,06/05/2015,48963,54.34,0,PPE 2015/16,PPE 2015/16,Cleaning Supplies & Services,Cleaning & Janitorial,130000
South Lakeland District Council,http://opendatacommunities.org/id/district-council/south-lakeland,31/05/2015,Business Support Community Services,Internal Trading Accounts,,ARCO LIMITED,133804,06/05/2015,48963,826.13,0,PPE 2015/16,PPE 2015/16,Protective Clothing & Uniforms,Clothing,140000
South Lakeland District Council,http://opendatacommunities.org/id/district-council/south-lakeland,31/05/2015,Business Support Community Services,Internal Trading Accounts,,ARCO LIMITED,133804,06/05/2015,48963,0,0,PPE 2015/16,PPE 2015/16,Protective Clothing & Uniforms,Clothing,140000
South Lakeland District Council,http://opendatacommunities.org/id/district-council/south-lakeland,31/05/2015,Legal Services,Central Services,http://opendatacommunities.org/def/concept/finance/sercop/objective/102,LEXISNEXIS UK,,13/05/2015,48998,9180,0,Lexisnexis on line Contract for 2015,Lexisnexis on line Contract for 2015,Publications,Stationery,340000
South Lakeland District Council,http://opendatacommunities.org/id/district-council/south-lakeland,31/05/2015,Development Management,Cultural Environmental Regulatory & Planning Services,http://opendatacommunities.org/def/concept/finance/sercop/objective/104,SALFORD CITY COUNCIL,,20/05/2015,49049,110.81,0,Checking work under the Building,Checking work under the Building,Consulting Engineers,Facilities & Management Services,190000
South Lakeland District Council,http://opendatacommunities.org/id/district-council/south-lakeland,31/05/2015,Business Support Community Services,Internal Trading Accounts,,BRIAN ARMISTEAD LTD T/A SINKFALL RECYCLI,4133280,06/05/2015,49081,180,0,Green waste tipping - 2015/16,Green waste tipping - 2015/16,Tipping & Disposal Charges,Environmental Services,180000
South Lakeland District Council,http://opendatacommunities.org/id/district-council/south-lakeland,31/05/2015,Business Support Community Services,Internal Trading Accounts,,BRIAN ARMISTEAD LTD T/A SINKFALL RECYCLI,4133280,06/05/2015,49082,1468,0,Green waste tipping - 2015/16,Green waste tipping - 2015/16,Tipping & Disposal Charges,Environmental Services,180000
South Lakeland District Council,http://opendatacommunities.org/id/district-council/south-lakeland,31/05/2015,Development Implementation,Culture and Related Serv,http://opendatacommunities.org/def/concept/finance/sercop/objective/104,Blackett-Ord Conservation Engineering,,06/05/2015,49083,1000,0,Tender & Management Works for Castle,Tender & Management Works for Castle,Contract payments,Financial Services,200000
South Lakeland District Council,http://opendatacommunities.org/id/district-council/south-lakeland,31/05/2015,Business Support Community Services,Internal Trading Accounts,,HAKO MACHINES LIMITED,1414225,06/05/2015,49084,30.62,0,Adaptors,Adaptors,Transport-Uninsured Damage,Vehicle Management,380000
South Lakeland District Council,http://opendatacommunities.org/id/district-council/south-lakeland,31/05/2015,Social Enterprise Admin,Central Services,http://opendatacommunities.org/def/concept/finance/sercop/objective/102,Masterstaff Limited,2777593,11/05/2015,49088,72,0,cleaner for 4 weeks starting,FAO Adam:  cleaner for 4 weeks starting,Contract & Agency staff,Consultancy,150000
South Lakeland District Council,http://opendatacommunities.org/id/district-council/south-lakeland,31/05/2015,Social Enterprise Admin,Central Services,http://opendatacommunities.org/def/concept/finance/sercop/objective/102,Masterstaff Limited,2777593,11/05/2015,49089,76,0,cleaner for 4 weeks starting,FAO Adam:  cleaner for 4 weeks starting,Contract & Agency staff,Consultancy,150000
South Lakeland District Council,http://opendatacommunities.org/id/district-council/south-lakeland,31/05/2015,Business Support Community Services,Housing Services,http://opendatacommunities.org/def/concept/finance/sercop/objective/108,ADECCO UK LIMITED,593232,06/05/2015,49092,118.4,0,Cleaner for Town View Fields Hostel,Cleaner for Town View Fields Hostel,Contract & Agency staff,Consultancy,150000
South Lakeland District Council,http://opendatacommunities.org/id/district-council/south-lakeland,31/05/2015,Development Implementation,Central Services,http://opendatacommunities.org/def/concept/finance/sercop/objective/102,THE TECHNOLOGY FORGE,6834254,06/05/2015,49093,9044,0,Annual Maintenance & Renewal 01/06/2015,Annual Maintenance & Renewal 01/06/2015,Software Maintenance,Information Communication Technology,270000
South Lakeland District Council,http://opendatacommunities.org/id/district-council/south-lakeland,31/05/2015,Social Enterprise Admin,Central Services,http://opendatacommunities.org/def/concept/finance/sercop/objective/102,CUMBRIA COUNTY COUNCIL,,11/05/2015,49097,4647.2,0,LAND CHARGE SEARCH CHARGES,LAND CHARGE SEARCH CHARGES,Other Local Authorities,Financial Services,200000
South Lakeland District Council,http://opendatacommunities.org/id/district-council/south-lakeland,31/05/2015,Human Resources,Housing Services,http://opendatacommunities.org/def/concept/finance/sercop/objective/108,OCEAN MEDIA GROUP LTD,1680420,11/05/2015,49103,695,0,Advert for Housing Strategy Officer,Advert for Housing Strategy Officer,Other Consultants,Consultancy,150000
South Lakeland District Council,http://opendatacommunities.org/id/district-council/south-lakeland,31/05/2015,Business Support Community Services,Internal Trading Accounts,,EK MOTOR FACTORS LTD,838524,11/05/2015,49122,5.99,0,Ball joint,Ball joint,Transport-Repair & Maintenance,Vehicle Management,380000
South Lakeland District Council,http://opendatacommunities.org/id/district-council/south-lakeland,31/05/2015,Business Support Community Services,Internal Trading Accounts,,K S INTERNATIONAL LTD,2703321,06/05/2015,49128,90,0,Lights,Lights,Transport-Repair & Maintenance,Vehicle Management,380000
South Lakeland District Council,http://opendatacommunities.org/id/district-council/south-lakeland,31/05/2015,Business Support Community Services,Internal Trading Accounts,,Harry Park Tyres Ltd,8131208,11/05/2015,49130,12.5,0,Puncture repair,Puncture repair,Vehicle - Tyres,Vehicle Management,380000
South Lakeland District Council,http://opendatacommunities.org/id/district-council/south-lakeland,31/05/2015,Business Support Community Services,Internal Trading Accounts,,K S INTERNATIONAL LTD,2703321,06/05/2015,49131,30,0,Lights,Lights,Transport-Repair & Maintenance,Vehicle Management,380000
South Lakeland District Council,http://opendatacommunities.org/id/district-council/south-lakeland,31/05/2015,Business Support Community Services,Internal Trading Accounts,,Harry Park Tyres Ltd,8131208,11/05/2015,49135,217.5,0,Puncture repair,Puncture repair,Vehicle - Tyres,Vehicle Management,380000
South Lakeland District Council,http://opendatacommunities.org/id/district-council/south-lakeland,31/05/2015,Business Support Community Services,Internal Trading Accounts,,Harry Park Tyres Ltd,8131208,11/05/2015,49136,25,0,Puncture repair,Puncture repair,Vehicle - Tyres,Vehicle Management,380000
South Lakeland District Council,http://opendatacommunities.org/id/district-council/south-lakeland,31/05/2015,Business Support Community Services,Internal Trading Accounts,,K S INTERNATIONAL LTD,2703321,06/05/2015,49143,45,0,Lights,Lights,Transport-Repair & Maintenance,Vehicle Management,380000
South Lakeland District Council,http://opendatacommunities.org/id/district-council/south-lakeland,31/05/2015,Business Support Community Services,Internal Trading Accounts,,CUMBRIA WASTE RECYCLING LTD,3162439,13/05/2015,49145,210,0,Skip emptying at Ecclerigg & Ulverston,Skip emptying at Ecclerigg & Ulverston,Tipping & Disposal Charges,Environmental Services,180000
South Lakeland District Council,http://opendatacommunities.org/id/district-council/south-lakeland,31/05/2015,Business Support Community Services,Internal Trading Accounts,,Masterstaff Limited,2777593,06/05/2015,49147,1171.8,0,Agency staff - April 2015,Agency staff - April 2015,Contract & Agency staff,Consultancy,150000
South Lakeland District Council,http://opendatacommunities.org/id/district-council/south-lakeland,31/05/2015,Business Support Community Services,Internal Trading Accounts,,Masterstaff Limited,2777593,06/05/2015,49148,162,0,Agency staff - April 2015,Agency staff - April 2015,Contract & Agency staff,Consultancy,150000
South Lakeland District Council,http://opendatacommunities.org/id/district-council/south-lakeland,31/05/2015,ICT Group,Central Services,http://opendatacommunities.org/def/concept/finance/sercop/objective/102,ITPS Professional Services Ltd (DD),,01/05/2015,49169,53.6,0,WLR3 Business Line Rental and Zen Lite,WLR3 Business Line Rental and Zen Lite,Telephones-Rentals,Information Communication Technology,270000
South Lakeland District Council,http://opendatacommunities.org/id/district-council/south-lakeland,31/05/2015,ICT Group,Central Services,http://opendatacommunities.org/def/concept/finance/sercop/objective/102,NORTHGATE VEHICLE HIRE LTD,1434157,27/05/2015,49170,56.22,0,"Car hire, Ford Focus or similar, for","Car hire, Ford Focus or similar, for",Car Allowances,Street & Traffic Management,350000
South Lakeland District Council,http://opendatacommunities.org/id/district-council/south-lakeland,31/05/2015,ICT Group,Highways & Transport Services,http://opendatacommunities.org/def/concept/finance/sercop/objective/107,Insight Direct (Uk) Ltd,2579852,06/05/2015,49174,205.8,0,Insight #: 0001399072 Iiyama ProLite,Insight #: 0001399072 Iiyama ProLite,Equipment Furniture Materials,Furniture & Soft Furnishings,210000
South Lakeland District Council,http://opendatacommunities.org/id/district-council/south-lakeland,31/05/2015,Policy & Partnerships,Central Services,http://opendatacommunities.org/def/concept/finance/sercop/objective/102,Cumbria Action for Sustainability,6492907,27/05/2015,49182,16000,0,Pilot Project for community energy,Pilot Project for community energy,Other Consultants,Consultancy,150000
South Lakeland District Council,http://opendatacommunities.org/id/district-council/south-lakeland,31/05/2015,Democratic Services,Cultural Environmental Regulatory & Planning Services,http://opendatacommunities.org/def/concept/finance/sercop/objective/104,MILNTHORPE PARISH COUNCIL,,06/05/2015,49193,10000,0,Contribution to community toilets,Contribution to community toilets,Other Local Authorities,Financial Services,200000
South Lakeland District Council,http://opendatacommunities.org/id/district-council/south-lakeland,31/05/2015,Social Enterprise Admin,Central Services,http://opendatacommunities.org/def/concept/finance/sercop/objective/102,Masterstaff Limited,2777593,13/05/2015,49195,95,0,cleaner for 4 weeks starting,FAO Adam:  cleaner for 4 weeks starting,Contract & Agency staff,Consultancy,150000
South Lakeland District Council,http://opendatacommunities.org/id/district-council/south-lakeland,31/05/2015,Business Support Community Services,Central Services,http://opendatacommunities.org/def/concept/finance/sercop/objective/102,Romaquip Ltd,,06/05/2015,49196,124840,0,Per specification V14/03,Per specification V14/03,Purchase of Vehicles,Vehicle Management,380000
South Lakeland District Council,http://opendatacommunities.org/id/district-council/south-lakeland,31/05/2015,Kendal Town Hall,Cultural Environmental Regulatory & Planning Services,http://opendatacommunities.org/def/concept/finance/sercop/objective/104,THE LAUNDRY SHOP LTD,5421366,06/05/2015,49197,20.83,0,Laundry service charges for cleaning the,Laundry service charges for cleaning the,Cleaning Supplies & Services,Cleaning & Janitorial,130000
South Lakeland District Council,http://opendatacommunities.org/id/district-council/south-lakeland,31/05/2015,Kendal Town Hall,Central Services,http://opendatacommunities.org/def/concept/finance/sercop/objective/102,BERENDSEN UK LTD,228604,06/05/2015,49198,81.08,0,Rental and weekly replacement of the 2,Rental and weekly replacement of the 2,Cleaning Supplies & Services,Cleaning & Janitorial,130000
South Lakeland District Council,http://opendatacommunities.org/id/district-council/south-lakeland,31/05/2015,Kendal Town Hall,Cultural Environmental Regulatory & Planning Services,http://opendatacommunities.org/def/concept/finance/sercop/objective/104,BERENDSEN UK LTD,228604,06/05/2015,49198,31,0,Rental and weekly replacement of the 2,Rental and weekly replacement of the 2,Cleaning Supplies & Services,Cleaning & Janitorial,130000
South Lakeland District Council,http://opendatacommunities.org/id/district-council/south-lakeland,31/05/2015,Business Support Community Services,Internal Trading Accounts,,K S INTERNATIONAL LTD,2703321,06/05/2015,49199,260,0,Lights,Lights,Transport-Repair & Maintenance,Vehicle Management,380000
South Lakeland District Council,http://opendatacommunities.org/id/district-council/south-lakeland,31/05/2015,Business Support Community Services,Internal Trading Accounts,,FST CONSUMABLES LTD,1342012,06/05/2015,49200,58.13,0,Consumables 01/04/15 - 31/03/16,Consumables 01/04/15 - 31/03/16,Job Consumables,Cleaning & Janitorial,130000
South Lakeland District Council,http://opendatacommunities.org/id/district-council/south-lakeland,31/05/2015,Business Support Community Services,Internal Trading Accounts,,TAYLOR ENGINEERING & FABRICATIONS LTD,4989359,06/05/2015,49201,37.85,0,Bobbins,Bobbins,Transport-Repair & Maintenance,Vehicle Management,380000
South Lakeland District Council,http://opendatacommunities.org/id/district-council/south-lakeland,31/05/2015,Business Support Community Services,Internal Trading Accounts,,SOLWAY DAF,1393710,06/05/2015,49202,316.97,0,Collar,Collar,Transport-Repair & Maintenance,Vehicle Management,380000
South Lakeland District Council,http://opendatacommunities.org/id/district-council/south-lakeland,31/05/2015,Coronation Hall,External Trading Accounts,,Morson International,,20/05/2015,49204,119.28,0,Ulverston Market Hall cleaner to y/e 31,Ulverston Market Hall cleaner to y/e 31,Contract & Agency staff,Consultancy,150000
South Lakeland District Council,http://opendatacommunities.org/id/district-council/south-lakeland,31/05/2015,Human Resources,Central Services,http://opendatacommunities.org/def/concept/finance/sercop/objective/102,MIDLAND SOFTWARE LTD,1852206,06/05/2015,49205,329,0,Business Objects Training,Business Objects Training Laura Thornton,Training Costs,Education,170000
South Lakeland District Council,http://opendatacommunities.org/id/district-council/south-lakeland,31/05/2015,Business Support Community Services,Housing Services,http://opendatacommunities.org/def/concept/finance/sercop/objective/108,ADECCO UK LIMITED,593232,11/05/2015,49206,168.72,0,Cleaner for Town View Fields Hostel,Cleaner for Town View Fields Hostel,Contract & Agency staff,Consultancy,150000
South Lakeland District Council,http://opendatacommunities.org/id/district-council/south-lakeland,31/05/2015,Democratic Services,Central Services,http://opendatacommunities.org/def/concept/finance/sercop/objective/102,SOUNDSMITH LIMITED,5366630,06/05/2015,49207,1365,0,Estimated cost of sound system hire for,Estimated cost of sound system hire for,Equipment Furniture Materials,Furniture & Soft Furnishings,210000
South Lakeland District Council,http://opendatacommunities.org/id/district-council/south-lakeland,31/05/2015,Lake Wardens,Cultural Environmental Regulatory & Planning Services,http://opendatacommunities.org/def/concept/finance/sercop/objective/104,SHORROCK TRICHEM,4179799,06/05/2015,49208,31.89,0,6 x Boxes of Hostess Handtowels,6 x Boxes of Hostess Handtowels,Equipment Furniture Materials,Furniture & Soft Furnishings,210000
South Lakeland District Council,http://opendatacommunities.org/id/district-council/south-lakeland,31/05/2015,Lake Wardens,Cultural Environmental Regulatory & Planning Services,http://opendatacommunities.org/def/concept/finance/sercop/objective/104,SHORROCK TRICHEM,4179799,06/05/2015,49208,393.31,0,6 x Boxes of Hostess Handtowels,6 x Boxes of Hostess Handtowels,Cleaning Supplies & Services,Cleaning & Janitorial,130000
South Lakeland District Council,http://opendatacommunities.org/id/district-council/south-lakeland,31/05/2015,Lake Wardens,Cultural Environmental Regulatory & Planning Services,http://opendatacommunities.org/def/concept/finance/sercop/objective/104,CPC,,06/05/2015,49209,35.57,0,1 x Duratool 200kg Sack Truck,1 x Duratool 200kg Sack Truck,Equipment Furniture Materials,Furniture & Soft Furnishings,210000
South Lakeland District Council,http://opendatacommunities.org/id/district-council/south-lakeland,31/05/2015,Coronation Hall,Cultural Environmental Regulatory & Planning Services,http://opendatacommunities.org/def/concept/finance/sercop/objective/104,CASCADE WATER SYSTEMS LTD,3321518,06/05/2015,49210,47,0,Service visits and cups to y/e April,Service visits and cups to y/e April,Catering Supplies,Catering,110000
South Lakeland District Council,http://opendatacommunities.org/id/district-council/south-lakeland,31/05/2015,Development Implementation,Cultural Environmental Regulatory & Planning Services,http://opendatacommunities.org/def/concept/finance/sercop/objective/104,BREWERY ARTS CENTRE,,06/05/2015,49211,550,0,Participation in the Kendal Courtesy,Participation in the Kendal Courtesy,Contributions to Organisations,Financial Services,200000
South Lakeland District Council,http://opendatacommunities.org/id/district-council/south-lakeland,31/05/2015,Revenues and Benefits,Central Services,http://opendatacommunities.org/def/concept/finance/sercop/objective/102,MERITEC LTD,3224622,06/05/2015,49212,558,0,2015 -2016 RAB Processing Contract and,2015 -2016 RAB Processing Contract and,Contract & Agency staff,Consultancy,150000
South Lakeland District Council,http://opendatacommunities.org/id/district-council/south-lakeland,31/05/2015,Revenues and Benefits,Central Services,http://opendatacommunities.org/def/concept/finance/sercop/objective/102,HER MAJESTY'S COURTS & TRIBUNAL SERVICE,,06/05/2015,49213,84,0,2015-2016 Council Tax Service,2015-2016 Council Tax Service,Court Costs,Legal Services,280000
South Lakeland District Council,http://opendatacommunities.org/id/district-council/south-lakeland,31/05/2015,Revenues and Benefits,Central Services,http://opendatacommunities.org/def/concept/finance/sercop/objective/102,HER MAJESTY'S COURTS & TRIBUNAL SERVICE,,06/05/2015,49213,534,0,2015-2016 Council Tax Service,2015-2016 Council Tax Service,Court Costs,Legal Services,280000
South Lakeland District Council,http://opendatacommunities.org/id/district-council/south-lakeland,31/05/2015,Revenues and Benefits,SLDC as Agent,,ROYAL MAIL GROUP PLC,,06/05/2015,49214,2065.22,0,2015-2016 Postal Charges a/c 0198123013,2015-2016 Postal Charges a/c 0198123013,General,Financial Services,200000
South Lakeland District Council,http://opendatacommunities.org/id/district-council/south-lakeland,31/05/2015,Lake Wardens,Cultural Environmental Regulatory & Planning Services,http://opendatacommunities.org/def/concept/finance/sercop/objective/104,BISHOP SPORTS & LEISURE LTD,842463,06/05/2015,49215,112.75,0,1 x Bag of Golf Balls in Blue,1 x Bag of Golf Balls in Blue,Equipment Furniture Materials,Furniture & Soft Furnishings,210000
South Lakeland District Council,http://opendatacommunities.org/id/district-council/south-lakeland,31/05/2015,Lake Wardens,Cultural Environmental Regulatory & Planning Services,http://opendatacommunities.org/def/concept/finance/sercop/objective/104,RICKERBY LTD,4985069,06/05/2015,49216,63,0,1 x Dixon Bate Towing Hitch.,1 x Dixon Bate Towing Hitch.,Transport-Repair & Maintenance,Vehicle Management,380000
South Lakeland District Council,http://opendatacommunities.org/id/district-council/south-lakeland,31/05/2015,Social Enterprise Admin,Central Services,http://opendatacommunities.org/def/concept/finance/sercop/objective/102,Masterstaff Limited,2777593,06/05/2015,49217,4,0,cleaner for 4 weeks starting,FAO Adam:  cleaner for 4 weeks starting,Contract & Agency staff,Consultancy,150000
South Lakeland District Council,http://opendatacommunities.org/id/district-council/south-lakeland,31/05/2015,Legal Services,Cultural Environmental Regulatory & Planning Services,http://opendatacommunities.org/def/concept/finance/sercop/objective/104,HYGIENE CLEANING SUPPLIES LTD,4753934,11/05/2015,49218,291.45,0,JC24 24 x 1Ltr Acidic Toilet Cleaner,JC24 24 x 1Ltr Acidic Toilet Cleaner,Cleaning Supplies & Services,Cleaning & Janitorial,130000
South Lakeland District Council,http://opendatacommunities.org/id/district-council/south-lakeland,31/05/2015,Social Enterprise Admin,Central Services,http://opendatacommunities.org/def/concept/finance/sercop/objective/102,HYGIENE CLEANING SUPPLIES LTD,4753934,11/05/2015,49219,191.07,0,Bulk pack toilet tissue 2ply.,Bulk pack toilet tissue 2ply.,Cleaning Supplies & Services,Cleaning & Janitorial,130000
South Lakeland District Council,http://opendatacommunities.org/id/district-council/south-lakeland,31/05/2015,Social Enterprise Admin,Highways & Transport Services,http://opendatacommunities.org/def/concept/finance/sercop/objective/107,HYGIENE CLEANING SUPPLIES LTD,4753934,11/05/2015,49220,27.83,0,1 x box C Fold hand towels AE115,1 x box C Fold hand towels AE115,Cleaning Supplies & Services,Cleaning & Janitorial,130000
South Lakeland District Council,http://opendatacommunities.org/id/district-council/south-lakeland,31/05/2015,Development Implementation,Culture and Related Serv,http://opendatacommunities.org/def/concept/finance/sercop/objective/104,Maysand Ltd,2912226,11/05/2015,49221,29681.25,0,"Castle Dairy Works, Kendal","Castle Dairy Works, Kendal",Contract payments,Financial Services,200000
South Lakeland District Council,http://opendatacommunities.org/id/district-council/south-lakeland,31/05/2015,Business Support Community Services,Internal Trading Accounts,,ARCO LIMITED,133804,11/05/2015,49222,112.86,0,PPE 2015/16,PPE 2015/16,Protective Clothing & Uniforms,Clothing,140000
South Lakeland District Council,http://opendatacommunities.org/id/district-council/south-lakeland,31/05/2015,Business Support Community Services,Internal Trading Accounts,,ARCO LIMITED,133804,11/05/2015,49222,0,0,PPE 2015/16,PPE 2015/16,Protective Clothing & Uniforms,Clothing,140000
South Lakeland District Council,http://opendatacommunities.org/id/district-council/south-lakeland,31/05/2015,Social Enterprise Admin,Central Services,http://opendatacommunities.org/def/concept/finance/sercop/objective/102,YORKSHIRE DALES NATIONAL PARK AUTHY,,11/05/2015,49223,272,0,LAND CHARGE SEARCH ENQUIRIES YDNPA,LAND CHARGE SEARCH ENQUIRIES YDNPA,Other Local Authorities,Financial Services,200000
South Lakeland District Council,http://opendatacommunities.org/id/district-council/south-lakeland,31/05/2015,Legal Services,Central Services,http://opendatacommunities.org/def/concept/finance/sercop/objective/102,WEIGHTMANS LLP,OC326117,11/05/2015,49224,248.7,0,Fees re:  Bankruptcy Proceedings,Fees re:  Bankruptcy Proceedings,Legal & Counsels Fees,Legal Services,280000
South Lakeland District Council,http://opendatacommunities.org/id/district-council/south-lakeland,31/05/2015,ICT Group,Central Services,http://opendatacommunities.org/def/concept/finance/sercop/objective/102,OPTECH FIBRES LTD,5442069,11/05/2015,49225,1330.2,0,Installation and testing of new network,Installation and testing of new network,Contract payments,Financial Services,200000
South Lakeland District Council,http://opendatacommunities.org/id/district-council/south-lakeland,31/05/2015,Electoral Services,Central Services,http://opendatacommunities.org/def/concept/finance/sercop/objective/102,SHAW & SONS LTD,176653,11/05/2015,49226,103.6,0,20 local government conversion packs,20 local government conversion packs,Stationery/Office Supplies,Stationery,340000
South Lakeland District Council,http://opendatacommunities.org/id/district-council/south-lakeland,31/05/2015,Revenues and Benefits,Central Services,http://opendatacommunities.org/def/concept/finance/sercop/objective/102,THE WELFARE BENEFITS UNIT,,11/05/2015,49227,31.25,0,Advisers Guide to Benefits and Credits,Advisers Guide to Benefits and Credits,Training Costs,Education,170000
South Lakeland District Council,http://opendatacommunities.org/id/district-council/south-lakeland,31/05/2015,Social Enterprise Admin,Cultural Environmental Regulatory & Planning Services,http://opendatacommunities.org/def/concept/finance/sercop/objective/104,CAPITA SYMONDS LTD,3173410,11/05/2015,49229,2901,0,ARBORICULTURE SERVICES,ARBORICULTURE SERVICES,Arboricultural Consultants,Environmental Services,180000
South Lakeland District Council,http://opendatacommunities.org/id/district-council/south-lakeland,31/05/2015,Social Enterprise Admin,Cultural Environmental Regulatory & Planning Services,http://opendatacommunities.org/def/concept/finance/sercop/objective/104,INST OF CEMETERY & CREMATORIUM MANGMT,,11/05/2015,49230,90,0,Annual membership for 2015/16,Annual membership for 2015/16,Professional Fees,Financial Services,200000
South Lakeland District Council,http://opendatacommunities.org/id/district-council/south-lakeland,31/05/2015,Environment and Housing,Housing,http://opendatacommunities.org/def/concept/finance/sercop/objective/108,ENVIRONMENT & HOUSING GRANTS,,06/05/2015,49236,7416.75,0,First and Second Floors at 45,First and Second Floors at 45,Grants to Private Landlords,Financial Services,200000
South Lakeland District Council,http://opendatacommunities.org/id/district-council/south-lakeland,31/05/2015,Business Support Community Services,Cultural Environmental Regulatory & Planning Services,http://opendatacommunities.org/def/concept/finance/sercop/objective/104,MILNTHORPE KENNELS & CATTERY,8932302,06/05/2015,49237,2541.67,0,Stray Dog Service 2015-16,Stray Dog Service 2015-16,Kenneling Fees,Environmental Services,180000
South Lakeland District Council,http://opendatacommunities.org/id/district-council/south-lakeland,31/05/2015,Business Support Community Services,Housing Services,http://opendatacommunities.org/def/concept/finance/sercop/objective/108,Landlord,,06/05/2015,49238,400,0,Monthly rent ,Monthly rent for 7 Yard 89,Homelessness Prevention,Social Community Care Supplies & Services,410000
South Lakeland District Council,http://opendatacommunities.org/id/district-council/south-lakeland,31/05/2015,Business Support Community Services,Housing Services,http://opendatacommunities.org/def/concept/finance/sercop/objective/108,Landlord,,06/05/2015,49239,400,0,Monthly rent ,Monthly rent for 23C Kirkland Kendal,Homelessness Prevention,Social Community Care Supplies & Services,410000
South Lakeland District Council,http://opendatacommunities.org/id/district-council/south-lakeland,31/05/2015,Business Support Community Services,Housing Services,http://opendatacommunities.org/def/concept/finance/sercop/objective/108,Landlord,,06/05/2015,49240,500,0,Monthly rent ,Monthly rent payment for 19 Moore Field,Homelessness Prevention,Social Community Care Supplies & Services,410000
South Lakeland District Council,http://opendatacommunities.org/id/district-council/south-lakeland,31/05/2015,Business Support Community Services,Internal Trading Accounts,,DENNIS EAGLE LTD,3794455,06/05/2015,49241,37.7,0,Fittings,Fittings,Transport-Repair & Maintenance,Vehicle Management,380000
South Lakeland District Council,http://opendatacommunities.org/id/district-council/south-lakeland,31/05/2015,Business Support Community Services,Internal Trading Accounts,,DENNIS EAGLE LTD,3794455,06/05/2015,49242,68.72,0,Fittings,Fittings,Transport-Repair & Maintenance,Vehicle Management,380000
South Lakeland District Council,http://opendatacommunities.org/id/district-council/south-lakeland,31/05/2015,Business Support Community Services,Internal Trading Accounts,,EK MOTOR FACTORS LTD,838524,11/05/2015,49243,-28.52,0,Oil filters,Oil filters,Transport-Repair & Maintenance,Vehicle Management,380000
South Lakeland District Council,http://opendatacommunities.org/id/district-council/south-lakeland,31/05/2015,Business Support Community Services,Internal Trading Accounts,,Masterstaff Limited,2777593,06/05/2015,49244,12.98,0,Agency staff - April 2015,Agency staff - April 2015,Contract & Agency staff,Consultancy,150000
South Lakeland District Council,http://opendatacommunities.org/id/district-council/south-lakeland,31/05/2015,Business Support Community Services,Internal Trading Accounts,,Masterstaff Limited,2777593,06/05/2015,49245,821.03,0,Agency staff - April 2015,Agency staff - April 2015,Contract & Agency staff,Consultancy,150000
South Lakeland District Council,http://opendatacommunities.org/id/district-council/south-lakeland,31/05/2015,ICT Group,Central Services,http://opendatacommunities.org/def/concept/finance/sercop/objective/102,CABLE & WIRELESS UK (VODAFONE),,06/05/2015,49246,99,0,Managed Hosting Service Annual Rental,Managed Hosting Service Annual Rental,Computer-Phone Lines,Information Communication Technology,270000
South Lakeland District Council,http://opendatacommunities.org/id/district-council/south-lakeland,31/05/2015,Financial Services,Central Services,http://opendatacommunities.org/def/concept/finance/sercop/objective/102,Aspire Procurement Training Ltd,8202879,06/05/2015,49247,895,0,CIPS Advanced Certificate Level 3 for,CIPS Advanced Certificate Level 3 for,Training Costs,Education,170000
South Lakeland District Council,http://opendatacommunities.org/id/district-council/south-lakeland,31/05/2015,Human Resources,Non-Service Payments,,BUSY BEES BENEFITS LTD,6758298,06/05/2015,49248,24.36,0,BUSY BEES CHILD CARE VOUCHERS FOR 13/14,BUSY BEES CHILD CARE VOUCHERS FOR 13/14,General,Financial Services,200000
South Lakeland District Council,http://opendatacommunities.org/id/district-council/south-lakeland,31/05/2015,Policy & Partnerships,Cultural Environmental Regulatory & Planning Services,http://opendatacommunities.org/def/concept/finance/sercop/objective/104,GRANTS- MISCELLANEOUS,,06/05/2015,49249,160,0,Feature Youth Group,Feature Youth Group,Contributions to Organisations,Financial Services,200000
South Lakeland District Council,http://opendatacommunities.org/id/district-council/south-lakeland,31/05/2015,Social Enterprise Admin,Cultural Environmental Regulatory & Planning Services,http://opendatacommunities.org/def/concept/finance/sercop/objective/104,ALLSTAR BUSINESS SOLUTIONS LTD (NCR),2631112,01/05/2015,49252,77.48,0,parks fuel,parks fuel,Fuel,Utilities,370000
South Lakeland District Council,http://opendatacommunities.org/id/district-council/south-lakeland,31/05/2015,Social Enterprise Admin,Highways & Transport Services,http://opendatacommunities.org/def/concept/finance/sercop/objective/107,ALLSTAR BUSINESS SOLUTIONS LTD (NCR),2631112,01/05/2015,49253,262.47,0,Fuel for car parks' vehicles starting 1,Fuel for car parks' vehicles starting 1,Fuel,Utilities,370000
South Lakeland District Council,http://opendatacommunities.org/id/district-council/south-lakeland,31/05/2015,Social Enterprise Admin,Cultural Environmental Regulatory & Planning Services,http://opendatacommunities.org/def/concept/finance/sercop/objective/104,ALLSTAR BUSINESS SOLUTIONS LTD (NCR),2631112,01/05/2015,49253,84.98,0,Fuel for car parks' vehicles starting 1,Fuel for car parks' vehicles starting 1,Fuel,Utilities,370000
South Lakeland District Council,http://opendatacommunities.org/id/district-council/south-lakeland,31/05/2015,Business Support Community Services,Transport Planning Policy,http://opendatacommunities.org/def/concept/finance/sercop/objective/107,KENDAL SECURITY CENTRE LTD,3179893,27/05/2015,49263,96,0,Keys,Keys,Equipment Furniture Materials,Furniture & Soft Furnishings,210000
South Lakeland District Council,http://opendatacommunities.org/id/district-council/south-lakeland,31/05/2015,Social Enterprise Admin,Cultural Environmental Regulatory & Planning Services,http://opendatacommunities.org/def/concept/finance/sercop/objective/104,B & J METALS (SKIP HIRE) LTD,4634318,11/05/2015,49264,465,0,Grounds waste disposal - Sandylands Road,Grounds waste disposal - Sandylands Road,Tipping & Disposal Charges,Environmental Services,180000
South Lakeland District Council,http://opendatacommunities.org/id/district-council/south-lakeland,31/05/2015,Social Enterprise Admin,Cultural Environmental Regulatory & Planning Services,http://opendatacommunities.org/def/concept/finance/sercop/objective/104,B & J METALS (SKIP HIRE) LTD,4634318,11/05/2015,49264,2230,0,Grounds waste disposal - Sandylands Road,Grounds waste disposal - Sandylands Road,Tipping & Disposal Charges,Environmental Services,180000
South Lakeland District Council,http://opendatacommunities.org/id/district-council/south-lakeland,31/05/2015,Business Support Community Services,Internal Trading Accounts,,GARWOOD EUROPE LTD,4333504,13/05/2015,49265,335.21,0,Seal,Seal,Transport-Uninsured Damage,Vehicle Management,380000
South Lakeland District Council,http://opendatacommunities.org/id/district-council/south-lakeland,31/05/2015,ICT Group,Central Services,http://opendatacommunities.org/def/concept/finance/sercop/objective/102,IT PROFESSIONAL SERVICES (ITPS),,11/05/2015,49266,450,0,SAN SSL certificate for Edge Server,SAN SSL certificate for Edge Server,Purchase of IT Equipment,Information Communication Technology,270000
South Lakeland District Council,http://opendatacommunities.org/id/district-council/south-lakeland,31/05/2015,Printing Section,Central Services,http://opendatacommunities.org/def/concept/finance/sercop/objective/102,ROSEFOX PAPER LIMITED,1655083,11/05/2015,49267,390,0,Paper One A4 80gsm,Paper One A4 80gsm,Paper Supplies,Stationery,340000
South Lakeland District Council,http://opendatacommunities.org/id/district-council/south-lakeland,31/05/2015,Business Support Community Services,Transport Planning Policy,http://opendatacommunities.org/def/concept/finance/sercop/objective/107,ARCO LIMITED,133804,11/05/2015,49268,16,0,PPE 2015/16,PPE 2015/16,Cleaning Supplies & Services,Cleaning & Janitorial,130000
South Lakeland District Council,http://opendatacommunities.org/id/district-council/south-lakeland,31/05/2015,Business Support Community Services,Internal Trading Accounts,,ARCO LIMITED,133804,11/05/2015,49269,22.52,0,PPE 2015/16,PPE 2015/16,Protective Clothing & Uniforms,Clothing,140000
South Lakeland District Council,http://opendatacommunities.org/id/district-council/south-lakeland,31/05/2015,Business Support Community Services,Internal Trading Accounts,,ARCO LIMITED,133804,11/05/2015,49269,0,0,PPE 2015/16,PPE 2015/16,Protective Clothing & Uniforms,Clothing,140000
South Lakeland District Council,http://opendatacommunities.org/id/district-council/south-lakeland,31/05/2015,Business Support Community Services,Internal Trading Accounts,,ARCO LIMITED,133804,11/05/2015,49270,11.08,0,PPE 2015/16,PPE 2015/16,Protective Clothing & Uniforms,Clothing,140000
South Lakeland District Council,http://opendatacommunities.org/id/district-council/south-lakeland,31/05/2015,Business Support Community Services,Internal Trading Accounts,,ARCO LIMITED,133804,11/05/2015,49270,0,0,PPE 2015/16,PPE 2015/16,Protective Clothing & Uniforms,Clothing,140000
South Lakeland District Council,http://opendatacommunities.org/id/district-council/south-lakeland,31/05/2015,Business Support Community Services,Internal Trading Accounts,,ARCO LIMITED,133804,11/05/2015,49271,11.08,0,PPE 2015/16,PPE 2015/16,Protective Clothing & Uniforms,Clothing,140000
South Lakeland District Council,http://opendatacommunities.org/id/district-council/south-lakeland,31/05/2015,Business Support Community Services,Internal Trading Accounts,,ARCO LIMITED,133804,11/05/2015,49271,0,0,PPE 2015/16,PPE 2015/16,Protective Clothing & Uniforms,Clothing,140000
South Lakeland District Council,http://opendatacommunities.org/id/district-council/south-lakeland,31/05/2015,Legal Services,Internal Trading Accounts,,PENNINGTONS (KENDAL) LIMITED,434649,20/05/2015,49275,2500,0,Annual charge from April 2015 to March,Annual charge from April 2015 to March,Tipping & Disposal Charges,Environmental Services,180000
South Lakeland District Council,http://opendatacommunities.org/id/district-council/south-lakeland,31/05/2015,Legal Services,Cultural Environmental Regulatory & Planning Services,http://opendatacommunities.org/def/concept/finance/sercop/objective/104,BUNZL CLEANING & HYGIENE SUPPLIES,2902454,11/05/2015,49284,57.08,0,2 x 5 ltr Carefree Mop & Shine,2 x 5 ltr Carefree Mop & Shine,Cleaning Supplies & Services,Cleaning & Janitorial,130000
South Lakeland District Council,http://opendatacommunities.org/id/district-council/south-lakeland,31/05/2015,Coronation Hall,External Trading Accounts,,SHORROCK TRICHEM,4179799,11/05/2015,49285,147.54,0,"Toilet rolls - mini jumbo 2 ply, 12 pack","Toilet rolls - mini jumbo 2 ply, 12 pack",Cleaning Supplies & Services,Cleaning & Janitorial,130000
South Lakeland District Council,http://opendatacommunities.org/id/district-council/south-lakeland,31/05/2015,Coronation Hall,Cultural Environmental Regulatory & Planning Services,http://opendatacommunities.org/def/concept/finance/sercop/objective/104,SHORROCK TRICHEM,4179799,11/05/2015,49285,289.67,0,"Toilet rolls - mini jumbo 2 ply, 12 pack","Toilet rolls - mini jumbo 2 ply, 12 pack",Cleaning Supplies & Services,Cleaning & Janitorial,130000
South Lakeland District Council,http://opendatacommunities.org/id/district-council/south-lakeland,31/05/2015,Human Resources,Central Services,http://opendatacommunities.org/def/concept/finance/sercop/objective/102,GBS Corporate Training,6452080,11/05/2015,49286,995,0,Project Management - 11th June 2015,Project Management - 11th June 2015,Training Costs,Education,170000
South Lakeland District Council,http://opendatacommunities.org/id/district-council/south-lakeland,31/05/2015,Business Support Community Services,Cultural Environmental Regulatory & Planning Services,http://opendatacommunities.org/def/concept/finance/sercop/objective/104,Tobin Consulting Engineers (UK) Ltd,7588787,11/05/2015,49287,10831.59,0,Private Water Supply Risk Assessments,Private Water Supply Risk Assessments,Other Consultants,Consultancy,150000
South Lakeland District Council,http://opendatacommunities.org/id/district-council/south-lakeland,31/05/2015,Business Support Community Services,Internal Trading Accounts,,TECHNIJET LTD,2776601,11/05/2015,49288,56.84,0,Service & repair pressure washers,Service & repair pressure washers,Equipment Furniture Materials,Furniture & Soft Furnishings,210000
South Lakeland District Council,http://opendatacommunities.org/id/district-council/south-lakeland,31/05/2015,Business Support Community Services,Internal Trading Accounts,,S J Bargh,532272,11/05/2015,49289,121,0,MOT,MOT,MOT/Servicing Costs,Vehicle Management,380000
South Lakeland District Council,http://opendatacommunities.org/id/district-council/south-lakeland,31/05/2015,Business Support Community Services,Internal Trading Accounts,,SOLWAY DAF,1393710,11/05/2015,49290,1650.67,0,Collar,Collar,Transport-Repair & Maintenance,Vehicle Management,380000
South Lakeland District Council,http://opendatacommunities.org/id/district-council/south-lakeland,31/05/2015,Business Support Community Services,Internal Trading Accounts,,EK MOTOR FACTORS LTD,838524,11/05/2015,49291,16.08,0,Ball joint,Ball joint,Transport-Repair & Maintenance,Vehicle Management,380000
South Lakeland District Council,http://opendatacommunities.org/id/district-council/south-lakeland,31/05/2015,Business Support Community Services,Internal Trading Accounts,,K S INTERNATIONAL LTD,2703321,11/05/2015,49292,100,0,Lights,Lights,Transport-Repair & Maintenance,Vehicle Management,380000
South Lakeland District Council,http://opendatacommunities.org/id/district-council/south-lakeland,31/05/2015,Business Support Community Services,Cultural Environmental Regulatory & Planning Services,http://opendatacommunities.org/def/concept/finance/sercop/objective/104,OCS GROUP LTD T/A CANNON HYGIENE LTD,1298292,11/05/2015,49293,1710.12,0,Clinical waste collections - April 2015,Clinical waste collections - April 2015,Clinincal Waste Disposal Costs,Environmental Services,180000
South Lakeland District Council,http://opendatacommunities.org/id/district-council/south-lakeland,31/05/2015,Business Support Community Services,Internal Trading Accounts,,S J Bargh,532272,11/05/2015,49294,121,0,MOTs 2015/16,MOTs 2015/16,MOT/Servicing Costs,Vehicle Management,380000
South Lakeland District Council,http://opendatacommunities.org/id/district-council/south-lakeland,31/05/2015,Business Support Community Services,Cultural Environmental Regulatory & Planning Services,http://opendatacommunities.org/def/concept/finance/sercop/objective/104,CHARLESWORTH TREE CARE & FENCING LTD,5628824,11/05/2015,49295,44,0,Stakes,Stakes,Hired Services,Facilities & Management Services,190000
South Lakeland District Council,http://opendatacommunities.org/id/district-council/south-lakeland,31/05/2015,Business Support Community Services,Internal Trading Accounts,,Hydrodec (UK) Ltd T/A OSS Group,8652156,11/05/2015,49296,110,0,Exchange oil filter bin,Exchange oil filter bin,Job Consumables,Cleaning & Janitorial,130000
South Lakeland District Council,http://opendatacommunities.org/id/district-council/south-lakeland,31/05/2015,Social Enterprise Admin,Transport Planning Policy,http://opendatacommunities.org/def/concept/finance/sercop/objective/107,Exacom Systems Ltd,7356515,11/05/2015,49297,6000,0,CAPITAL EXPENDITURE CIL SOFTWARE,CAPITAL EXPENDITURE CIL SOFTWARE,Software Maintenance,Information Communication Technology,270000
South Lakeland District Council,http://opendatacommunities.org/id/district-council/south-lakeland,31/05/2015,Social Enterprise Admin,Central Services,http://opendatacommunities.org/def/concept/finance/sercop/objective/102,Exacom Systems Ltd,7356515,11/05/2015,49297,14250,0,CAPITAL EXPENDITURE CIL SOFTWARE,CAPITAL EXPENDITURE CIL SOFTWARE,Purchase Intang Fixed Assets,,
South Lakeland District Council,http://opendatacommunities.org/id/district-council/south-lakeland,31/05/2015,Business Support Community Services,Cultural Environmental Regulatory & Planning Services,http://opendatacommunities.org/def/concept/finance/sercop/objective/104,OCS GROUP LTD T/A CANNON HYGIENE LTD,1298292,11/05/2015,49298,11.53,0,Clinical waste collections - April 2015,Clinical waste collections - April 2015,Clinincal Waste Disposal Costs,Environmental Services,180000
South Lakeland District Council,http://opendatacommunities.org/id/district-council/south-lakeland,31/05/2015,Development Management,Cultural Environmental Regulatory & Planning Services,http://opendatacommunities.org/def/concept/finance/sercop/objective/104,CHRIS BOWKER LTD,1642561,20/05/2015,49299,30,0,Checking of electrical work under Part P,Checking of electrical work under Part P,Electrican Inspection,Facilities & Management Services,190000
South Lakeland District Council,http://opendatacommunities.org/id/district-council/south-lakeland,31/05/2015,Development Management,Cultural Environmental Regulatory & Planning Services,http://opendatacommunities.org/def/concept/finance/sercop/objective/104,CHRIS BOWKER LTD,1642561,20/05/2015,49300,75,0,Checking of electrical work under Part P,Checking of electrical work under Part P,Electrican Inspection,Facilities & Management Services,190000
South Lakeland District Council,http://opendatacommunities.org/id/district-council/south-lakeland,31/05/2015,Business Support Community Services,Transport Planning Policy,http://opendatacommunities.org/def/concept/finance/sercop/objective/107,ARCO LIMITED,133804,13/05/2015,49303,10.48,0,PPE 2015/16,PPE 2015/16,Cleaning Supplies & Services,Cleaning & Janitorial,130000
South Lakeland District Council,http://opendatacommunities.org/id/district-council/south-lakeland,31/05/2015,Business Support Community Services,Internal Trading Accounts,,ARCO LIMITED,133804,13/05/2015,49303,19.45,0,PPE 2015/16,PPE 2015/16,Job Consumables,Cleaning & Janitorial,130000
South Lakeland District Council,http://opendatacommunities.org/id/district-council/south-lakeland,31/05/2015,Business Support Community Services,Internal Trading Accounts,,ARCO LIMITED,133804,13/05/2015,49303,641.68,0,PPE 2015/16,PPE 2015/16,Protective Clothing & Uniforms,Clothing,140000
South Lakeland District Council,http://opendatacommunities.org/id/district-council/south-lakeland,31/05/2015,Business Support Community Services,Internal Trading Accounts,,ARCO LIMITED,133804,13/05/2015,49303,0,0,PPE 2015/16,PPE 2015/16,Job Consumables,Cleaning & Janitorial,130000
South Lakeland District Council,http://opendatacommunities.org/id/district-council/south-lakeland,31/05/2015,Business Support Community Services,Internal Trading Accounts,,ARCO LIMITED,133804,13/05/2015,49303,0,0,PPE 2015/16,PPE 2015/16,Protective Clothing & Uniforms,Clothing,140000
South Lakeland District Council,http://opendatacommunities.org/id/district-council/south-lakeland,31/05/2015,Social Enterprise Admin,Cultural Environmental Regulatory & Planning Services,http://opendatacommunities.org/def/concept/finance/sercop/objective/104,GATES TRAVEL SERVICE,,11/05/2015,49304,51,0,TRAVEL TO MANCHESTER 6TH MAY RETURN,TRAVEL TO MANCHESTER 6TH MAY RETURN,Training Costs,Education,170000
South Lakeland District Council,http://opendatacommunities.org/id/district-council/south-lakeland,31/05/2015,Social Enterprise Admin,Central Services,http://opendatacommunities.org/def/concept/finance/sercop/objective/102,GATES TRAVEL SERVICE,,11/05/2015,49305,29.4,0,TRAVEL TO DURHAM 15TH MAY,TRAVEL TO DURHAM 15TH MAY,Training Costs,Education,170000
South Lakeland District Council,http://opendatacommunities.org/id/district-council/south-lakeland,31/05/2015,Social Enterprise Admin,Cultural Environmental Regulatory & Planning Services,http://opendatacommunities.org/def/concept/finance/sercop/objective/104,Matchtech,2526418,11/05/2015,49306,1068.19,0,TO SUPPLY DEVELOPMENT CONTROL TEAM,TO SUPPLY DEVELOPMENT CONTROL TEAM,Contract & Agency staff,Consultancy,150000
South Lakeland District Council,http://opendatacommunities.org/id/district-council/south-lakeland,31/05/2015,Revenues and Benefits,Central Services,http://opendatacommunities.org/def/concept/finance/sercop/objective/102,VENN GROUP RECRUITMENT SOLUTIONS,,11/05/2015,49307,869.5,0,Apr-15,April 2015 Vicky McDonald,Contract & Agency staff,Consultancy,150000
South Lakeland District Council,http://opendatacommunities.org/id/district-council/south-lakeland,31/05/2015,Revenues and Benefits,Central Services,http://opendatacommunities.org/def/concept/finance/sercop/objective/102,BADENOCH & CLARK,1356186,11/05/2015,49308,520.07,0,Revs and Bens,Denise Calvert  -  April 2015,Contract & Agency staff,Consultancy,150000
South Lakeland District Council,http://opendatacommunities.org/id/district-council/south-lakeland,31/05/2015,Development Implementation,Cultural Environmental Regulatory & Planning Services,http://opendatacommunities.org/def/concept/finance/sercop/objective/104,Cairn Marketing Consultancy Ltd,,11/05/2015,49311,748,0,Phase 1 - Kendal Branding 1to1,Phase 1 - Kendal Branding 1to1,Other Consultants,Consultancy,150000
South Lakeland District Council,http://opendatacommunities.org/id/district-council/south-lakeland,31/05/2015,Business Support Community Services,Central Services,http://opendatacommunities.org/def/concept/finance/sercop/objective/102,WESTMORLAND COUNTY AGRICULTURAL SOCIETY,3146325,11/05/2015,49313,400.25,0,Room Hire and Refreshment - 27 April,Room Hire and Refreshment - 27 April,Training Costs,Education,170000
South Lakeland District Council,http://opendatacommunities.org/id/district-council/south-lakeland,31/05/2015,Coronation Hall,Cultural Environmental Regulatory & Planning Services,http://opendatacommunities.org/def/concept/finance/sercop/objective/104,ST JOHN AMBULANCE CUMBRIA,,11/05/2015,49314,52.8,0,FAO ,FAO Katie Roberts,Contract & Agency staff,Consultancy,150000
South Lakeland District Council,http://opendatacommunities.org/id/district-council/south-lakeland,31/05/2015,Development Implementation,Culture and Related Serv,http://opendatacommunities.org/def/concept/finance/sercop/objective/104,CUMBRIA COUNTY COUNCIL,,20/05/2015,49315,8911.5,0,Glebe Capital Project,Glebe Capital Project,Contract payments,Financial Services,200000
South Lakeland District Council,http://opendatacommunities.org/id/district-council/south-lakeland,31/05/2015,Coronation Hall,Cultural Environmental Regulatory & Planning Services,http://opendatacommunities.org/def/concept/finance/sercop/objective/104,ST JOHN AMBULANCE CUMBRIA,,11/05/2015,49317,52.8,0,FAO,FAO Katie Roberts,Contract & Agency staff,Consultancy,150000
South Lakeland District Council,http://opendatacommunities.org/id/district-council/south-lakeland,31/05/2015,Business Support Community Services,Cultural Environmental Regulatory & Planning Services,http://opendatacommunities.org/def/concept/finance/sercop/objective/104,THOMAS GRAHAM & SONS (IRON & STEEL) LTD,656879,11/05/2015,49318,6.4,0,Regulator,Regulator,Transport-Repair & Maintenance,Vehicle Management,380000
South Lakeland District Council,http://opendatacommunities.org/id/district-council/south-lakeland,31/05/2015,Business Support Community Services,Internal Trading Accounts,,THOMAS GRAHAM & SONS (IRON & STEEL) LTD,656879,11/05/2015,49318,4.33,0,Regulator,Regulator,Transport-Repair & Maintenance,Vehicle Management,380000
South Lakeland District Council,http://opendatacommunities.org/id/district-council/south-lakeland,31/05/2015,Business Support Community Services,Internal Trading Accounts,,THOMAS GRAHAM & SONS (IRON & STEEL) LTD,656879,11/05/2015,49318,97.5,0,Regulator,Regulator,Equipment Furniture Materials,Furniture & Soft Furnishings,210000
South Lakeland District Council,http://opendatacommunities.org/id/district-council/south-lakeland,31/05/2015,Human Resources,Central Services,http://opendatacommunities.org/def/concept/finance/sercop/objective/102,FORBES SOLICITORS,,11/05/2015,49319,212,0,General Legal Advise,General Legal Advise,Legal & Counsels Fees,Legal Services,280000
South Lakeland District Council,http://opendatacommunities.org/id/district-council/south-lakeland,31/05/2015,Business Support Community Services,Cultural Environmental Regulatory & Planning Services,http://opendatacommunities.org/def/concept/finance/sercop/objective/104,ALLSTAR BUSINESS SOLUTIONS LTD (NCR),2631112,01/05/2015,49323,41.41,0,Fuel - Private Water Van - 31 March 2015,Fuel - Private Water Van - 31 March 2015,Sampling & Inspection fees,Environmental Services,180000
South Lakeland District Council,http://opendatacommunities.org/id/district-council/south-lakeland,31/05/2015,Business Support Community Services,Internal Trading Accounts,,ALLSTAR BUSINESS SOLUTIONS LTD (NCR),2631112,01/05/2015,49326,3429.22,0,Fuel to 15/04/15,Fuel to 15/04/15,Fuel,Utilities,370000
South Lakeland District Council,http://opendatacommunities.org/id/district-council/south-lakeland,31/05/2015,Business Support Community Services,Internal Trading Accounts,,ALLSTAR BUSINESS SOLUTIONS LTD (NCR),2631112,01/05/2015,49326,109,0,Fuel to 15/04/15,Fuel to 15/04/15,Fuel,Utilities,370000
South Lakeland District Council,http://opendatacommunities.org/id/district-council/south-lakeland,31/05/2015,Business Support Community Services,Internal Trading Accounts,,ALLSTAR BUSINESS SOLUTIONS LTD (NCR),2631112,01/05/2015,49326,13153.77,0,Fuel to 15/04/15,Fuel to 15/04/15,Fuel,Utilities,370000
South Lakeland District Council,http://opendatacommunities.org/id/district-council/south-lakeland,31/05/2015,Environment and Housing,Housing,http://opendatacommunities.org/def/concept/finance/sercop/objective/108,DOLPHIN STAIRLIFTS CUMBRIA,,11/05/2015,49327,4250,0,"Sedbergh, LA10 5BN","2 Main Street, Sedbergh, LA10 5BN",Grant Payments,Financial Services,200000
South Lakeland District Council,http://opendatacommunities.org/id/district-council/south-lakeland,31/05/2015,Environment and Housing,Housing,http://opendatacommunities.org/def/concept/finance/sercop/objective/108,ENVIRONMENT & HOUSING GRANTS,,11/05/2015,49328,70.83,0,"Kendal, LA9 5AN","6 Kent Court, Kendal, LA9 5AN",Grant Payments,Financial Services,200000
South Lakeland District Council,http://opendatacommunities.org/id/district-council/south-lakeland,31/05/2015,Environment and Housing,Housing,http://opendatacommunities.org/def/concept/finance/sercop/objective/108,ENVIRONMENT & HOUSING GRANTS,,11/05/2015,49329,5500,0,"Slackhead, Beetham,","12 Hillcrest Drive, Slackhead, Beetham,",Grant Payments,Financial Services,200000
South Lakeland District Council,http://opendatacommunities.org/id/district-council/south-lakeland,31/05/2015,Environment and Housing,Housing,http://opendatacommunities.org/def/concept/finance/sercop/objective/108,ENVIRONMENT & HOUSING GRANTS,,11/05/2015,49330,1740,0,"Kendal, LA9 7SJ","285 Valley Drive, Kendal, LA9 7SJ",Grant Payments,Financial Services,200000
South Lakeland District Council,http://opendatacommunities.org/id/district-council/south-lakeland,31/05/2015,Social Enterprise Admin,Central Services,http://opendatacommunities.org/def/concept/finance/sercop/objective/102,HYGIENE CLEANING SUPPLIES LTD,4753934,11/05/2015,49331,482.26,0,Jangro Acidic Toilet Cleaner,Jangro Acidic Toilet Cleaner,Cleaning Supplies & Services,Cleaning & Janitorial,130000
South Lakeland District Council,http://opendatacommunities.org/id/district-council/south-lakeland,31/05/2015,Business Support Community Services,Internal Trading Accounts,,SOLWAY DAF,1393710,11/05/2015,49334,41.04,0,Collar,Collar,Transport-Repair & Maintenance,Vehicle Management,380000
South Lakeland District Council,http://opendatacommunities.org/id/district-council/south-lakeland,31/05/2015,Business Support Community Services,Internal Trading Accounts,,SOLWAY DAF,1393710,11/05/2015,49335,300.79,0,Collar,Collar,Transport-Repair & Maintenance,Vehicle Management,380000
South Lakeland District Council,http://opendatacommunities.org/id/district-council/south-lakeland,31/05/2015,Business Support Community Services,Internal Trading Accounts,,HAKO MACHINES LIMITED,1414225,11/05/2015,49336,5043.99,0,Hire of KP63 WXW 01/05/15 - 31/07/15,Hire of KP63 WXW 01/05/15 - 31/07/15,Contract Hire Operating Lease,Vehicle Management,380000
South Lakeland District Council,http://opendatacommunities.org/id/district-council/south-lakeland,31/05/2015,Revenues and Benefits,SLDC as Agent,,ROYAL MAIL GROUP PLC,,11/05/2015,49341,1820.61,0,2015-2016 Postal Charges a/c 0198123013,2015-2016 Postal Charges a/c 0198123013,General,Financial Services,200000
South Lakeland District Council,http://opendatacommunities.org/id/district-council/south-lakeland,31/05/2015,Revenues and Benefits,SLDC as Agent,,ROYAL MAIL GROUP PLC,,13/05/2015,49342,94,0,Response Service Licence a/c  0917139003,Response Service Licence a/c  0917139003,General,Financial Services,200000
South Lakeland District Council,http://opendatacommunities.org/id/district-council/south-lakeland,31/05/2015,Business Support Community Services,Internal Trading Accounts,,DENNIS EAGLE LTD,3794455,18/05/2015,49343,329.5,0,Shims,Shims,Transport-Repair & Maintenance,Vehicle Management,380000
South Lakeland District Council,http://opendatacommunities.org/id/district-council/south-lakeland,31/05/2015,Customer Services,Central Services,http://opendatacommunities.org/def/concept/finance/sercop/objective/102,SHRED-IT,4047194,18/05/2015,49344,248.65,0,Removal of confidential waste,Removal of confidential waste,Stationery/Office Supplies,Stationery,340000
South Lakeland District Council,http://opendatacommunities.org/id/district-council/south-lakeland,31/05/2015,Lake Wardens,Cultural Environmental Regulatory & Planning Services,http://opendatacommunities.org/def/concept/finance/sercop/objective/104,ENVIROFIRST LTD,5999123,11/05/2015,49345,63,0,Rental & Emptying of Re-Cycling Bins at,Rental & Emptying of Re-Cycling Bins at,Skip and Bin Hire and Disposal,Environmental Services,180000
South Lakeland District Council,http://opendatacommunities.org/id/district-council/south-lakeland,31/05/2015,Social Enterprise Admin,Central Services,http://opendatacommunities.org/def/concept/finance/sercop/objective/102,ENVIROFIRST LTD,5999123,20/05/2015,49346,126,0,Lowther Street Wheelie bin mixed,Lowther Street Wheelie bin mixed,Allocation Refuse Costs,Environmental Services,180000
South Lakeland District Council,http://opendatacommunities.org/id/district-council/south-lakeland,31/05/2015,Coronation Hall,External Trading Accounts,,Morson International,,20/05/2015,49347,119.28,0,Ulverston Market Hall cleaner to y/e 31,Ulverston Market Hall cleaner to y/e 31,Contract & Agency staff,Consultancy,150000
South Lakeland District Council,http://opendatacommunities.org/id/district-council/south-lakeland,31/05/2015,Business Support Community Services,Housing Services,http://opendatacommunities.org/def/concept/finance/sercop/objective/108,KENDAL SECURITY CENTRE LTD,3179893,11/05/2015,49348,8,0,Replacement keys for the fridge doors,Replacement keys for the fridge doors,Building Day-to-Day Repairs,,
South Lakeland District Council,http://opendatacommunities.org/id/district-council/south-lakeland,31/05/2015,Business Support Community Services,Housing Services,http://opendatacommunities.org/def/concept/finance/sercop/objective/108,Landlord,,11/05/2015,49349,520,0,Monthly rent ,"Monthly rent for 20 Caroline Street,",Homelessness Prevention,Social Community Care Supplies & Services,410000
South Lakeland District Council,http://opendatacommunities.org/id/district-council/south-lakeland,31/05/2015,Business Support Community Services,Housing Services,http://opendatacommunities.org/def/concept/finance/sercop/objective/108,Landlord,,11/05/2015,49350,520,0,Monthly rent ,"Top Flat, Union Coach House, 159",Homelessness Prevention,Social Community Care Supplies & Services,410000
South Lakeland District Council,http://opendatacommunities.org/id/district-council/south-lakeland,31/05/2015,Business Support Community Services,Housing Services,http://opendatacommunities.org/def/concept/finance/sercop/objective/108,Landlord,7121028,11/05/2015,49351,400,0,Monthly rent ,Monthly rent for 26B Park Avenue Kendal,Homelessness Prevention,Social Community Care Supplies & Services,410000
South Lakeland District Council,http://opendatacommunities.org/id/district-council/south-lakeland,31/05/2015,Business Support Community Services,Housing Services,http://opendatacommunities.org/def/concept/finance/sercop/objective/108,Landlord,,11/05/2015,49352,520,0,Monthly rent ,"Monthly rent for Flat 3 Katherine Court,",Homelessness Prevention,Social Community Care Supplies & Services,410000
South Lakeland District Council,http://opendatacommunities.org/id/district-council/south-lakeland,31/05/2015,Business Support Community Services,Housing Services,http://opendatacommunities.org/def/concept/finance/sercop/objective/108,Landlord,,11/05/2015,49353,520,0,Monthly rent ,"Monthly rent for 6 Garden Mews,  Kendal,",Homelessness Prevention,Social Community Care Supplies & Services,410000
South Lakeland District Council,http://opendatacommunities.org/id/district-council/south-lakeland,31/05/2015,Business Support Community Services,Housing Services,http://opendatacommunities.org/def/concept/finance/sercop/objective/108,Landlord,,11/05/2015,49354,400,0,Monthly rent ,"Monthly rent for 2 Egremont House,",Homelessness Prevention,Social Community Care Supplies & Services,410000
South Lakeland District Council,http://opendatacommunities.org/id/district-council/south-lakeland,31/05/2015,Business Support Community Services,Housing Services,http://opendatacommunities.org/def/concept/finance/sercop/objective/108,ADECCO UK LIMITED,593232,13/05/2015,49355,115.44,0,Cleaner for Town View Fields Hostel,Cleaner for Town View Fields Hostel,Contract & Agency staff,Consultancy,150000
South Lakeland District Council,http://opendatacommunities.org/id/district-council/south-lakeland,31/05/2015,Development Strategy,Central Services,http://opendatacommunities.org/def/concept/finance/sercop/objective/102,ROYAL TOWN PLANNING INSTITUTE,,20/05/2015,49356,95,0,to attend RTPI's,Lorayne Woodend to attend RTPI's,Training Costs,Education,170000
South Lakeland District Council,http://opendatacommunities.org/id/district-council/south-lakeland,31/05/2015,Development Strategy,Central Services,http://opendatacommunities.org/def/concept/finance/sercop/objective/102,ROYAL TOWN PLANNING INSTITUTE,,20/05/2015,49357,95,0,to attend RTPI,Elizabeth Scott-Clarke to attend RTPI,Training Costs,Education,170000
South Lakeland District Council,http://opendatacommunities.org/id/district-council/south-lakeland,31/05/2015,Business Support Community Services,Internal Trading Accounts,,Fleetmatics (UK) Ltd,5265904,13/05/2015,49358,15960,0,Annual fee for 70 vehicles from 01/03/15,Annual fee for 70 vehicles from 01/03/15,Software Maintenance,Information Communication Technology,270000
South Lakeland District Council,http://opendatacommunities.org/id/district-council/south-lakeland,31/05/2015,Environment and Housing,Housing Services,http://opendatacommunities.org/def/concept/finance/sercop/objective/108,NORTHERN HOUSING CONSORTIUM LTD,4361009,20/05/2015,49359,885,0,Membership 2015/16,Membership 2015/16,Subscriptions to Associations,Financial Services,200000
South Lakeland District Council,http://opendatacommunities.org/id/district-council/south-lakeland,31/05/2015,Social Enterprise Admin,Cultural Environmental Regulatory & Planning Services,http://opendatacommunities.org/def/concept/finance/sercop/objective/104,Cleartrack (EvL) Ltd,3881690,20/05/2015,49360,1332.85,0,Tree works at Waterhead as per tree,Tree works at Waterhead as per tree,Arboricultural Work,Environmental Services,180000
South Lakeland District Council,http://opendatacommunities.org/id/district-council/south-lakeland,31/05/2015,Social Enterprise Admin,Planning and Development,,Cleartrack (EvL) Ltd,3881690,20/05/2015,49360,1332.85,0,Tree works at Waterhead as per tree,Tree works at Waterhead as per tree,Contract payments,Financial Services,200000
South Lakeland District Council,http://opendatacommunities.org/id/district-council/south-lakeland,31/05/2015,Social Enterprise Admin,Cultural Environmental Regulatory & Planning Services,http://opendatacommunities.org/def/concept/finance/sercop/objective/104,Cleartrack (EvL) Ltd,3881690,20/05/2015,49361,2500,0,"Removal of Beech with Ganoderma, by","Removal of Beech with Ganoderma, by",Arboricultural Work,Environmental Services,180000
South Lakeland District Council,http://opendatacommunities.org/id/district-council/south-lakeland,31/05/2015,Human Resources,Central Services,http://opendatacommunities.org/def/concept/finance/sercop/objective/102,THE QUAKER TAPESTRY KENDAL LTD,,13/05/2015,49362,160,0,Room hire,Room hire,Training Costs,Education,170000
South Lakeland District Council,http://opendatacommunities.org/id/district-council/south-lakeland,31/05/2015,Human Resources,Central Services,http://opendatacommunities.org/def/concept/finance/sercop/objective/102,THE QUAKER TAPESTRY KENDAL LTD,,20/05/2015,49363,201.5,0,Room Hire,Room Hire,Training Costs,Education,170000
South Lakeland District Council,http://opendatacommunities.org/id/district-council/south-lakeland,31/05/2015,Kendal Town Hall,Central Services,http://opendatacommunities.org/def/concept/finance/sercop/objective/102,W MCCLURE LTD,685360,13/05/2015,49364,53.1,0,8 boxes of semi-skimmed milk portions,8 boxes of semi-skimmed milk portions,Catering Supplies,Catering,110000
South Lakeland District Council,http://opendatacommunities.org/id/district-council/south-lakeland,31/05/2015,Kendal Town Hall,Cultural Environmental Regulatory & Planning Services,http://opendatacommunities.org/def/concept/finance/sercop/objective/104,W MCCLURE LTD,685360,13/05/2015,49364,166.6,0,8 boxes of semi-skimmed milk portions,8 boxes of semi-skimmed milk portions,Catering Supplies,Catering,110000
South Lakeland District Council,http://opendatacommunities.org/id/district-council/south-lakeland,31/05/2015,ICT Group,Central Services,http://opendatacommunities.org/def/concept/finance/sercop/objective/102,BRITISH TELECOMMUNICATIONS PLC (DD),,01/05/2015,49365,1083.5,0,ANUK529077 BT Circuit - NPS,ANUK529077 BT Circuit - NPS,Computer-Phone Lines,Information Communication Technology,270000
South Lakeland District Council,http://opendatacommunities.org/id/district-council/south-lakeland,31/05/2015,ICT Group,Central Services,http://opendatacommunities.org/def/concept/finance/sercop/objective/102,CABLE & WIRELESS UK (VODAFONE),,13/05/2015,49366,159.37,0,Call Charges 25/3/15 to 25/3/16,Call Charges 25/3/15 to 25/3/16,Telephones-Calls,Information Communication Technology,270000
South Lakeland District Council,http://opendatacommunities.org/id/district-council/south-lakeland,31/05/2015,Democratic Services,SLDC as Agent,,CASTLERIGG CONSULTING,6747285,27/05/2015,49367,10300,0,Support to the Transformation Challenge,Support to the Transformation Challenge,Other Consultants,Consultancy,150000
South Lakeland District Council,http://opendatacommunities.org/id/district-council/south-lakeland,31/05/2015,Social Enterprise Admin,Highways & Transport Services,http://opendatacommunities.org/def/concept/finance/sercop/objective/107,G4S SECURE SOLUTIONS (UK) LTD,1046019,13/05/2015,49368,874.84,0,Patrol Services for South Lakeland House,Patrol Services for South Lakeland House,Private Contractos gen,Consultancy,150000
South Lakeland District Council,http://opendatacommunities.org/id/district-council/south-lakeland,31/05/2015,Revenues and Benefits,Central Services,http://opendatacommunities.org/def/concept/finance/sercop/objective/102,CIVICA UK LTD,1628868,13/05/2015,49369,195.65,0,Local Authority Data Sharing Programme:,Local Authority Data Sharing Programme:,Software Maintenance,Information Communication Technology,270000
South Lakeland District Council,http://opendatacommunities.org/id/district-council/south-lakeland,31/05/2015,Social Enterprise Admin,Cultural Environmental Regulatory & Planning Services,http://opendatacommunities.org/def/concept/finance/sercop/objective/104,Matchtech,2526418,13/05/2015,49370,1068.19,0,TO SUPPLY DEVELOPMENT CONTROL TEAM,TO SUPPLY DEVELOPMENT CONTROL TEAM,Contract & Agency staff,Consultancy,150000
South Lakeland District Council,http://opendatacommunities.org/id/district-council/south-lakeland,31/05/2015,Business Support Community Services,Internal Trading Accounts,,LANCASHIRE DAF,,18/05/2015,49371,1008.71,0,ECU unit,ECU unit,Transport-Repair & Maintenance,Vehicle Management,380000
South Lakeland District Council,http://opendatacommunities.org/id/district-council/south-lakeland,31/05/2015,Revenues and Benefits,Central Services,http://opendatacommunities.org/def/concept/finance/sercop/objective/102,MERITEC LTD,3224622,13/05/2015,49372,1116,0,2015 -2016 RAB Processing Contract and,2015 -2016 RAB Processing Contract and,Contract & Agency staff,Consultancy,150000
South Lakeland District Council,http://opendatacommunities.org/id/district-council/south-lakeland,31/05/2015,Business Support Community Services,Cultural Environmental Regulatory & Planning Services,http://opendatacommunities.org/def/concept/finance/sercop/objective/104,JEWSON LIMITED,348407,13/05/2015,49373,62.57,0,Fixtures & fittings 2015/16,Fixtures & fittings 2015/16,Fixtures & Fittings,Domestic Goods,160000
South Lakeland District Council,http://opendatacommunities.org/id/district-council/south-lakeland,31/05/2015,Business Support Community Services,Internal Trading Accounts,,AINSWORTH'S GARAGE,,13/05/2015,49374,32,0,COC,COC,Vehicle - Tyres,Vehicle Management,380000
South Lakeland District Council,http://opendatacommunities.org/id/district-council/south-lakeland,31/05/2015,Business Support Community Services,Internal Trading Accounts,,AINSWORTH'S GARAGE,,18/05/2015,49375,39,0,COC,COC,Vehicle - Tyres,Vehicle Management,380000
South Lakeland District Council,http://opendatacommunities.org/id/district-council/south-lakeland,31/05/2015,Business Support Community Services,Internal Trading Accounts,,LANCASHIRE DAF,,18/05/2015,49376,374.9,0,ECU unit,ECU unit,Transport-Repair & Maintenance,Vehicle Management,380000
South Lakeland District Council,http://opendatacommunities.org/id/district-council/south-lakeland,31/05/2015,Revenues and Benefits,Central Services,http://opendatacommunities.org/def/concept/finance/sercop/objective/102,ZEBRA TRAINING SERVICES LTD,7522160,13/05/2015,49378,980,0,In-house Workshop 30.04.15,In-house Workshop 30.04.15,Training Costs,Education,170000
South Lakeland District Council,http://opendatacommunities.org/id/district-council/south-lakeland,31/05/2015,Financial Services,Central Services,http://opendatacommunities.org/def/concept/finance/sercop/objective/102,CUMBRIA COUNTY COUNCIL,,27/05/2015,49379,25860,0,Internal Audit Service,Internal Audit Service,Hired Services,Facilities & Management Services,190000
South Lakeland District Council,http://opendatacommunities.org/id/district-council/south-lakeland,31/05/2015,Social Enterprise Admin,Cultural Environmental Regulatory & Planning Services,http://opendatacommunities.org/def/concept/finance/sercop/objective/104,G I Hopley Ltd,1877007,13/05/2015,49380,3335,0,Resurface works Abbot Hall play area as,Resurface works Abbot Hall play area as,Play Areas Maintenance,Sports & Playground Equipment & Maintenance,330000
South Lakeland District Council,http://opendatacommunities.org/id/district-council/south-lakeland,31/05/2015,Business Support Community Services,Central Services,http://opendatacommunities.org/def/concept/finance/sercop/objective/102,ARCO LIMITED,133804,27/05/2015,49381,23.17,0,Plasters,Plasters,Protective Clothing & Uniforms,Clothing,140000
South Lakeland District Council,http://opendatacommunities.org/id/district-council/south-lakeland,31/05/2015,Kendal Town Hall,Cultural Environmental Regulatory & Planning Services,http://opendatacommunities.org/def/concept/finance/sercop/objective/104,ARCO LIMITED,133804,13/05/2015,49388,15.36,0,2 x Arco cut 5 Reverse Liner Neoprene,2 x Arco cut 5 Reverse Liner Neoprene,Equipment Furniture Materials,Furniture & Soft Furnishings,210000
South Lakeland District Council,http://opendatacommunities.org/id/district-council/south-lakeland,31/05/2015,Revenues and Benefits,Central Services,http://opendatacommunities.org/def/concept/finance/sercop/objective/102,VICTORIA PINK,,13/05/2015,49389,70.69,0,2015-2016  Verifications Transcripts,2015-2016  Verifications Transcripts,Private Contractos gen,Consultancy,150000
South Lakeland District Council,http://opendatacommunities.org/id/district-council/south-lakeland,31/05/2015,Revenues and Benefits,Central Services,http://opendatacommunities.org/def/concept/finance/sercop/objective/102,VENN GROUP RECRUITMENT SOLUTIONS,,13/05/2015,49390,940,0,Apr-15,April 2015 Vicky McDonald,Contract & Agency staff,Consultancy,150000
South Lakeland District Council,http://opendatacommunities.org/id/district-council/south-lakeland,31/05/2015,Policy & Partnerships,Cultural Environmental Regulatory & Planning Services,http://opendatacommunities.org/def/concept/finance/sercop/objective/104,Millerground c/o Windermere & Bowness,,13/05/2015,49391,3000,0,Locally Important projects funding to,Locally Important projects funding to,Grants & Contribut to Vol Orga,Financial Services,200000
South Lakeland District Council,http://opendatacommunities.org/id/district-council/south-lakeland,31/05/2015,Policy & Partnerships,Cultural Environmental Regulatory & Planning Services,http://opendatacommunities.org/def/concept/finance/sercop/objective/104,Millerground c/o Windermere & Bowness,,13/05/2015,49392,6094,0,Locally Important Projects Funding -,Locally Important Projects Funding -,Grants & Contribut to Vol Orga,Financial Services,200000
South Lakeland District Council,http://opendatacommunities.org/id/district-council/south-lakeland,31/05/2015,Business Support Community Services,Housing Services,http://opendatacommunities.org/def/concept/finance/sercop/objective/108,James Andrews Recruitment Solutions,6834852,13/05/2015,49393,925,0,Payment for - Housing,Payment for John Hunter - Housing,Contract & Agency staff,Consultancy,150000
South Lakeland District Council,http://opendatacommunities.org/id/district-council/south-lakeland,31/05/2015,Development Implementation,Cultural Environmental Regulatory & Planning Services,http://opendatacommunities.org/def/concept/finance/sercop/objective/104,PS BUSINESS MATTERS,8147185,20/05/2015,49394,2000,0,Kendal Futures Programme Support,Kendal Futures Programme Support,Other Consultants,Consultancy,150000
South Lakeland District Council,http://opendatacommunities.org/id/district-council/south-lakeland,31/05/2015,Business Support Community Services,Internal Trading Accounts,,SITA UK LTD,2291198,13/05/2015,49395,26944.6,0,"Tipping & disposal charges, recyclables","Tipping & disposal charges, recyclables",Tipping & Disposal Charges,Environmental Services,180000
South Lakeland District Council,http://opendatacommunities.org/id/district-council/south-lakeland,31/05/2015,Business Support Community Services,Internal Trading Accounts,,LANCASTER TRAINING SERVICES LTD,1447612,13/05/2015,49396,59.79,0,Training 2015/16,Training 2015/16,Training Costs,Education,170000
South Lakeland District Council,http://opendatacommunities.org/id/district-council/south-lakeland,31/05/2015,Business Support Community Services,Internal Trading Accounts,,LANCASTER TRAINING SERVICES LTD,1447612,13/05/2015,49397,216.83,0,Training 2015/16,Training 2015/16,Training Costs,Education,170000
South Lakeland District Council,http://opendatacommunities.org/id/district-council/south-lakeland,31/05/2015,Business Support Community Services,Internal Trading Accounts,,LANCASTER TRAINING SERVICES LTD,1447612,13/05/2015,49397,86.73,0,Training 2015/16,Training 2015/16,Training Costs,Education,170000
South Lakeland District Council,http://opendatacommunities.org/id/district-council/south-lakeland,31/05/2015,Business Support Community Services,Internal Trading Accounts,,LANCASTER TRAINING SERVICES LTD,1447612,13/05/2015,49397,260.19,0,Training 2015/16,Training 2015/16,Training Costs,Education,170000
South Lakeland District Council,http://opendatacommunities.org/id/district-council/south-lakeland,31/05/2015,Business Support Community Services,Internal Trading Accounts,,Harry Park Tyres Ltd,8131208,13/05/2015,49398,12.5,0,Puncture repair,Puncture repair,Vehicle - Tyres,Vehicle Management,380000
South Lakeland District Council,http://opendatacommunities.org/id/district-council/south-lakeland,31/05/2015,Business Support Community Services,Internal Trading Accounts,,STAGECOACH NORTHWEST,,13/05/2015,49400,125,0,Steam cleaning 01/04/15 - 31/03/16,Steam cleaning 01/04/15 - 31/03/16,MOT/Servicing Costs,Vehicle Management,380000
South Lakeland District Council,http://opendatacommunities.org/id/district-council/south-lakeland,31/05/2015,Business Support Community Services,Internal Trading Accounts,,HADWINS (LINDALE) LTD,986050,13/05/2015,49401,115.92,0,Fuel filters,Fuel filters,Transport-Repair & Maintenance,Vehicle Management,380000
South Lakeland District Council,http://opendatacommunities.org/id/district-council/south-lakeland,31/05/2015,Business Support Community Services,Internal Trading Accounts,,LAKELAND TRUCKS LTD,2464423,13/05/2015,49402,202.5,0,Repair AdBlue fault,Repair AdBlue fault,Transport-Repair & Maintenance,Vehicle Management,380000
South Lakeland District Council,http://opendatacommunities.org/id/district-council/south-lakeland,31/05/2015,Business Support Community Services,Internal Trading Accounts,,LAKELAND TRUCKS LTD,2464423,13/05/2015,49403,97.5,0,Repair AdBlue fault,Repair AdBlue fault,Transport-Repair & Maintenance,Vehicle Management,380000
South Lakeland District Council,http://opendatacommunities.org/id/district-council/south-lakeland,31/05/2015,Business Support Community Services,Internal Trading Accounts,,Waste Management Training Ltd,,13/05/2015,49404,363,0,WAMITAB Operator's Competence,WAMITAB Operator's Competence,Training Costs,Education,170000
South Lakeland District Council,http://opendatacommunities.org/id/district-council/south-lakeland,31/05/2015,Business Support Community Services,Internal Trading Accounts,,Waste Management Training Ltd,,13/05/2015,49404,737,0,WAMITAB Operator's Competence,WAMITAB Operator's Competence,Training Costs,Education,170000
South Lakeland District Council,http://opendatacommunities.org/id/district-council/south-lakeland,31/05/2015,Business Support Community Services,Internal Trading Accounts,,FAUN ZOELLER (UK) LTD,751804,13/05/2015,49405,502.88,0,Mounts,Mounts,Transport-Uninsured Damage,Vehicle Management,380000
South Lakeland District Council,http://opendatacommunities.org/id/district-council/south-lakeland,31/05/2015,Business Support Community Services,Internal Trading Accounts,,FAUN ZOELLER (UK) LTD,751804,13/05/2015,49406,400,0,PDM Display,PDM Display,Transport-Repair & Maintenance,Vehicle Management,380000
South Lakeland District Council,http://opendatacommunities.org/id/district-council/south-lakeland,31/05/2015,Business Support Community Services,Internal Trading Accounts,,FAUN ZOELLER (UK) LTD,751804,13/05/2015,49407,588,0,PDM Display,PDM Display,Transport-Repair & Maintenance,Vehicle Management,380000
South Lakeland District Council,http://opendatacommunities.org/id/district-council/south-lakeland,31/05/2015,Business Support Community Services,Internal Trading Accounts,,M G D LTD,,13/05/2015,49408,35,0,MOTs 01/04/15 - 31/03/16,MOTs 01/04/15 - 31/03/16,MOT/Servicing Costs,Vehicle Management,380000
South Lakeland District Council,http://opendatacommunities.org/id/district-council/south-lakeland,31/05/2015,Social Enterprise Admin,Central Services,http://opendatacommunities.org/def/concept/finance/sercop/objective/102,WOOF'S OF SEDBERGH,,13/05/2015,49409,175,0,MINI BUS SITE VISITS FOR MEMBERS RE,MINI BUS SITE VISITS FOR MEMBERS RE,Contract Hire Operating Lease,Vehicle Management,380000
South Lakeland District Council,http://opendatacommunities.org/id/district-council/south-lakeland,31/05/2015,Business Support Community Services,Internal Trading Accounts,,ALLSTAR BUSINESS SOLUTIONS LTD (NCR),2631112,01/05/2015,49412,3834.47,0,Fuel to 30/4,Fuel to 30/4,Fuel,Utilities,370000
South Lakeland District Council,http://opendatacommunities.org/id/district-council/south-lakeland,31/05/2015,Business Support Community Services,Internal Trading Accounts,,ALLSTAR BUSINESS SOLUTIONS LTD (NCR),2631112,01/05/2015,49412,115.26,0,Fuel to 30/4,Fuel to 30/4,Fuel,Utilities,370000
South Lakeland District Council,http://opendatacommunities.org/id/district-council/south-lakeland,31/05/2015,Business Support Community Services,Internal Trading Accounts,,ALLSTAR BUSINESS SOLUTIONS LTD (NCR),2631112,01/05/2015,49412,13506.7,0,Fuel to 30/4,Fuel to 30/4,Fuel,Utilities,370000
South Lakeland District Council,http://opendatacommunities.org/id/district-council/south-lakeland,31/05/2015,Social Enterprise Admin,Highways & Transport Services,http://opendatacommunities.org/def/concept/finance/sercop/objective/107,ALLSTAR BUSINESS SOLUTIONS LTD (NCR),2631112,01/05/2015,49413,195.59,0,Fuel for car parks' vehicles starting 1,Fuel for car parks' vehicles starting 1,Fuel,Utilities,370000
South Lakeland District Council,http://opendatacommunities.org/id/district-council/south-lakeland,31/05/2015,Policy & Partnerships,Cultural Environmental Regulatory & Planning Services,http://opendatacommunities.org/def/concept/finance/sercop/objective/104,LEVENS PARISH COUNCIL,,13/05/2015,49414,1000,0,Cllr contribution to,Cllr Annie Rawlinson - contribution to,Contributions to Organisations,Financial Services,200000
South Lakeland District Council,http://opendatacommunities.org/id/district-council/south-lakeland,31/05/2015,Financial Services,SLDC as Agent,,LAKELAND ESTATES (AMBLESIDE) LTD,3022544,13/05/2015,49415,19861.1,0,2015/16 Income,2015/16 Income,General,Financial Services,200000
South Lakeland District Council,http://opendatacommunities.org/id/district-council/south-lakeland,31/05/2015,Financial Services,SLDC as Agent,,KIRKLAND TRUST (KENDAL),,13/05/2015,49416,4932.85,0,15/16 Income,15/16 Income,General,Financial Services,200000
South Lakeland District Council,http://opendatacommunities.org/id/district-council/south-lakeland,31/05/2015,Business Support Community Services,Central Services,http://opendatacommunities.org/def/concept/finance/sercop/objective/102,TOUCHDOWN OFFICES LTD,4844444,13/05/2015,49417,189.51,0,Call charges 2015/16,Call charges 2015/16,Telephones-Rentals,Information Communication Technology,270000
South Lakeland District Council,http://opendatacommunities.org/id/district-council/south-lakeland,31/05/2015,Human Resources,Central Services,http://opendatacommunities.org/def/concept/finance/sercop/objective/102,MIDLAND SOFTWARE LTD,1852206,13/05/2015,49419,1473.49,0,5 days Consultancy from Midland,5 days Consultancy from Midland,Other Consultants,Consultancy,150000
South Lakeland District Council,http://opendatacommunities.org/id/district-council/south-lakeland,31/05/2015,Social Enterprise Admin,Highways & Transport Services,http://opendatacommunities.org/def/concept/finance/sercop/objective/107,Masterstaff Limited,2777593,18/05/2015,49420,438,0,Cover for cleaner in Westmorland SC car,Cover for cleaner in Westmorland SC car,Cleaning Supplies & Services,Cleaning & Janitorial,130000
South Lakeland District Council,http://opendatacommunities.org/id/district-council/south-lakeland,31/05/2015,Business Support Community Services,Internal Trading Accounts,,Masterstaff Limited,2777593,13/05/2015,49421,735.61,0,Agency staff - April 2015,Agency staff - April 2015,Contract & Agency staff,Consultancy,150000
South Lakeland District Council,http://opendatacommunities.org/id/district-council/south-lakeland,31/05/2015,Revenues and Benefits,Central Services,http://opendatacommunities.org/def/concept/finance/sercop/objective/102,BADENOCH & CLARK,1356186,13/05/2015,49422,553.4,0,Revs and Bens  -  April 2015,Denise Calvert  -  April 2015,Contract & Agency staff,Consultancy,150000
South Lakeland District Council,http://opendatacommunities.org/id/district-council/south-lakeland,31/05/2015,Human Resources,Non-Service Payments,,BUSY BEES BENEFITS LTD,6758298,13/05/2015,49423,696,0,child care vouchers,child care vouchers,General,Financial Services,200000
South Lakeland District Council,http://opendatacommunities.org/id/district-council/south-lakeland,31/05/2015,Human Resources,Non-Service Payments,,COMPUTERSHARE VOUCHER SERVICES LTD,4968447,13/05/2015,49424,737,0,child care vouchers,child care vouchers,General,Financial Services,200000
South Lakeland District Council,http://opendatacommunities.org/id/district-council/south-lakeland,31/05/2015,Human Resources,Central Services,http://opendatacommunities.org/def/concept/finance/sercop/objective/102,COMPUTERSHARE VOUCHER SERVICES LTD,4968447,13/05/2015,49425,27.64,0,child care vouchers,child care vouchers,National Insurance,Financial Services,200000
South Lakeland District Council,http://opendatacommunities.org/id/district-council/south-lakeland,31/05/2015,Legal Services,Central Services,http://opendatacommunities.org/def/concept/finance/sercop/objective/102,Sellick Partnership Group Ltd,4156002,13/05/2015,49426,1134,0,Fees from: w/k ending,Fees for Caroline Laver from: w/k ending,Contract & Agency staff,Consultancy,150000
South Lakeland District Council,http://opendatacommunities.org/id/district-council/south-lakeland,31/05/2015,Legal Services,Central Services,http://opendatacommunities.org/def/concept/finance/sercop/objective/102,Sellick Partnership Group Ltd,4156002,13/05/2015,49427,1134,0,Fees from: w/k ending,Fees for Caroline Laver from: w/k ending,Contract & Agency staff,Consultancy,150000
South Lakeland District Council,http://opendatacommunities.org/id/district-council/south-lakeland,31/05/2015,Development Implementation,Central Services,http://opendatacommunities.org/def/concept/finance/sercop/objective/102,INTEGRAL,,18/05/2015,49436,1944.4,0,"Coronation Hall, Ulverston - Replace air","Coronation Hall, Ulverston - Replace air",Contract payments,Financial Services,200000
South Lakeland District Council,http://opendatacommunities.org/id/district-council/south-lakeland,31/05/2015,Development Implementation,Central Services,http://opendatacommunities.org/def/concept/finance/sercop/objective/102,INTEGRAL,,18/05/2015,49437,1542.5,0,"Coronation Hall, Ulverston - Install 2","Coronation Hall, Ulverston - Install 2",Contract payments,Financial Services,200000
South Lakeland District Council,http://opendatacommunities.org/id/district-council/south-lakeland,31/05/2015,Development Management,Cultural Environmental Regulatory & Planning Services,http://opendatacommunities.org/def/concept/finance/sercop/objective/104,ASSOCIATION OF BUILDING ENGINEERS,384609,27/05/2015,49439,225,0,Attendance at Building Regulations,Attendance at Building Regulations,Training Costs,Education,170000
South Lakeland District Council,http://opendatacommunities.org/id/district-council/south-lakeland,31/05/2015,Social Enterprise Admin,Cultural Environmental Regulatory & Planning Services,http://opendatacommunities.org/def/concept/finance/sercop/objective/104,FURNESS NEWSPAPERS LTD,1155841,20/05/2015,49440,103.6,0,PUBLIC NOTICES FOR PLANNING 1 APRIL 2015,PUBLIC NOTICES FOR PLANNING 1 APRIL 2015,Advertising,Facilities & Management Services,190000
South Lakeland District Council,http://opendatacommunities.org/id/district-council/south-lakeland,31/05/2015,Social Enterprise Admin,Cultural Environmental Regulatory & Planning Services,http://opendatacommunities.org/def/concept/finance/sercop/objective/104,RESOLUTION DATA MANAGEMENT LTD,1910045,18/05/2015,49441,835,0,SCANNING OF DEVELOPMENT MANAGEMENT,SCANNING OF DEVELOPMENT MANAGEMENT,Microfilming & Scanning,Information Communication Technology,270000
South Lakeland District Council,http://opendatacommunities.org/id/district-council/south-lakeland,31/05/2015,Social Enterprise Admin,Cultural Environmental Regulatory & Planning Services,http://opendatacommunities.org/def/concept/finance/sercop/objective/104,RESOLUTION DATA MANAGEMENT LTD,1910045,18/05/2015,49442,835,0,SCANNING OF DEVELOPMENT MANAGEMENT,SCANNING OF DEVELOPMENT MANAGEMENT,Microfilming & Scanning,Information Communication Technology,270000
South Lakeland District Council,http://opendatacommunities.org/id/district-council/south-lakeland,31/05/2015,Financial Services,Central Services,http://opendatacommunities.org/def/concept/finance/sercop/objective/102,ALLPAY.NET LTD (NCR),6871069,01/05/2015,49443,34.84,0,Inv. 36634 SLBC 30.04.15,Inv. 36634 SLBC 30.04.15,Commission,Financial Services,200000
South Lakeland District Council,http://opendatacommunities.org/id/district-council/south-lakeland,31/05/2015,Financial Services,Central Services,http://opendatacommunities.org/def/concept/finance/sercop/objective/102,ALLPAY.NET LTD (NCR),6871069,01/05/2015,49444,31.38,0,Inv. 36634 SLBC 30.04.15,Inv. 36634 SLBC 30.04.15,Commission,Financial Services,200000
South Lakeland District Council,http://opendatacommunities.org/id/district-council/south-lakeland,31/05/2015,Financial Services,Central Services,http://opendatacommunities.org/def/concept/finance/sercop/objective/102,ALLPAY.NET LTD (NCR),6871069,01/05/2015,49445,1153.85,0,Inv. 36634 SLBC 30.04.15,Inv. 36634 SLBC 30.04.15,Commission,Financial Services,200000
South Lakeland District Council,http://opendatacommunities.org/id/district-council/south-lakeland,31/05/2015,Financial Services,Central Services,http://opendatacommunities.org/def/concept/finance/sercop/objective/102,ALLPAY.NET LTD (NCR),6871069,01/05/2015,49446,559.82,0,Inv. 36634 SLBC 30.04.15,Inv. 36634 SLBC 30.04.15,Commission,Financial Services,200000
South Lakeland District Council,http://opendatacommunities.org/id/district-council/south-lakeland,31/05/2015,Financial Services,Central Services,http://opendatacommunities.org/def/concept/finance/sercop/objective/102,ALLPAY.NET LTD (NCR),6871069,01/05/2015,49447,24.51,0,Inv. 36634 SLBC 30.04.15,Inv. 36634 SLBC 30.04.15,Commission,Financial Services,200000
South Lakeland District Council,http://opendatacommunities.org/id/district-council/south-lakeland,31/05/2015,Business Support Community Services,Cultural Environmental Regulatory & Planning Services,http://opendatacommunities.org/def/concept/finance/sercop/objective/104,STM ENVIRONMENTAL LTD,8139811,18/05/2015,49449,1084.97,0,Annual Maintenance for GeoEnviron,Annual Maintenance for GeoEnviron,Monitoring Contaminated Land,,
South Lakeland District Council,http://opendatacommunities.org/id/district-council/south-lakeland,31/05/2015,Development Implementation,Cultural Environmental Regulatory & Planning Services,http://opendatacommunities.org/def/concept/finance/sercop/objective/104,Cairn Marketing Consultancy Ltd,,18/05/2015,49450,752,0,Kendal Branding Consultations,Kendal Branding Consultations,Economic Development Fund,Environmental Services,180000
South Lakeland District Council,http://opendatacommunities.org/id/district-council/south-lakeland,31/05/2015,Business Support Community Services,Housing Services,http://opendatacommunities.org/def/concept/finance/sercop/objective/108,DEPOSIT GUARANTEE SCHEME (CUMBRIA),,18/05/2015,49451,6251.17,0,Contribution towards administration for,Contribution towards administration for,Contributions to Organisations,Financial Services,200000
South Lakeland District Council,http://opendatacommunities.org/id/district-council/south-lakeland,31/05/2015,Printing Section,Central Services,http://opendatacommunities.org/def/concept/finance/sercop/objective/102,SUPPLIES TEAM,5510758,18/05/2015,49452,271.12,0,2 x twin pack of 35A for Councillors,2 x twin pack of 35A for Councillors,Stationery/Office Supplies,Stationery,340000
South Lakeland District Council,http://opendatacommunities.org/id/district-council/south-lakeland,31/05/2015,Printing Section,Central Services,http://opendatacommunities.org/def/concept/finance/sercop/objective/102,SUPPLIES TEAM,5510758,18/05/2015,49452,162.37,0,2 x twin pack of 35A for Councillors,2 x twin pack of 35A for Councillors,Stationery/Office Supplies,Stationery,340000
South Lakeland District Council,http://opendatacommunities.org/id/district-council/south-lakeland,31/05/2015,Printing Section,Central Services,http://opendatacommunities.org/def/concept/finance/sercop/objective/102,PRESCO UK LTD,5923806,18/05/2015,49453,222.3,0,A0 Cutting Mat,A0 Cutting Mat,Stationery/Office Supplies,Stationery,340000
South Lakeland District Council,http://opendatacommunities.org/id/district-council/south-lakeland,31/05/2015,Legal Services,Central Services,http://opendatacommunities.org/def/concept/finance/sercop/objective/102,WEIGHTMANS LLP,OC326117,18/05/2015,49455,1143,0,Re:  Booth (Court/Bankruptcy fees etc.),Re:  Booth (Court/Bankruptcy fees etc.),Legal & Counsels Fees,Legal Services,280000
South Lakeland District Council,http://opendatacommunities.org/id/district-council/south-lakeland,31/05/2015,Revenues and Benefits,Central Services,http://opendatacommunities.org/def/concept/finance/sercop/objective/102,UK PAYMENTS ADMINISTRATION LTD,1935025,18/05/2015,49456,30,0,Annual maintenance fee 2015 - 2016,Annual maintenance fee 2015 - 2016,Subscriptions to Associations,Financial Services,200000
South Lakeland District Council,http://opendatacommunities.org/id/district-council/south-lakeland,31/05/2015,Business Support Community Services,Housing Services,http://opendatacommunities.org/def/concept/finance/sercop/objective/108,KENDAL SECURITY CENTRE LTD,3179893,18/05/2015,49457,70,0,Replacement lockand fitting  for 8 White,Replacement lockand fitting  for 8 White,Homelessness Prevention,Social Community Care Supplies & Services,410000
South Lakeland District Council,http://opendatacommunities.org/id/district-council/south-lakeland,31/05/2015,Social Enterprise Admin,Highways & Transport Services,http://opendatacommunities.org/def/concept/finance/sercop/objective/107,METRIC GROUP LIMITED,2560839,18/05/2015,49458,693,0,Web hosting and web tariff editor for 66,Web hosting and web tariff editor for 66,Fixed Plant & Machinery Maint,Vehicle Management,380000
South Lakeland District Council,http://opendatacommunities.org/id/district-council/south-lakeland,31/05/2015,Legal Services,Central Services,http://opendatacommunities.org/def/concept/finance/sercop/objective/102,KINGS CHAMBERS,7091130,18/05/2015,49459,700,0,Fee for matters relating to further,Fee for matters relating to further,Legal & Counsels Fees,Legal Services,280000
South Lakeland District Council,http://opendatacommunities.org/id/district-council/south-lakeland,31/05/2015,ICT Group,Central Services,http://opendatacommunities.org/def/concept/finance/sercop/objective/102,ITPS Professional Services Ltd (DD),,01/05/2015,49460,913.24,0,WLR3 Business Line Rental and Zen Lite,WLR3 Business Line Rental and Zen Lite,Telephones-Rentals,Information Communication Technology,270000
South Lakeland District Council,http://opendatacommunities.org/id/district-council/south-lakeland,31/05/2015,ICT Group,Central Services,http://opendatacommunities.org/def/concept/finance/sercop/objective/102,ITPS Professional Services Ltd (DD),,01/05/2015,49460,484.03,0,WLR3 Business Line Rental and Zen Lite,WLR3 Business Line Rental and Zen Lite,Telephones-Calls,Information Communication Technology,270000
South Lakeland District Council,http://opendatacommunities.org/id/district-council/south-lakeland,31/05/2015,ICT Group,Central Services,http://opendatacommunities.org/def/concept/finance/sercop/objective/102,ITPS Professional Services Ltd (DD),,01/05/2015,49461,53.6,0,WLR3 Business Line Rental and Zen Lite,WLR3 Business Line Rental and Zen Lite,Telephones-Rentals,Information Communication Technology,270000
South Lakeland District Council,http://opendatacommunities.org/id/district-council/south-lakeland,31/05/2015,Lake Wardens,Cultural Environmental Regulatory & Planning Services,http://opendatacommunities.org/def/concept/finance/sercop/objective/104,THE SIGN MAN,5748839,18/05/2015,49462,1950,0,Supply & Installation of 78 Berth,Supply & Installation of 78 Berth,Navigational Systems,Street & Traffic Management,350000
South Lakeland District Council,http://opendatacommunities.org/id/district-council/south-lakeland,31/05/2015,Business Support Community Services,Internal Trading Accounts,,K & S Commerical Ltd,9068885,18/05/2015,49463,274.5,0,Repair VN63 UCH,Repair VN63 UCH,Transport-Repair & Maintenance,Vehicle Management,380000
South Lakeland District Council,http://opendatacommunities.org/id/district-council/south-lakeland,31/05/2015,Business Support Community Services,Internal Trading Accounts,,K & S Commerical Ltd,9068885,18/05/2015,49464,264.5,0,Repair VN63 UCH,Repair VN63 UCH,Transport-Repair & Maintenance,Vehicle Management,380000
South Lakeland District Council,http://opendatacommunities.org/id/district-council/south-lakeland,31/05/2015,Business Support Community Services,Internal Trading Accounts,,C M SIGNS,,18/05/2015,49465,145,0,Ovals,Ovals,Job Consumables,Cleaning & Janitorial,130000
South Lakeland District Council,http://opendatacommunities.org/id/district-council/south-lakeland,31/05/2015,Business Support Community Services,Internal Trading Accounts,,FAUN ZOELLER (UK) LTD,751804,18/05/2015,49466,765,0,PDM Display,PDM Display,Transport-Repair & Maintenance,Vehicle Management,380000
South Lakeland District Council,http://opendatacommunities.org/id/district-council/south-lakeland,31/05/2015,Coronation Hall,Cultural Environmental Regulatory & Planning Services,http://opendatacommunities.org/def/concept/finance/sercop/objective/104,PHONOGRAPHIC PERFORMANCE LIMITED,288046,18/05/2015,49467,180.1,0,PPL for period 28 May 2015 to 27 May,PPL for period 28 May 2015 to 27 May,Performing Rights,Arts & Leisure Services,290000
South Lakeland District Council,http://opendatacommunities.org/id/district-council/south-lakeland,31/05/2015,Coronation Hall,SLDC as Agent,,MANCHESTER CAMERATA LTD,1128463,20/05/2015,49468,2445.75,0,"Ticket sales for Barber, Britten,","Ticket sales for Barber, Britten,",General,Financial Services,200000
South Lakeland District Council,http://opendatacommunities.org/id/district-council/south-lakeland,31/05/2015,Business Support Community Services,Cultural Environmental Regulatory & Planning Services,http://opendatacommunities.org/def/concept/finance/sercop/objective/104,INTELLIGENT DATA SYSTEMS (UK) LTD,5148878,18/05/2015,49469,62.5,0,IDS Checks for Taxi Drivers,IDS Checks for Taxi Drivers,Driving Licence Verify Fees,Highway Equipment & Materials,230000
South Lakeland District Council,http://opendatacommunities.org/id/district-council/south-lakeland,31/05/2015,Development Implementation,Central Services,http://opendatacommunities.org/def/concept/finance/sercop/objective/102,NPS GROUP LTD,6614601,20/05/2015,49470,38333.33,0,Professional Property Services for,Professional Property Services for,NPS - Property Works,"Works - Construction, Repair & Maintenance",390000
South Lakeland District Council,http://opendatacommunities.org/id/district-council/south-lakeland,31/05/2015,Development Implementation,Central Services,http://opendatacommunities.org/def/concept/finance/sercop/objective/102,NPS GROUP LTD,6614601,18/05/2015,49471,200,0,Berners development plan.,Berners development plan.,NPS - Design Work,"Works - Construction, Repair & Maintenance",390000
South Lakeland District Council,http://opendatacommunities.org/id/district-council/south-lakeland,31/05/2015,Development Implementation,Central Services,http://opendatacommunities.org/def/concept/finance/sercop/objective/102,NPS GROUP LTD,6614601,18/05/2015,49473,850,0,"Survey & Space Plan for Auction Rooms,","Survey & Space Plan for Auction Rooms,",NPS - Property Works,"Works - Construction, Repair & Maintenance",390000
South Lakeland District Council,http://opendatacommunities.org/id/district-council/south-lakeland,31/05/2015,Development Implementation,Central Services,http://opendatacommunities.org/def/concept/finance/sercop/objective/102,NPS GROUP LTD,6614601,18/05/2015,49474,493,0,Space Planning at Glynis House,Space Planning at Glynis House,NPS - Property Works,"Works - Construction, Repair & Maintenance",390000
South Lakeland District Council,http://opendatacommunities.org/id/district-council/south-lakeland,31/05/2015,Social Enterprise Admin,Cultural Environmental Regulatory & Planning Services,http://opendatacommunities.org/def/concept/finance/sercop/objective/104,CONTINENTAL LANDSCAPES LTD,2108452,18/05/2015,49475,3040,0,Ground Mesh for castle kick-about area,Ground Mesh for castle kick-about area,Playground Equipment,Sports & Playground Equipment & Maintenance,330000
South Lakeland District Council,http://opendatacommunities.org/id/district-council/south-lakeland,31/05/2015,Business Support Community Services,Internal Trading Accounts,,CUMBRIA RADIATORS,5580363,18/05/2015,49476,439.9,0,Fuel tank,Fuel tank,Transport-Repair & Maintenance,Vehicle Management,380000
South Lakeland District Council,http://opendatacommunities.org/id/district-council/south-lakeland,31/05/2015,Business Support Community Services,Internal Trading Accounts,,HYDRAIR TRUCK & TRAILER PARTS LTD,,18/05/2015,49477,68.88,0,Pads,Pads,Transport-Repair & Maintenance,Vehicle Management,380000
South Lakeland District Council,http://opendatacommunities.org/id/district-council/south-lakeland,31/05/2015,Business Support Community Services,Internal Trading Accounts,,DENNIS EAGLE LTD,3794455,18/05/2015,49478,260.71,0,Shims,Shims,Transport-Repair & Maintenance,Vehicle Management,380000
South Lakeland District Council,http://opendatacommunities.org/id/district-council/south-lakeland,31/05/2015,Business Support Community Services,Internal Trading Accounts,,DENNIS EAGLE LTD,3794455,18/05/2015,49479,5.07,0,Shims,Shims,Transport-Uninsured Damage,Vehicle Management,380000
South Lakeland District Council,http://opendatacommunities.org/id/district-council/south-lakeland,31/05/2015,Business Support Community Services,Internal Trading Accounts,,Harry Park Tyres Ltd,8131208,18/05/2015,49480,62,0,Puncture repair,Puncture repair,Vehicle - Tyres,Vehicle Management,380000
South Lakeland District Council,http://opendatacommunities.org/id/district-council/south-lakeland,31/05/2015,Business Support Community Services,Internal Trading Accounts,,EK MOTOR FACTORS LTD,838524,18/05/2015,49481,39.56,0,King pin kit,King pin kit,Transport-Repair & Maintenance,Vehicle Management,380000
South Lakeland District Council,http://opendatacommunities.org/id/district-council/south-lakeland,31/05/2015,Business Support Community Services,Internal Trading Accounts,,EK MOTOR FACTORS LTD,838524,18/05/2015,49482,-32.02,0,King pin kit,King pin kit,Transport-Repair & Maintenance,Vehicle Management,380000
South Lakeland District Council,http://opendatacommunities.org/id/district-council/south-lakeland,31/05/2015,Business Support Community Services,Internal Trading Accounts,,EK MOTOR FACTORS LTD,838524,18/05/2015,49483,1.91,0,King pin kit,King pin kit,Transport-Repair & Maintenance,Vehicle Management,380000
South Lakeland District Council,http://opendatacommunities.org/id/district-council/south-lakeland,31/05/2015,Business Support Community Services,Internal Trading Accounts,,EK MOTOR FACTORS LTD,838524,18/05/2015,49484,26.1,0,King pin kit,King pin kit,Transport-Repair & Maintenance,Vehicle Management,380000
South Lakeland District Council,http://opendatacommunities.org/id/district-council/south-lakeland,31/05/2015,Business Support Community Services,Internal Trading Accounts,,EK MOTOR FACTORS LTD,838524,18/05/2015,49485,24.73,0,King pin kit,King pin kit,Transport-Repair & Maintenance,Vehicle Management,380000
South Lakeland District Council,http://opendatacommunities.org/id/district-council/south-lakeland,31/05/2015,Business Support Community Services,Internal Trading Accounts,,EK MOTOR FACTORS LTD,838524,18/05/2015,49486,11.86,0,King pin kit,King pin kit,Transport-Repair & Maintenance,Vehicle Management,380000
South Lakeland District Council,http://opendatacommunities.org/id/district-council/south-lakeland,31/05/2015,Business Support Community Services,Internal Trading Accounts,,EK MOTOR FACTORS LTD,838524,18/05/2015,49487,39.95,0,King pin kit,King pin kit,Transport-Repair & Maintenance,Vehicle Management,380000
South Lakeland District Council,http://opendatacommunities.org/id/district-council/south-lakeland,31/05/2015,Business Support Community Services,Internal Trading Accounts,,Harry Park Tyres Ltd,8131208,18/05/2015,49488,46.95,0,Puncture repair,Puncture repair,Vehicle - Tyres,Vehicle Management,380000
South Lakeland District Council,http://opendatacommunities.org/id/district-council/south-lakeland,31/05/2015,Business Support Community Services,Internal Trading Accounts,,DENNIS EAGLE LTD,3794455,18/05/2015,49489,93.38,0,Shims,Shims,Transport-Repair & Maintenance,Vehicle Management,380000
South Lakeland District Council,http://opendatacommunities.org/id/district-council/south-lakeland,31/05/2015,Business Support Community Services,Internal Trading Accounts,,DENNIS EAGLE LTD,3794455,18/05/2015,49490,276.82,0,Shims,Shims,Transport-Repair & Maintenance,Vehicle Management,380000
South Lakeland District Council,http://opendatacommunities.org/id/district-council/south-lakeland,31/05/2015,Business Support Community Services,Internal Trading Accounts,,DENNIS EAGLE LTD,3794455,18/05/2015,49491,25.32,0,Shims,Shims,Transport-Repair & Maintenance,Vehicle Management,380000
South Lakeland District Council,http://opendatacommunities.org/id/district-council/south-lakeland,31/05/2015,Business Support Community Services,Internal Trading Accounts,,K S INTERNATIONAL LTD,2703321,18/05/2015,49492,80,0,Pedals,Pedals,Transport-Repair & Maintenance,Vehicle Management,380000
South Lakeland District Council,http://opendatacommunities.org/id/district-council/south-lakeland,31/05/2015,Business Support Community Services,Internal Trading Accounts,,K S INTERNATIONAL LTD,2703321,18/05/2015,49493,235,0,Pedals,Pedals,Transport-Repair & Maintenance,Vehicle Management,380000
South Lakeland District Council,http://opendatacommunities.org/id/district-council/south-lakeland,31/05/2015,Business Support Community Services,Internal Trading Accounts,,Harry Park Tyres Ltd,8131208,18/05/2015,49494,1120,0,Puncture repair,Puncture repair,Vehicle - Tyres,Vehicle Management,380000
South Lakeland District Council,http://opendatacommunities.org/id/district-council/south-lakeland,31/05/2015,Business Support Community Services,Internal Trading Accounts,,DENNIS EAGLE LTD,3794455,18/05/2015,49495,45.28,0,Shims,Shims,Transport-Repair & Maintenance,Vehicle Management,380000
South Lakeland District Council,http://opendatacommunities.org/id/district-council/south-lakeland,31/05/2015,Business Support Community Services,Internal Trading Accounts,,DENNIS EAGLE LTD,3794455,18/05/2015,49496,125.56,0,Shims,Shims,Transport-Repair & Maintenance,Vehicle Management,380000
South Lakeland District Council,http://opendatacommunities.org/id/district-council/south-lakeland,31/05/2015,Business Support Community Services,Internal Trading Accounts,,HYDRAIR TRUCK & TRAILER PARTS LTD,,18/05/2015,49497,44.16,0,Air filters,Air filters,Transport-Repair & Maintenance,Vehicle Management,380000
South Lakeland District Council,http://opendatacommunities.org/id/district-council/south-lakeland,31/05/2015,Business Support Community Services,Internal Trading Accounts,,HYDRAIR TRUCK & TRAILER PARTS LTD,,18/05/2015,49498,88.32,0,Air filters,Air filters,Transport-Repair & Maintenance,Vehicle Management,380000
South Lakeland District Council,http://opendatacommunities.org/id/district-council/south-lakeland,31/05/2015,Business Support Community Services,Internal Trading Accounts,,DENNIS EAGLE LTD,3794455,18/05/2015,49499,41.61,0,Shims,Shims,Transport-Repair & Maintenance,Vehicle Management,380000
South Lakeland District Council,http://opendatacommunities.org/id/district-council/south-lakeland,31/05/2015,Business Support Community Services,Internal Trading Accounts,,DENNIS EAGLE LTD,3794455,18/05/2015,49500,91.6,0,Shims,Shims,Transport-Repair & Maintenance,Vehicle Management,380000
South Lakeland District Council,http://opendatacommunities.org/id/district-council/south-lakeland,31/05/2015,Business Support Community Services,Internal Trading Accounts,,HYDRAIR TRUCK & TRAILER PARTS LTD,,18/05/2015,49501,138.16,0,Air filters,Air filters,Transport-Repair & Maintenance,Vehicle Management,380000
South Lakeland District Council,http://opendatacommunities.org/id/district-council/south-lakeland,31/05/2015,Business Support Community Services,Internal Trading Accounts,,EK MOTOR FACTORS LTD,838524,27/05/2015,49502,5.6,0,King pin kit,King pin kit,Transport-Repair & Maintenance,Vehicle Management,380000
South Lakeland District Council,http://opendatacommunities.org/id/district-council/south-lakeland,31/05/2015,Business Support Community Services,Internal Trading Accounts,,TAYLOR ENGINEERING & FABRICATIONS LTD,4989359,18/05/2015,49503,307.65,0,Bobbins,Bobbins,Transport-Repair & Maintenance,Vehicle Management,380000
South Lakeland District Council,http://opendatacommunities.org/id/district-council/south-lakeland,31/05/2015,Business Support Community Services,Internal Trading Accounts,,SOMERS TOTALKARE LTD,5256574,18/05/2015,49504,4.9,0,Service lifts,Service lifts,Equipment Furniture Materials,Furniture & Soft Furnishings,210000
South Lakeland District Council,http://opendatacommunities.org/id/district-council/south-lakeland,31/05/2015,Business Support Community Services,Internal Trading Accounts,,DENNIS EAGLE LTD,3794455,18/05/2015,49505,54.4,0,Shims,Shims,Transport-Repair & Maintenance,Vehicle Management,380000
South Lakeland District Council,http://opendatacommunities.org/id/district-council/south-lakeland,31/05/2015,Business Support Community Services,Internal Trading Accounts,,Harry Park Tyres Ltd,8131208,18/05/2015,49506,629.95,0,Puncture repair,Puncture repair,Vehicle - Tyres,Vehicle Management,380000
South Lakeland District Council,http://opendatacommunities.org/id/district-council/south-lakeland,31/05/2015,Business Support Community Services,Internal Trading Accounts,,LANCASTER TRAINING SERVICES LTD,1447612,18/05/2015,49507,428.75,0,Training 2015/16,Training 2015/16,Training Costs,Education,170000
South Lakeland District Council,http://opendatacommunities.org/id/district-council/south-lakeland,31/05/2015,Business Support Community Services,Internal Trading Accounts,,BOC GASES,337663,27/05/2015,49508,664.8,0,Gas supplies 2015/16,Gas supplies 2015/16,Job Consumables,Cleaning & Janitorial,130000
South Lakeland District Council,http://opendatacommunities.org/id/district-council/south-lakeland,31/05/2015,Business Support Community Services,Internal Trading Accounts,,M G D LTD,,18/05/2015,49509,35,0,MOTs 01/04/15 - 31/03/16,MOTs 01/04/15 - 31/03/16,MOT/Servicing Costs,Vehicle Management,380000
South Lakeland District Council,http://opendatacommunities.org/id/district-council/south-lakeland,31/05/2015,Social Enterprise Admin,Cultural Environmental Regulatory & Planning Services,http://opendatacommunities.org/def/concept/finance/sercop/objective/104,GATES TRAVEL SERVICE,,18/05/2015,49510,22.4,0,Return rail travel 21st May from,Return rail travel 21st May from,Training Costs,Education,170000
South Lakeland District Council,http://opendatacommunities.org/id/district-council/south-lakeland,31/05/2015,Social Enterprise Admin,Cultural Environmental Regulatory & Planning Services,http://opendatacommunities.org/def/concept/finance/sercop/objective/104,GATES TRAVEL SERVICE,,18/05/2015,49511,36.4,0,Return rail travel from Oxenhome Staion,Return rail travel from Oxenhome Staion,Training Costs,Education,170000
South Lakeland District Council,http://opendatacommunities.org/id/district-council/south-lakeland,31/05/2015,Human Resources,Central Services,http://opendatacommunities.org/def/concept/finance/sercop/objective/102,ACT NOW TRAINING LTD,,20/05/2015,49512,3192,0,RIPA Training 14/01/2015 and 17/03/2015,RIPA Training 14/01/2015 and 17/03/2015,Training Costs,Education,170000
South Lakeland District Council,http://opendatacommunities.org/id/district-council/south-lakeland,31/05/2015,Development Implementation,Central Services,http://opendatacommunities.org/def/concept/finance/sercop/objective/102,NPS GROUP LTD,6614601,18/05/2015,49513,4756,0,Solar Panel Installation - Procurement &,Solar Panel Installation - Procurement &,NPS - Property Works,"Works - Construction, Repair & Maintenance",390000
South Lakeland District Council,http://opendatacommunities.org/id/district-council/south-lakeland,31/05/2015,Development Implementation,Central Services,http://opendatacommunities.org/def/concept/finance/sercop/objective/102,CUMBRIA ROOFING ULVERSTON,8549295,18/05/2015,49514,16760.4,0,"Works at Contact Centre, Coronation","Works at Contact Centre, Coronation",Contract payments,Financial Services,200000
South Lakeland District Council,http://opendatacommunities.org/id/district-council/south-lakeland,31/05/2015,Electoral Services,Central Services,http://opendatacommunities.org/def/concept/finance/sercop/objective/102,NORTHGATE VEHICLE HIRE LTD,1434157,18/05/2015,49515,22.2,0,Van Hire for District Elections,Van Hire for District Elections,Car Allowances,Street & Traffic Management,350000
South Lakeland District Council,http://opendatacommunities.org/id/district-council/south-lakeland,31/05/2015,Electoral Services,Central Services,http://opendatacommunities.org/def/concept/finance/sercop/objective/102,NORTHGATE VEHICLE HIRE LTD,1434157,18/05/2015,49516,33.62,0,Van Hire for District Elections,Van Hire for District Elections,Car Allowances,Street & Traffic Management,350000
South Lakeland District Council,http://opendatacommunities.org/id/district-council/south-lakeland,31/05/2015,Electoral Services,Central Services,http://opendatacommunities.org/def/concept/finance/sercop/objective/102,NORTHGATE VEHICLE HIRE LTD,1434157,20/05/2015,49517,32.91,0,Van Hire for District Elections,Van Hire for District Elections,Car Allowances,Street & Traffic Management,350000
South Lakeland District Council,http://opendatacommunities.org/id/district-council/south-lakeland,31/05/2015,ICT Group,Central Services,http://opendatacommunities.org/def/concept/finance/sercop/objective/102,Forge Training,,18/05/2015,49518,2580,0,"Sharepoint Training for June 22nd, 23rd","Sharepoint Training for June 22nd, 23rd",Other Consultants,Consultancy,150000
South Lakeland District Council,http://opendatacommunities.org/id/district-council/south-lakeland,31/05/2015,Business Support Community Services,Internal Trading Accounts,,BRIAN ARMISTEAD LTD T/A SINKFALL RECYCLI,4133280,18/05/2015,49524,1086.8,0,Green waste tipping - 2015/16,Green waste tipping - 2015/16,Tipping & Disposal Charges,Environmental Services,180000
South Lakeland District Council,http://opendatacommunities.org/id/district-council/south-lakeland,31/05/2015,Business Support Community Services,Internal Trading Accounts,,H WICKS (LINDAL) LTD,754590,20/05/2015,49525,2018.08,0,"Gate fees, handling & baling of","Gate fees, handling & baling of",Tipping & Disposal Charges,Environmental Services,180000
South Lakeland District Council,http://opendatacommunities.org/id/district-council/south-lakeland,31/05/2015,Lake Wardens,Cultural Environmental Regulatory & Planning Services,http://opendatacommunities.org/def/concept/finance/sercop/objective/104,AJN Refurbishment Services Ltd,8248260,18/05/2015,49526,479,0,Manufacture & Supply of Alluminium Sign,Manufacture & Supply of Alluminium Sign,Equipment Furniture Materials,Furniture & Soft Furnishings,210000
South Lakeland District Council,http://opendatacommunities.org/id/district-council/south-lakeland,31/05/2015,Coronation Hall,Cultural Environmental Regulatory & Planning Services,http://opendatacommunities.org/def/concept/finance/sercop/objective/104,ST JOHN AMBULANCE CUMBRIA,,18/05/2015,49527,52.8,0,FAO ,FAO Katie Roberts,Contract & Agency staff,Consultancy,150000
South Lakeland District Council,http://opendatacommunities.org/id/district-council/south-lakeland,31/05/2015,ICT Group,Central Services,http://opendatacommunities.org/def/concept/finance/sercop/objective/102,MLL Telecom Ltd,2657917,27/05/2015,49528,6604,0,"New MPLS install cost, South Lakeland","New MPLS install cost, South Lakeland",Computer-Phone Lines,Information Communication Technology,270000
South Lakeland District Council,http://opendatacommunities.org/id/district-council/south-lakeland,31/05/2015,Legal Services,Central Services,http://opendatacommunities.org/def/concept/finance/sercop/objective/102,Sellick Partnership Group Ltd,4156002,18/05/2015,49530,982.8,0,Wages from w/k ending,Wages for Caroline Laver from w/k ending,Contract & Agency staff,Consultancy,150000
South Lakeland District Council,http://opendatacommunities.org/id/district-council/south-lakeland,31/05/2015,Social Enterprise Admin,Cultural Environmental Regulatory & Planning Services,http://opendatacommunities.org/def/concept/finance/sercop/objective/104,VICTORIA PINK,,18/05/2015,49534,184.8,0,TRANSCRIPT,TRANSCRIPT FOR MARK BALDERSON,Other Consultants,Consultancy,150000
South Lakeland District Council,http://opendatacommunities.org/id/district-council/south-lakeland,31/05/2015,Environment and Housing,Housing,http://opendatacommunities.org/def/concept/finance/sercop/objective/108,ENVIRONMENT & HOUSING GRANTS,,18/05/2015,49537,17000,0,"Flookburgh, G.O.S. LA11 7LP","24 Moorside, Flookburgh, G.O.S. LA11 7LP",Grant Payments,Financial Services,200000
South Lakeland District Council,http://opendatacommunities.org/id/district-council/south-lakeland,31/05/2015,Environment and Housing,Housing,http://opendatacommunities.org/def/concept/finance/sercop/objective/108,ULTRACARE PROPERTY MANAGEMENT LTD,5020554,18/05/2015,49538,267,0,"Kendal, LA9 5EP","121 Windermere Road, Kendal, LA9 5EP",Grant Payments,Financial Services,200000
South Lakeland District Council,http://opendatacommunities.org/id/district-council/south-lakeland,31/05/2015,Environment and Housing,Housing,http://opendatacommunities.org/def/concept/finance/sercop/objective/108,C W COX & SONS (KENDAL) LTD,3498844,18/05/2015,49539,2106.86,0,"Windermere, LA23 2LN","14 Ghyll Close, Windermere, LA23 2LN",Grant Payments,Financial Services,200000
South Lakeland District Council,http://opendatacommunities.org/id/district-council/south-lakeland,31/05/2015,Environment and Housing,Housing,http://opendatacommunities.org/def/concept/finance/sercop/objective/108,C W COX & SONS (KENDAL) LTD,3498844,18/05/2015,49540,3940.37,0,"Kendal, LA9 5JA","48 Pembroke Court, Kendal, LA9 5JA",Grant Payments,Financial Services,200000
South Lakeland District Council,http://opendatacommunities.org/id/district-council/south-lakeland,31/05/2015,Environment and Housing,Housing,http://opendatacommunities.org/def/concept/finance/sercop/objective/108,C W COX & SONS (KENDAL) LTD,3498844,18/05/2015,49541,3017.68,0,"Kendal, LA8 9NJ","31 Seedfield, Staveley, Kendal, LA8 9NJ",Grant Payments,Financial Services,200000
South Lakeland District Council,http://opendatacommunities.org/id/district-council/south-lakeland,31/05/2015,Environment and Housing,Housing,http://opendatacommunities.org/def/concept/finance/sercop/objective/108,ENVIRONMENT & HOUSING GRANTS,,18/05/2015,49542,5328.55,0,"Kendal,","Mrs S Mayne, 30 Ashleigh Road, Kendal,",Grant Payments,Financial Services,200000
South Lakeland District Council,http://opendatacommunities.org/id/district-council/south-lakeland,31/05/2015,Business Support Community Services,Housing Services,http://opendatacommunities.org/def/concept/finance/sercop/objective/108,Landlord,,18/05/2015,49543,890,0,Monthly rent ,"Monthly rent for Flats 1 & 2, 13 New",Homelessness Prevention,Social Community Care Supplies & Services,410000
South Lakeland District Council,http://opendatacommunities.org/id/district-council/south-lakeland,31/05/2015,Business Support Community Services,Housing Services,http://opendatacommunities.org/def/concept/finance/sercop/objective/108,Landlord,,18/05/2015,49544,1190,0,Monthly rent ,"Monthly rent for Flat 1,2 & 3 Kentworks,",Homelessness Prevention,Social Community Care Supplies & Services,410000
South Lakeland District Council,http://opendatacommunities.org/id/district-council/south-lakeland,31/05/2015,Business Support Community Services,Housing Services,http://opendatacommunities.org/def/concept/finance/sercop/objective/108,Landlord,8672920,18/05/2015,49545,400,0,Monthly rent ,"Monthly rent for 6 Camden Building,",Homelessness Prevention,Social Community Care Supplies & Services,410000
South Lakeland District Council,http://opendatacommunities.org/id/district-council/south-lakeland,31/05/2015,Business Support Community Services,Housing Services,http://opendatacommunities.org/def/concept/finance/sercop/objective/108,Landlord,,18/05/2015,49546,520,0,Monthly rent ,Monthly rent for 34 Broad Ings Cresent,Homelessness Prevention,Social Community Care Supplies & Services,410000
South Lakeland District Council,http://opendatacommunities.org/id/district-council/south-lakeland,31/05/2015,Revenues and Benefits,Central Services,http://opendatacommunities.org/def/concept/finance/sercop/objective/102,VENN GROUP RECRUITMENT SOLUTIONS,,18/05/2015,49547,728.5,0,Apr-15,April 2015 Vicky McDonald,Contract & Agency staff,Consultancy,150000
South Lakeland District Council,http://opendatacommunities.org/id/district-council/south-lakeland,31/05/2015,Development Implementation,Cultural Environmental Regulatory & Planning Services,http://opendatacommunities.org/def/concept/finance/sercop/objective/104,H Hogarth,,18/05/2015,49548,1500,0,"Shop Front Grant for 27 Stricklandgate,","Shop Front Grant for 27 Stricklandgate,",Economic Development Fund,Environmental Services,180000
South Lakeland District Council,http://opendatacommunities.org/id/district-council/south-lakeland,31/05/2015,Electoral Services,Central Services,http://opendatacommunities.org/def/concept/finance/sercop/objective/102,ROYAL MAIL GROUP PLC,,27/05/2015,49550,4504.8,0,Postage for District/Parish Postal Packs,Postage for District/Parish Postal Packs,Postages,Mail Services,300000
South Lakeland District Council,http://opendatacommunities.org/id/district-council/south-lakeland,31/05/2015,Electoral Services,Central Services,http://opendatacommunities.org/def/concept/finance/sercop/objective/102,ROYAL MAIL GROUP PLC,,27/05/2015,49551,69.44,0,Response Plus top up postage,Response Plus top up postage,Postages,Mail Services,300000
South Lakeland District Council,http://opendatacommunities.org/id/district-council/south-lakeland,31/05/2015,Electoral Services,Central Services,http://opendatacommunities.org/def/concept/finance/sercop/objective/102,4Imprint Direct,,27/05/2015,49552,276.32,0,Lanyards for Election Count District,Lanyards for Election Count District,Stationery/Office Supplies,Stationery,340000
South Lakeland District Council,http://opendatacommunities.org/id/district-council/south-lakeland,31/05/2015,Electoral Services,Central Services,http://opendatacommunities.org/def/concept/finance/sercop/objective/102,4Imprint Direct,,27/05/2015,49552,552.63,0,Lanyards for Election Count District,Lanyards for Election Count District,Stationery/Office Supplies,Stationery,340000
South Lakeland District Council,http://opendatacommunities.org/id/district-council/south-lakeland,31/05/2015,Electoral Services,Central Services,http://opendatacommunities.org/def/concept/finance/sercop/objective/102,SOUNDSMITH LIMITED,5366630,27/05/2015,49553,701.66,0,Hire of Sound System etc for District,Hire of Sound System etc for District,Election Costs,,
South Lakeland District Council,http://opendatacommunities.org/id/district-council/south-lakeland,31/05/2015,Electoral Services,Central Services,http://opendatacommunities.org/def/concept/finance/sercop/objective/102,SOUNDSMITH LIMITED,5366630,27/05/2015,49553,1403.34,0,Hire of Sound System etc for District,Hire of Sound System etc for District,Election Costs,,
South Lakeland District Council,http://opendatacommunities.org/id/district-council/south-lakeland,31/05/2015,Lake Wardens,Cultural Environmental Regulatory & Planning Services,http://opendatacommunities.org/def/concept/finance/sercop/objective/104,CUMBRIA WASTE RECYCLING LTD,3162439,27/05/2015,49554,224.84,0,Emptying of Refuse Wheelie Bins held at,Emptying of Refuse Wheelie Bins held at,Skip and Bin Hire and Disposal,Environmental Services,180000
South Lakeland District Council,http://opendatacommunities.org/id/district-council/south-lakeland,31/05/2015,Environmental Protection,Cultural Environmental Regulatory & Planning Services,http://opendatacommunities.org/def/concept/finance/sercop/objective/104,CUMBRIA WASTE RECYCLING LTD,3162439,20/05/2015,49555,35.75,0,"Cemeteries Bin Emptying Jan,Feb,March","Cemeteries Bin Emptying Jan,Feb,March",Allocation Refuse Costs,Environmental Services,180000
South Lakeland District Council,http://opendatacommunities.org/id/district-council/south-lakeland,31/05/2015,Financial Services,Central Services,http://opendatacommunities.org/def/concept/finance/sercop/objective/102,NORTH WEST INSURANCE OFFICERS GROUP,,18/05/2015,49556,50,0,Annual Subs 2015 to 31st December 2015,Annual Subs 2015 to 31st December 2015,Subscriptions to Associations,Financial Services,200000
South Lakeland District Council,http://opendatacommunities.org/id/district-council/south-lakeland,31/05/2015,Financial Services,Central Services,http://opendatacommunities.org/def/concept/finance/sercop/objective/102,CAPITA TREASURY SOLUTIONS LTD,2652033,18/05/2015,49557,6600,0,Treasury Consultancy May 15 - March 16,Treasury Consultancy May 15 - March 16,Fund Management Fees,Financial Services,200000
South Lakeland District Council,http://opendatacommunities.org/id/district-council/south-lakeland,31/05/2015,Legal Services,Central Services,http://opendatacommunities.org/def/concept/finance/sercop/objective/102,Solicitors Association of Higher Court,,20/05/2015,49558,50,0,Annual Subscription for Membership from,Annual Subscription for Membership from,Training Costs,Education,170000
South Lakeland District Council,http://opendatacommunities.org/id/district-council/south-lakeland,31/05/2015,Environmental Protection,Cultural Environmental Regulatory & Planning Services,http://opendatacommunities.org/def/concept/finance/sercop/objective/104,CUMBRIA WASTE RECYCLING LTD,3162439,27/05/2015,49563,31,0,SLDC Cemetery waster bin emptying April,SLDC Cemetery waster bin emptying April,Allocation Refuse Costs,Environmental Services,180000
South Lakeland District Council,http://opendatacommunities.org/id/district-council/south-lakeland,31/05/2015,Business Support Community Services,Internal Trading Accounts,,CUMBRIA WASTE RECYCLING LTD,3162439,27/05/2015,49564,1226.64,0,Skip emptying at Ecclerigg & Ulverston,Skip emptying at Ecclerigg & Ulverston,Tipping & Disposal Charges,Environmental Services,180000
South Lakeland District Council,http://opendatacommunities.org/id/district-council/south-lakeland,31/05/2015,Business Support Community Services,Internal Trading Accounts,,CUMBRIA WASTE RECYCLING LTD,3162439,27/05/2015,49565,213,0,Skip emptying at Ecclerigg & Ulverston,Skip emptying at Ecclerigg & Ulverston,Tipping & Disposal Charges,Environmental Services,180000
South Lakeland District Council,http://opendatacommunities.org/id/district-council/south-lakeland,31/05/2015,Kendal Town Hall,Cultural Environmental Regulatory & Planning Services,http://opendatacommunities.org/def/concept/finance/sercop/objective/104,CUMBRIA WASTE RECYCLING LTD,3162439,27/05/2015,49567,125.4,0,Weekly collection of the bins at Kendal,Weekly collection of the bins at Kendal,Skip and Bin Hire and Disposal,Environmental Services,180000
South Lakeland District Council,http://opendatacommunities.org/id/district-council/south-lakeland,31/05/2015,Environmental Protection,Cultural Environmental Regulatory & Planning Services,http://opendatacommunities.org/def/concept/finance/sercop/objective/104,CUMBRIA WASTE RECYCLING LTD,3162439,27/05/2015,49569,99.55,0,SLDC Cemetery waster bin emptying April,SLDC Cemetery waster bin emptying April,Allocation Refuse Costs,Environmental Services,180000
South Lakeland District Council,http://opendatacommunities.org/id/district-council/south-lakeland,31/05/2015,Coronation Hall,External Trading Accounts,,CUMBRIA WASTE RECYCLING LTD,3162439,27/05/2015,49570,445.74,0,"Emptying of skips from Market Hall,","Emptying of skips from Market Hall,",Skip and Bin Hire and Disposal,Environmental Services,180000
South Lakeland District Council,http://opendatacommunities.org/id/district-council/south-lakeland,31/05/2015,Lake Wardens,Cultural Environmental Regulatory & Planning Services,http://opendatacommunities.org/def/concept/finance/sercop/objective/104,CUMBRIA WASTE RECYCLING LTD,3162439,27/05/2015,49571,243.02,0,Emptying of Refuse Wheelie Bins held at,Emptying of Refuse Wheelie Bins held at,Skip and Bin Hire and Disposal,Environmental Services,180000
South Lakeland District Council,http://opendatacommunities.org/id/district-council/south-lakeland,31/05/2015,Environmental Protection,Cultural Environmental Regulatory & Planning Services,http://opendatacommunities.org/def/concept/finance/sercop/objective/104,CUMBRIA WASTE RECYCLING LTD,3162439,27/05/2015,49572,71.5,0,SLDC Cemetery waster bin emptying April,SLDC Cemetery waster bin emptying April,Allocation Refuse Costs,Environmental Services,180000
South Lakeland District Council,http://opendatacommunities.org/id/district-council/south-lakeland,31/05/2015,Coronation Hall,Cultural Environmental Regulatory & Planning Services,http://opendatacommunities.org/def/concept/finance/sercop/objective/104,CUMBRIA WASTE RECYCLING LTD,3162439,27/05/2015,49573,95.86,0,"Emptying of skips from Coronation Hall,","Emptying of skips from Coronation Hall,",Skip and Bin Hire and Disposal,Environmental Services,180000
South Lakeland District Council,http://opendatacommunities.org/id/district-council/south-lakeland,31/05/2015,Environmental Protection,Cultural Environmental Regulatory & Planning Services,http://opendatacommunities.org/def/concept/finance/sercop/objective/104,CUMBRIA WASTE RECYCLING LTD,3162439,27/05/2015,49574,56.68,0,SLDC Cemetery waster bin emptying April,SLDC Cemetery waster bin emptying April,Allocation Refuse Costs,Environmental Services,180000
South Lakeland District Council,http://opendatacommunities.org/id/district-council/south-lakeland,31/05/2015,Environmental Protection,Cultural Environmental Regulatory & Planning Services,http://opendatacommunities.org/def/concept/finance/sercop/objective/104,CUMBRIA WASTE RECYCLING LTD,3162439,27/05/2015,49575,46.2,0,SLDC Cemetery waster bin emptying April,SLDC Cemetery waster bin emptying April,Allocation Refuse Costs,Environmental Services,180000
South Lakeland District Council,http://opendatacommunities.org/id/district-council/south-lakeland,31/05/2015,Environmental Protection,Cultural Environmental Regulatory & Planning Services,http://opendatacommunities.org/def/concept/finance/sercop/objective/104,CUMBRIA WASTE RECYCLING LTD,3162439,27/05/2015,49577,89.12,0,SLDC Cemetery waster bin emptying April,SLDC Cemetery waster bin emptying April,Allocation Refuse Costs,Environmental Services,180000
South Lakeland District Council,http://opendatacommunities.org/id/district-council/south-lakeland,31/05/2015,Business Support Community Services,Housing Services,http://opendatacommunities.org/def/concept/finance/sercop/objective/108,Vigilant Security Services UK Ltd,5914271,27/05/2015,49581,3159.84,0,Payment for security guard at TVF,Payment for security guard at TVF,Security Services,Human Resources,260000
South Lakeland District Council,http://opendatacommunities.org/id/district-council/south-lakeland,31/05/2015,Business Support Community Services,Housing Services,http://opendatacommunities.org/def/concept/finance/sercop/objective/108,Vigilant Security Services UK Ltd,5914271,27/05/2015,49582,2796.64,0,Payment for security guard at TVF,Payment for security guard at TVF,Security Services,Human Resources,260000
South Lakeland District Council,http://opendatacommunities.org/id/district-council/south-lakeland,31/05/2015,Business Support Community Services,Housing Services,http://opendatacommunities.org/def/concept/finance/sercop/objective/108,Vigilant Security Services UK Ltd,5914271,27/05/2015,49583,3105.36,0,Payment for security guard at TVF,Payment for security guard at TVF,Security Services,Human Resources,260000
South Lakeland District Council,http://opendatacommunities.org/id/district-council/south-lakeland,31/05/2015,Development Implementation,Cultural Environmental Regulatory & Planning Services,http://opendatacommunities.org/def/concept/finance/sercop/objective/104,NEWSCO INSIDER LTD,2709518,20/05/2015,49584,625,0,Invest in South Lakeland Full Page,Invest in South Lakeland Full Page,Advertising,Facilities & Management Services,190000
South Lakeland District Council,http://opendatacommunities.org/id/district-council/south-lakeland,31/05/2015,Social Enterprise Admin,Central Services,http://opendatacommunities.org/def/concept/finance/sercop/objective/102,NORTHGATE VEHICLE HIRE LTD,1434157,27/05/2015,49585,15.14,0,One day car hire for Imelda,One day car hire for Imelda,Car Allowances,Street & Traffic Management,350000
South Lakeland District Council,http://opendatacommunities.org/id/district-council/south-lakeland,31/05/2015,Policy & Partnerships,Cultural Environmental Regulatory & Planning Services,http://opendatacommunities.org/def/concept/finance/sercop/objective/104,GRANTS- MISCELLANEOUS,,20/05/2015,49589,250,0,250 towards purchasing about 10 or 11,250 towards purchasing about 10 or 11,Contributions to Organisations,Financial Services,200000
South Lakeland District Council,http://opendatacommunities.org/id/district-council/south-lakeland,31/05/2015,Democratic Services,Cultural Environmental Regulatory & Planning Services,http://opendatacommunities.org/def/concept/finance/sercop/objective/104,GRANGE OVER SANDS TOWN COUNCIL,,20/05/2015,49590,15250,0,Contribution to Community Toilets 15/16,Contribution to Community Toilets 15/16,Other Local Authorities,Financial Services,200000
South Lakeland District Council,http://opendatacommunities.org/id/district-council/south-lakeland,31/05/2015,Human Resources,Central Services,http://opendatacommunities.org/def/concept/finance/sercop/objective/102,FORBES SOLICITORS,,20/05/2015,49591,429,0,General legal advise,General legal advise,Legal & Counsels Fees,Legal Services,280000
South Lakeland District Council,http://opendatacommunities.org/id/district-council/south-lakeland,31/05/2015,Business Support Community Services,Internal Trading Accounts,,PROBRUSH T/A NORTHERN MUNICIPAL SPARES L,,20/05/2015,49592,931.2,0,Brushes 2015/16,Brushes 2015/16,Transport-Repair & Maintenance,Vehicle Management,380000
South Lakeland District Council,http://opendatacommunities.org/id/district-council/south-lakeland,31/05/2015,Business Support Community Services,Cultural Environmental Regulatory & Planning Services,http://opendatacommunities.org/def/concept/finance/sercop/objective/104,ALLSTAR BUSINESS SOLUTIONS LTD (NCR),2631112,01/05/2015,49593,38.08,0,Fuel - 22 April 2015 - Private Water Van,Fuel - 22 April 2015 - Private Water Van,Sampling & Inspection fees,Environmental Services,180000
South Lakeland District Council,http://opendatacommunities.org/id/district-council/south-lakeland,31/05/2015,Business Support Community Services,Internal Trading Accounts,,AINSWORTH'S GARAGE,,20/05/2015,49594,191.25,0,Recover SL209,Recover SL209,Transport-Repair & Maintenance,Vehicle Management,380000
South Lakeland District Council,http://opendatacommunities.org/id/district-council/south-lakeland,31/05/2015,Business Support Community Services,Internal Trading Accounts,,AINSWORTH'S GARAGE,,20/05/2015,49595,41,0,Recover SL209,Recover SL209,Vehicle - Tyres,Vehicle Management,380000
South Lakeland District Council,http://opendatacommunities.org/id/district-council/south-lakeland,31/05/2015,Social Enterprise Admin,Central Services,http://opendatacommunities.org/def/concept/finance/sercop/objective/102,Southerns Office Interiors Ltd,3478080,20/05/2015,49598,243.06,0,"2 x Monitor arm single pole,","2 x Monitor arm single pole,",Equipment Furniture Materials,Furniture & Soft Furnishings,210000
South Lakeland District Council,http://opendatacommunities.org/id/district-council/south-lakeland,31/05/2015,Lake Wardens,Cultural Environmental Regulatory & Planning Services,http://opendatacommunities.org/def/concept/finance/sercop/objective/104,RICKERBY LTD,4985069,27/05/2015,49599,80,0,1 x 12 Volt battery.,1 x 12 Volt battery.,Transport-Repair & Maintenance,Vehicle Management,380000
South Lakeland District Council,http://opendatacommunities.org/id/district-council/south-lakeland,31/05/2015,Business Support Community Services,Central Services,http://opendatacommunities.org/def/concept/finance/sercop/objective/102,Specialist Vocational Training Ltd,6682885,20/05/2015,49600,2990,0,2 x ILM LV 5 Diploma,2 x ILM LV 5 Diploma,Training Costs,Education,170000
South Lakeland District Council,http://opendatacommunities.org/id/district-council/south-lakeland,31/05/2015,Social Enterprise Admin,Highways & Transport Services,http://opendatacommunities.org/def/concept/finance/sercop/objective/107,CREDIT CALL LTD (NCR),,01/05/2015,49601,680.63,0,Credit Call Commission  2015/16,Credit Call Commission  2015/16,Credit Card Commission,Financial Services,200000
South Lakeland District Council,http://opendatacommunities.org/id/district-council/south-lakeland,31/05/2015,Social Enterprise Admin,Cultural Environmental Regulatory & Planning Services,http://opendatacommunities.org/def/concept/finance/sercop/objective/104,CONTINENTAL LANDSCAPES LTD,2108452,27/05/2015,49603,3614.62,0,Gravedigging  for April 2015 -March 2106,Gravedigging  for April 2015 -March 2106,Gravedigging,Cemetery & Crematorium,120000
South Lakeland District Council,http://opendatacommunities.org/id/district-council/south-lakeland,31/05/2015,Development Strategy,Cultural Environmental Regulatory & Planning Services,http://opendatacommunities.org/def/concept/finance/sercop/objective/104,Matchtech,2526418,20/05/2015,49605,876.27,0,Work for 12 weeks (29 hours,Amy Tawton's work for 12 weeks (29 hours,Contract & Agency staff,Consultancy,150000
South Lakeland District Council,http://opendatacommunities.org/id/district-council/south-lakeland,31/05/2015,Development Strategy,Cultural Environmental Regulatory & Planning Services,http://opendatacommunities.org/def/concept/finance/sercop/objective/104,Matchtech,2526418,27/05/2015,49606,833.17,0,Work for 12 weeks (29 hours,Amy Tawton's work for 12 weeks (29 hours,Contract & Agency staff,Consultancy,150000
South Lakeland District Council,http://opendatacommunities.org/id/district-council/south-lakeland,31/05/2015,Development Strategy,Cultural Environmental Regulatory & Planning Services,http://opendatacommunities.org/def/concept/finance/sercop/objective/104,Matchtech,2526418,20/05/2015,49607,646.43,0,Work for 12 weeks (29 hours,Amy Tawton - four weeks's work (29hrs,Contract & Agency staff,Consultancy,150000
South Lakeland District Council,http://opendatacommunities.org/id/district-council/south-lakeland,31/05/2015,Development Strategy,Cultural Environmental Regulatory & Planning Services,http://opendatacommunities.org/def/concept/finance/sercop/objective/104,Matchtech,2526418,20/05/2015,49608,825.99,0,Work for 12 weeks (29 hours,Amy Tawton - four weeks's work (29hrs,Contract & Agency staff,Consultancy,150000
South Lakeland District Council,http://opendatacommunities.org/id/district-council/south-lakeland,31/05/2015,Development Strategy,Cultural Environmental Regulatory & Planning Services,http://opendatacommunities.org/def/concept/finance/sercop/objective/104,Matchtech,2526418,20/05/2015,49609,847.54,0,Work for 12 weeks (29 hours,Amy Tawton - four weeks's work (29hrs,Contract & Agency staff,Consultancy,150000
South Lakeland District Council,http://opendatacommunities.org/id/district-council/south-lakeland,31/05/2015,Development Strategy,Cultural Environmental Regulatory & Planning Services,http://opendatacommunities.org/def/concept/finance/sercop/objective/104,Matchtech,2526418,20/05/2015,49610,818.81,0,Work for 12 weeks (29 hours,Amy Tawton - four weeks's work (29hrs,Contract & Agency staff,Consultancy,150000
South Lakeland District Council,http://opendatacommunities.org/id/district-council/south-lakeland,31/05/2015,Business Support Community Services,Internal Trading Accounts,,ARCO LIMITED,133804,27/05/2015,49611,22.3,0,Plasters,Plasters,Job Consumables,Cleaning & Janitorial,130000
South Lakeland District Council,http://opendatacommunities.org/id/district-council/south-lakeland,31/05/2015,Business Support Community Services,Internal Trading Accounts,,ARCO LIMITED,133804,27/05/2015,49611,66.9,0,Plasters,Plasters,Job Consumables,Cleaning & Janitorial,130000
South Lakeland District Council,http://opendatacommunities.org/id/district-council/south-lakeland,31/05/2015,Business Support Community Services,Cultural Environmental Regulatory & Planning Services,http://opendatacommunities.org/def/concept/finance/sercop/objective/104,GREEN BROTHERS SIGNS LTD,7433026,27/05/2015,49612,56.75,0,Argyle Street,Argyle Street,Fixtures & Fittings,Domestic Goods,160000
South Lakeland District Council,http://opendatacommunities.org/id/district-council/south-lakeland,31/05/2015,Social Enterprise Admin,Cultural Environmental Regulatory & Planning Services,http://opendatacommunities.org/def/concept/finance/sercop/objective/104,Matchtech,2526418,27/05/2015,49613,1068.19,0,TO SUPPLY DEVELOPMENT CONTROL TEAM,TO SUPPLY DEVELOPMENT CONTROL TEAM,Contract & Agency staff,Consultancy,150000
South Lakeland District Council,http://opendatacommunities.org/id/district-council/south-lakeland,31/05/2015,Coronation Hall,Cultural Environmental Regulatory & Planning Services,http://opendatacommunities.org/def/concept/finance/sercop/objective/104,FURNESS PLASTICS LTD,966727,20/05/2015,49614,95,0,"Banner on Thursday, 25","Banner for Joe McElderry on Thursday, 25",Advertising,Facilities & Management Services,190000
South Lakeland District Council,http://opendatacommunities.org/id/district-council/south-lakeland,31/05/2015,Policy & Partnerships,Cultural Environmental Regulatory & Planning Services,http://opendatacommunities.org/def/concept/finance/sercop/objective/104,South Lakeland Hydrotherapy Trust Ltd,,20/05/2015,49615,2500,0,Community Grant funding for Sandgate,Community Grant funding for Sandgate,Grants & Contribut to Vol Orga,Financial Services,200000
South Lakeland District Council,http://opendatacommunities.org/id/district-council/south-lakeland,31/05/2015,Policy & Partnerships,Cultural Environmental Regulatory & Planning Services,http://opendatacommunities.org/def/concept/finance/sercop/objective/104,BROUGHTON EAST PARISH COUNCIL,,20/05/2015,49616,346,0,Relocation of Parish Council Notice,Relocation of Parish Council Notice,Contributions to LAP Projects,Financial Services,200000
South Lakeland District Council,http://opendatacommunities.org/id/district-council/south-lakeland,31/05/2015,Business Support Community Services,Internal Trading Accounts,,JOHNSTON SWEEPERS LTD,199841,27/05/2015,49617,104.81,0,Intake ducket,Intake ducket,Transport-Repair & Maintenance,Vehicle Management,380000
South Lakeland District Council,http://opendatacommunities.org/id/district-council/south-lakeland,31/05/2015,Legal Services,External Trading Accounts,,NEWSQUEST MEDIA GROUP LTD,3102566,20/05/2015,49618,95,0,Advert re:  Disposal of Land our ref:,Advert re:  Disposal of Land our ref:,Advertising,Facilities & Management Services,190000
South Lakeland District Council,http://opendatacommunities.org/id/district-council/south-lakeland,31/05/2015,Social Enterprise Admin,Cultural Environmental Regulatory & Planning Services,http://opendatacommunities.org/def/concept/finance/sercop/objective/104,NEWSQUEST MEDIA GROUP LTD,3102566,20/05/2015,49619,95,0,PUBLIC NOTICES FOR PLANNING 1 APRIL - 31,PUBLIC NOTICES FOR PLANNING 1 APRIL - 31,Advertising,Facilities & Management Services,190000
South Lakeland District Council,http://opendatacommunities.org/id/district-council/south-lakeland,31/05/2015,Business Support Community Services,Internal Trading Accounts,,PROBRUSH T/A NORTHERN MUNICIPAL SPARES L,,20/05/2015,49620,931.2,0,Brushes 2015/16,Brushes 2015/16,Transport-Repair & Maintenance,Vehicle Management,380000
South Lakeland District Council,http://opendatacommunities.org/id/district-council/south-lakeland,31/05/2015,Business Support Community Services,Internal Trading Accounts,,DENNIS EAGLE LTD,3794455,20/05/2015,49621,51.98,0,Shims,Shims,Transport-Repair & Maintenance,Vehicle Management,380000
South Lakeland District Council,http://opendatacommunities.org/id/district-council/south-lakeland,31/05/2015,Environment and Housing,SLDC as Agent,,Springfield Hostel,,20/05/2015,49622,26000,0,Springboard Scheme Finance (Domestic,Springboard Scheme Finance (Domestic,General,Financial Services,200000
South Lakeland District Council,http://opendatacommunities.org/id/district-council/south-lakeland,31/05/2015,Democratic Services,Cultural Environmental Regulatory & Planning Services,http://opendatacommunities.org/def/concept/finance/sercop/objective/104,ARNSIDE PARISH COUNCIL,,20/05/2015,49623,7000,0,Contribution to Community Toilets 15/16,Contribution to Community Toilets 15/16,Other Local Authorities,Financial Services,200000
South Lakeland District Council,http://opendatacommunities.org/id/district-council/south-lakeland,31/05/2015,Business Support Community Services,Central Services,http://opendatacommunities.org/def/concept/finance/sercop/objective/102,Aquila Training Services,5567402,20/05/2015,49624,2079,0,1 Day Gathering Evidence,1 Day Gathering Evidence,Training Costs,Education,170000
South Lakeland District Council,http://opendatacommunities.org/id/district-council/south-lakeland,31/05/2015,Environmental Protection,Cultural Environmental Regulatory & Planning Services,http://opendatacommunities.org/def/concept/finance/sercop/objective/104,GLASDON UK LTD,2160576,20/05/2015,49625,353,0,1 off BLACK ENVIROPOL PHOENIX SEAT c/w,1 off BLACK ENVIROPOL PHOENIX SEAT c/w,Grounds Special,Horticultural,240000
South Lakeland District Council,http://opendatacommunities.org/id/district-council/south-lakeland,31/05/2015,Business Support Community Services,Housing Services,http://opendatacommunities.org/def/concept/finance/sercop/objective/108,ADECCO UK LIMITED,593232,27/05/2015,49626,118.4,0,Cleaner for Town View Fields Hostel,Cleaner for Town View Fields Hostel,Contract & Agency staff,Consultancy,150000
South Lakeland District Council,http://opendatacommunities.org/id/district-council/south-lakeland,31/05/2015,Business Support Community Services,Central Services,http://opendatacommunities.org/def/concept/finance/sercop/objective/102,NORTHGATE VEHICLE HIRE LTD,1434157,20/05/2015,49627,14.4,0,Car Hire  - 12 May 2015,Car Hire for Rachel Shaw - 12 May 2015,Public Transport,Public Transport,360000
South Lakeland District Council,http://opendatacommunities.org/id/district-council/south-lakeland,31/05/2015,Customer Services,Cultural Environmental Regulatory & Planning Services,http://opendatacommunities.org/def/concept/finance/sercop/objective/104,RIGHT 2 WORK,,20/05/2015,49628,3089,0,bulky waste payments,bulky waste payments,Bulky Waste Scheme,Environmental Services,180000
South Lakeland District Council,http://opendatacommunities.org/id/district-council/south-lakeland,31/05/2015,Business Support Community Services,Internal Trading Accounts,,JOHNSTON SWEEPERS LTD,199841,27/05/2015,49629,81.71,0,Intake ducket,Intake ducket,Transport-Repair & Maintenance,Vehicle Management,380000
South Lakeland District Council,http://opendatacommunities.org/id/district-council/south-lakeland,31/05/2015,ICT Group,Central Services,http://opendatacommunities.org/def/concept/finance/sercop/objective/102,Insight Direct (Uk) Ltd,2579852,20/05/2015,49630,3702.5,0,"0003609247  Lenovo B50-70 80EU15.6"" -","0003609247  Lenovo B50-70 80EU15.6"" -",Purchase of IT Equipment,Information Communication Technology,270000
South Lakeland District Council,http://opendatacommunities.org/id/district-council/south-lakeland,31/05/2015,Business Support Community Services,Transport Planning Policy,http://opendatacommunities.org/def/concept/finance/sercop/objective/107,ARCO LIMITED,133804,27/05/2015,49631,4.76,0,PPE 2015/16,PPE 2015/16,Cleaning Supplies & Services,Cleaning & Janitorial,130000
South Lakeland District Council,http://opendatacommunities.org/id/district-council/south-lakeland,31/05/2015,ICT Group,Central Services,http://opendatacommunities.org/def/concept/finance/sercop/objective/102,Insight Direct (Uk) Ltd,2579852,20/05/2015,49632,43.26,0,"0003609247  Lenovo B50-70 80EU15.6"" -","0003609247  Lenovo B50-70 80EU15.6"" -",Computer-Supplies,Information Communication Technology,270000
South Lakeland District Council,http://opendatacommunities.org/id/district-council/south-lakeland,31/05/2015,Revenues and Benefits,Central Services,http://opendatacommunities.org/def/concept/finance/sercop/objective/102,PITNEY BOWES LTD,182037,20/05/2015,49633,563.3,0,2015-2016   Stationery & office,2015-2016   Stationery & office,Stationery/Office Supplies,Stationery,340000
South Lakeland District Council,http://opendatacommunities.org/id/district-council/south-lakeland,31/05/2015,Social Enterprise Admin,Cultural Environmental Regulatory & Planning Services,http://opendatacommunities.org/def/concept/finance/sercop/objective/104,NEWSQUEST MEDIA GROUP LTD,3102566,20/05/2015,49634,95,0,PUBLIC NOTICES FOR PLANNING 1 APRIL - 31,PUBLIC NOTICES FOR PLANNING 1 APRIL - 31,Advertising,Facilities & Management Services,190000
South Lakeland District Council,http://opendatacommunities.org/id/district-council/south-lakeland,31/05/2015,Environment and Housing,Housing Services,http://opendatacommunities.org/def/concept/finance/sercop/objective/108,LANDMARK INFORMATION GROUP LIMITED,2892803,27/05/2015,49639,271.16,0,Bulk Data Request,Bulk Data Request,Other Consultants,Consultancy,150000
South Lakeland District Council,http://opendatacommunities.org/id/district-council/south-lakeland,31/05/2015,Electoral Services,Central Services,http://opendatacommunities.org/def/concept/finance/sercop/objective/102,Elections Claims Unit,,20/05/2015,49640,500,0,Forfeited deposit following UK,Forfeited deposit following UK,Election Costs,,
South Lakeland District Council,http://opendatacommunities.org/id/district-council/south-lakeland,31/05/2015,Business Support Community Services,Housing Services,http://opendatacommunities.org/def/concept/finance/sercop/objective/108,D Womack ESQ & Mrs A Womack,,20/05/2015,49643,500,0,Monthly rent for 6 Fellside Court,Monthly rent for 6 Fellside Court,Homelessness Prevention,Social Community Care Supplies & Services,410000
South Lakeland District Council,http://opendatacommunities.org/id/district-council/south-lakeland,31/05/2015,Business Support Community Services,Housing Services,http://opendatacommunities.org/def/concept/finance/sercop/objective/108,Martin Smith,,20/05/2015,49644,625,0,"Monthly rent for 92 Bleaswood Road,","Monthly rent for 92 Bleaswood Road,",Homelessness Prevention,Social Community Care Supplies & Services,410000
South Lakeland District Council,http://opendatacommunities.org/id/district-council/south-lakeland,31/05/2015,Business Support Community Services,Housing Services,http://opendatacommunities.org/def/concept/finance/sercop/objective/108,Peter Marshall,7803122,20/05/2015,49645,500,0,Monthly rent for 15 Fleece Inn Yard,Monthly rent for 15 Fleece Inn Yard,Homelessness Prevention,Social Community Care Supplies & Services,410000
South Lakeland District Council,http://opendatacommunities.org/id/district-council/south-lakeland,31/05/2015,Business Support Community Services,Housing Services,http://opendatacommunities.org/def/concept/finance/sercop/objective/108,William Jackson,,20/05/2015,49646,520,0,"Monthly rent for 3 Thornthwaite Flats,","Monthly rent for 3 Thornthwaite Flats,",Homelessness Prevention,Social Community Care Supplies & Services,410000
South Lakeland District Council,http://opendatacommunities.org/id/district-council/south-lakeland,31/05/2015,Development Implementation,Central Services,http://opendatacommunities.org/def/concept/finance/sercop/objective/102,ANTHONY COLLINS SOLICITORS,OC313432,20/05/2015,49648,1295,0,Tackal exemption advice,Tackal exemption advice,Other Consultants,Consultancy,150000
South Lakeland District Council,http://opendatacommunities.org/id/district-council/south-lakeland,31/05/2015,Democratic Services,Central Services,http://opendatacommunities.org/def/concept/finance/sercop/objective/102,STEELES REMOVALS LTD,3082686,27/05/2015,49650,336,0,Removal costs - Ulverston town Hall to,Removal costs - Ulverston town Hall to,Contract payments,Financial Services,200000
South Lakeland District Council,http://opendatacommunities.org/id/district-council/south-lakeland,31/05/2015,Legal Services,Central Services,http://opendatacommunities.org/def/concept/finance/sercop/objective/102,WEIGHTMANS LLP,OC326117,27/05/2015,49651,902,0,Fees ,Fees for Tom Murphy  re:  Mrs Deena,Legal & Counsels Fees,Legal Services,280000
South Lakeland District Council,http://opendatacommunities.org/id/district-council/south-lakeland,31/05/2015,Legal Services,Central Services,http://opendatacommunities.org/def/concept/finance/sercop/objective/102,Sellick Partnership Group Ltd,4156002,27/05/2015,49652,1077.3,0,Wages from w/k ending,Wages for Caroline Laver from w/k ending,Contract & Agency staff,Consultancy,150000
South Lakeland District Council,http://opendatacommunities.org/id/district-council/south-lakeland,31/05/2015,Development Implementation,Central Services,http://opendatacommunities.org/def/concept/finance/sercop/objective/102,NPS GROUP LTD,6614601,27/05/2015,49653,375,0,Communal Heating Systems Information,Communal Heating Systems Information,NPS - Property Works,"Works - Construction, Repair & Maintenance",390000
South Lakeland District Council,http://opendatacommunities.org/id/district-council/south-lakeland,31/05/2015,Development Implementation,Cultural Environmental Regulatory & Planning Services,http://opendatacommunities.org/def/concept/finance/sercop/objective/104,NPS GROUP LTD,6614601,27/05/2015,49654,1000,0,Work to get permissions for WiFi,Work to get permissions for WiFi,Economic Development Fund,Environmental Services,180000
South Lakeland District Council,http://opendatacommunities.org/id/district-council/south-lakeland,31/05/2015,Environmental Protection,Cultural Environmental Regulatory & Planning Services,http://opendatacommunities.org/def/concept/finance/sercop/objective/104,LITTLE & CAINE LTD,4524383,27/05/2015,49658,970,0,Carry our Public Health burial ,Carry our Public Health burial of James,Other Consultants,Consultancy,150000
South Lakeland District Council,http://opendatacommunities.org/id/district-council/south-lakeland,31/05/2015,Policy & Partnerships,Cultural Environmental Regulatory & Planning Services,http://opendatacommunities.org/def/concept/finance/sercop/objective/104,FURNESS NEWSPAPERS LTD,1155841,27/05/2015,49659,310.8,0, North West Evening Mail on 14 May 2015, North West Evening Mail on 14 May 2015,Advertising,Facilities & Management Services,190000
South Lakeland District Council,http://opendatacommunities.org/id/district-council/south-lakeland,31/05/2015,Social Enterprise Admin,Cultural Environmental Regulatory & Planning Services,http://opendatacommunities.org/def/concept/finance/sercop/objective/104,FURNESS NEWSPAPERS LTD,1155841,27/05/2015,49660,103.6,0,PUBLIC NOTICES FOR PLANNING 1 APRIL 2015,PUBLIC NOTICES FOR PLANNING 1 APRIL 2015,Advertising,Facilities & Management Services,190000
South Lakeland District Council,http://opendatacommunities.org/id/district-council/south-lakeland,31/05/2015,Social Enterprise Admin,SLDC as Agent,,PAY BY PHONE (PAYPOINT),,27/05/2015,49664,212.09,0,Pay-by-phone charges from 1 April 2015,Pay-by-phone charges from 1 April 2015,General,Financial Services,200000
South Lakeland District Council,http://opendatacommunities.org/id/district-council/south-lakeland,31/05/2015,Business Support Community Services,Internal Trading Accounts,,BRIAN ARMISTEAD LTD T/A SINKFALL RECYCLI,4133280,27/05/2015,49665,1125.2,0,Green waste tipping - 2015/16,Green waste tipping - 2015/16,Tipping & Disposal Charges,Environmental Services,180000
South Lakeland District Council,http://opendatacommunities.org/id/district-council/south-lakeland,31/05/2015,Printing Section,Central Services,http://opendatacommunities.org/def/concept/finance/sercop/objective/102,ROSEFOX PAPER LIMITED,1655083,27/05/2015,49666,655.32,0,Pallet of Paper One A4 80gsm,Pallet of Paper One A4 80gsm,Paper Supplies,Stationery,340000
South Lakeland District Council,http://opendatacommunities.org/id/district-council/south-lakeland,31/05/2015,Business Support Community Services,Central Services,http://opendatacommunities.org/def/concept/finance/sercop/objective/102,CIVICA UK LTD,1628868,27/05/2015,49670,2207.3,0,"APP Connector bundle - annual Licence,","APP Connector bundle - annual Licence,",Software Maintenance,Information Communication Technology,270000
South Lakeland District Council,http://opendatacommunities.org/id/district-council/south-lakeland,31/05/2015,Electoral Services,Central Services,http://opendatacommunities.org/def/concept/finance/sercop/objective/102,SCI PRINT LTD,,27/05/2015,49671,7753.2,0,Parliamentary Ballot Papers,Parliamentary Ballot Papers,Printing,Stationery,340000
South Lakeland District Council,http://opendatacommunities.org/id/district-council/south-lakeland,31/05/2015,Electoral Services,Central Services,http://opendatacommunities.org/def/concept/finance/sercop/objective/102,SCI PRINT LTD,,27/05/2015,49672,4615.08,0,District Ballot Papers,District Ballot Papers,Printing,Stationery,340000
South Lakeland District Council,http://opendatacommunities.org/id/district-council/south-lakeland,31/05/2015,Electoral Services,Central Services,http://opendatacommunities.org/def/concept/finance/sercop/objective/102,SCI PRINT LTD,,27/05/2015,49673,1012,0,Parish Ballot Papers,Parish Ballot Papers,Printing,Stationery,340000
South Lakeland District Council,http://opendatacommunities.org/id/district-council/south-lakeland,31/05/2015,Electoral Services,Central Services,http://opendatacommunities.org/def/concept/finance/sercop/objective/102,SCI PRINT LTD,,27/05/2015,49674,524.1,0,County By-Election Ballot Papers,County By-Election Ballot Papers,Printing,Stationery,340000
South Lakeland District Council,http://opendatacommunities.org/id/district-council/south-lakeland,31/05/2015,Electoral Services,Central Services,http://opendatacommunities.org/def/concept/finance/sercop/objective/102,SCI PRINT LTD,,27/05/2015,49675,1787.38,0,County By-Election Poll Cards,County By-Election Poll Cards,Printing,Stationery,340000
South Lakeland District Council,http://opendatacommunities.org/id/district-council/south-lakeland,31/05/2015,Electoral Services,Central Services,http://opendatacommunities.org/def/concept/finance/sercop/objective/102,SCI PRINT LTD,,27/05/2015,49676,6669.33,0,District Posatl Packs,District Posatl Packs,Printing,Stationery,340000
South Lakeland District Council,http://opendatacommunities.org/id/district-council/south-lakeland,31/05/2015,Electoral Services,Central Services,http://opendatacommunities.org/def/concept/finance/sercop/objective/102,SCI PRINT LTD,,27/05/2015,49676,13138.67,0,District Posatl Packs,District Posatl Packs,Printing,Stationery,340000
South Lakeland District Council,http://opendatacommunities.org/id/district-council/south-lakeland,31/05/2015,Electoral Services,Central Services,http://opendatacommunities.org/def/concept/finance/sercop/objective/102,SCI PRINT LTD,,27/05/2015,49676,9230.55,0,District Posatl Packs,District Posatl Packs,Postages,Mail Services,300000
South Lakeland District Council,http://opendatacommunities.org/id/district-council/south-lakeland,31/05/2015,Human Resources,Central Services,http://opendatacommunities.org/def/concept/finance/sercop/objective/102,Sarah Ruston,,27/05/2015,49680,400,0,SmartArt session,SmartArt session,Training Costs,Education,170000
South Lakeland District Council,http://opendatacommunities.org/id/district-council/south-lakeland,31/05/2015,Legal Services,Central Services,http://opendatacommunities.org/def/concept/finance/sercop/objective/102,4-5 GRAYS INN SQUARE BARRISTERS,,27/05/2015,49685,500,0,Fees in respect of  advice ,Fees in respect of  advice -Tim Straker,Legal & Counsels Fees,Legal Services,280000
South Lakeland District Council,http://opendatacommunities.org/id/district-council/south-lakeland,31/05/2015,ICT Group,Central Services,http://opendatacommunities.org/def/concept/finance/sercop/objective/102,MERITEC LTD,3224622,27/05/2015,49686,6750,0,Emergency Web Support Resource covering,Emergency Web Support Resource covering,Contract & Agency staff,Consultancy,150000
South Lakeland District Council,http://opendatacommunities.org/id/district-council/south-lakeland,31/05/2015,Business Support Community Services,Housing Services,http://opendatacommunities.org/def/concept/finance/sercop/objective/108,James Andrews Recruitment Solutions,6834852,27/05/2015,49687,712.5,0,Payment for  - Housing,Payment for John Hunter - Housing,Contract & Agency staff,Consultancy,150000
South Lakeland District Council,http://opendatacommunities.org/id/district-council/south-lakeland,31/05/2015,Business Support Community Services,Housing Services,http://opendatacommunities.org/def/concept/finance/sercop/objective/108,James Andrews Recruitment Solutions,6834852,27/05/2015,49688,925,0,Payment for - Housing,Payment for John Hunter - Housing,Contract & Agency staff,Consultancy,150000
South Lakeland District Council,http://opendatacommunities.org/id/district-council/south-lakeland,31/05/2015,Lake Wardens,Cultural Environmental Regulatory & Planning Services,http://opendatacommunities.org/def/concept/finance/sercop/objective/104,We Love Logos,,27/05/2015,49689,113.45,0,1 x Pair of RG227 Regatta Action,1 x Pair of RG227 Regatta Action,Protective Clothing & Uniforms,Clothing,140000
South Lakeland District Council,http://opendatacommunities.org/id/district-council/south-lakeland,31/05/2015,Social Enterprise Admin,Cultural Environmental Regulatory & Planning Services,http://opendatacommunities.org/def/concept/finance/sercop/objective/104,HAGS-SMP Ltd,908021,27/05/2015,49690,17788,0,"Provision for consultation, design,","Provision for consultation, design,",Grounds Special,Horticultural,240000
South Lakeland District Council,http://opendatacommunities.org/id/district-council/south-lakeland,31/05/2015,Social Enterprise Admin,Cultural Environmental Regulatory & Planning Services,http://opendatacommunities.org/def/concept/finance/sercop/objective/104,HAGS-SMP Ltd,908021,27/05/2015,49690,13400,0,"Provision for consultation, design,","Provision for consultation, design,",Playground Equipment,Sports & Playground Equipment & Maintenance,330000
South Lakeland District Council,http://opendatacommunities.org/id/district-council/south-lakeland,31/05/2015,Lake Wardens,Cultural Environmental Regulatory & Planning Services,http://opendatacommunities.org/def/concept/finance/sercop/objective/104,THE NATIONAL TRUST,,27/05/2015,49691,362.5,0,"Rent of Land at Lake Wardens Office,","Rent of Land at Lake Wardens Office,",Rent,Housing Management,250000
South Lakeland District Council,http://opendatacommunities.org/id/district-council/south-lakeland,31/05/2015,Policy & Partnerships,Central Services,http://opendatacommunities.org/def/concept/finance/sercop/objective/102,FLORENCE MADDEN,,27/05/2015,49694,600,0,Attending NLP Practitioner,Claire Gould attending NLP Practitioner,Training Costs,Education,170000
South Lakeland District Council,http://opendatacommunities.org/id/district-council/south-lakeland,31/05/2015,Business Support Community Services,Internal Trading Accounts,,ARCO LIMITED,133804,27/05/2015,49695,74.99,0,Trainers,Trainers,Protective Clothing & Uniforms,Clothing,140000
South Lakeland District Council,http://opendatacommunities.org/id/district-council/south-lakeland,31/05/2015,Legal Services,Central Services,http://opendatacommunities.org/def/concept/finance/sercop/objective/102,Lawyers in Local Government (Membership),,27/05/2015,49697,300,0,Membership renewal Group fee for Lawyers,Membership renewal Group fee for Lawyers,Training Costs,Education,170000
South Lakeland District Council,http://opendatacommunities.org/id/district-council/south-lakeland,31/05/2015,Business Support Community Services,Internal Trading Accounts,,HAKO MACHINES LIMITED,1414225,27/05/2015,49701,84.56,0,Hose,Hose,Transport-Uninsured Damage,Vehicle Management,380000
South Lakeland District Council,http://opendatacommunities.org/id/district-council/south-lakeland,31/05/2015,Lake Wardens,Cultural Environmental Regulatory & Planning Services,http://opendatacommunities.org/def/concept/finance/sercop/objective/104,SHORROCK TRICHEM,4179799,27/05/2015,49707,87.25,0,6 x Boxes of Hostess Handtowels,6 x Boxes of Hostess Handtowels,Cleaning Supplies & Services,Cleaning & Janitorial,130000
South Lakeland District Council,http://opendatacommunities.org/id/district-council/south-lakeland,31/05/2015,Lake Wardens,Cultural Environmental Regulatory & Planning Services,http://opendatacommunities.org/def/concept/finance/sercop/objective/104,CPC,,27/05/2015,49708,20.64,0,8 x Packs of Black Cable Ties,8 x Packs of Black Cable Ties,Piers,Arts & Leisure Services,290000
South Lakeland District Council,http://opendatacommunities.org/id/district-council/south-lakeland,31/05/2015,Lake Wardens,Cultural Environmental Regulatory & Planning Services,http://opendatacommunities.org/def/concept/finance/sercop/objective/104,CPC,,27/05/2015,49708,38.66,0,8 x Packs of Black Cable Ties,8 x Packs of Black Cable Ties,Equipment Furniture Materials,Furniture & Soft Furnishings,210000
South Lakeland District Council,http://opendatacommunities.org/id/district-council/south-lakeland,31/05/2015,Policy & Partnerships,Cultural Environmental Regulatory & Planning Services,http://opendatacommunities.org/def/concept/finance/sercop/objective/104,GRANTS- MISCELLANEOUS,,27/05/2015,49711,500,0,Car park fund,Car park fund,Contributions to Organisations,Financial Services,200000
South Lakeland District Council,http://opendatacommunities.org/id/district-council/south-lakeland,31/05/2015,Environmental Protection,Cultural Environmental Regulatory & Planning Services,http://opendatacommunities.org/def/concept/finance/sercop/objective/104,COOPER ENGRAVING,,27/05/2015,49712,32,0,1 off brushed S/S seat plaque Cllr.,1 off brushed S/S seat plaque Cllr.,Grounds Special,Horticultural,240000
South Lakeland District Council,http://opendatacommunities.org/id/district-council/south-lakeland,31/05/2015,Revenues and Benefits,Central Services,http://opendatacommunities.org/def/concept/finance/sercop/objective/102,LOOMIS UK LTD,3200432,27/05/2015,49713,101.53,0,2015-16  Langstone House Surcharge,2015-16  Langstone House Surcharge,Postages,Mail Services,300000
South Lakeland District Council,http://opendatacommunities.org/id/district-council/south-lakeland,31/05/2015,Revenues and Benefits,Highways & Transport Services,http://opendatacommunities.org/def/concept/finance/sercop/objective/107,LOOMIS UK LTD,3200432,27/05/2015,49713,914.6,0,2015-16  Langstone House Surcharge,2015-16  Langstone House Surcharge,Private Contractos gen,Consultancy,150000
South Lakeland District Council,http://opendatacommunities.org/id/district-council/south-lakeland,31/05/2015,Development Implementation,Central Services,http://opendatacommunities.org/def/concept/finance/sercop/objective/102,LAKES TRAINING SOLUTIONS LTD,7541345,27/05/2015,49714,500,0,Dealing with Agression Training for SLDC,Dealing with Agression Training for SLDC,Training Costs,Education,170000
South Lakeland District Council,http://opendatacommunities.org/id/district-council/south-lakeland,31/05/2015,Development Management,Cultural Environmental Regulatory & Planning Services,http://opendatacommunities.org/def/concept/finance/sercop/objective/104,LABC,,27/05/2015,49715,1928.79,0,LABC Service Fee 2015 - 2016,LABC Service Fee 2015 - 2016,Subscriptions to Associations,Financial Services,200000
South Lakeland District Council,http://opendatacommunities.org/id/district-council/south-lakeland,31/05/2015,Development Implementation,Central Services,http://opendatacommunities.org/def/concept/finance/sercop/objective/102,STEELES REMOVALS LTD,3082686,27/05/2015,49716,36.43,0,Crate Hire For Ulverston Coronation Hall,Crate Hire For Ulverston Coronation Hall,Contract payments,Financial Services,200000
South Lakeland District Council,http://opendatacommunities.org/id/district-council/south-lakeland,31/05/2015,Development Implementation,Central Services,http://opendatacommunities.org/def/concept/finance/sercop/objective/102,STEELES REMOVALS LTD,3082686,27/05/2015,49717,-12.86,0,Crate Hire For Ulverston Coronation Hall,Crate Hire For Ulverston Coronation Hall,Contract payments,Financial Services,200000
South Lakeland District Council,http://opendatacommunities.org/id/district-council/south-lakeland,31/05/2015,Electoral Services,Central Services,http://opendatacommunities.org/def/concept/finance/sercop/objective/102,ASSOCIATION OF ELECTORAL ADMINISTRATORS,2406897,27/05/2015,49718,488,0,HEF Training Carlisle 5 June,HEF Training Carlisle 5 June,Training Costs,Education,170000
South Lakeland District Council,http://opendatacommunities.org/id/district-council/south-lakeland,31/05/2015,Business Support Community Services,Housing Services,http://opendatacommunities.org/def/concept/finance/sercop/objective/108,Landlord,,27/05/2015,49720,1414.43,0,Rent in advance ,Rent in advance for Anne Marie,Homelessness Prevention,Social Community Care Supplies & Services,410000
South Lakeland District Council,http://opendatacommunities.org/id/district-council/south-lakeland,31/05/2015,Business Support Community Services,Housing Services,http://opendatacommunities.org/def/concept/finance/sercop/objective/108,Landlord,7009105,27/05/2015,49721,480,0,Monthly rent ,"Monthly rent for 18a Bleaswood Road,",Homelessness Prevention,Social Community Care Supplies & Services,410000
South Lakeland District Council,http://opendatacommunities.org/id/district-council/south-lakeland,31/05/2015,Business Support Community Services,Housing Services,http://opendatacommunities.org/def/concept/finance/sercop/objective/108,Landlord,,27/05/2015,49722,400,0,Monthly rent ,"Monthly rent for 7 Kentdale Flats, Main",Homelessness Prevention,Social Community Care Supplies & Services,410000
South Lakeland District Council,http://opendatacommunities.org/id/district-council/south-lakeland,31/05/2015,Business Support Community Services,Housing Services,http://opendatacommunities.org/def/concept/finance/sercop/objective/108,Landlord,,27/05/2015,49723,480,0,Monthly rent ,"Monthly rent for 10 Longpool, Kendal",Homelessness Prevention,Social Community Care Supplies & Services,410000
South Lakeland District Council,http://opendatacommunities.org/id/district-council/south-lakeland,31/05/2015,Business Support Community Services,Housing Services,http://opendatacommunities.org/def/concept/finance/sercop/objective/108,Landlord,,27/05/2015,49724,475,0,Monthly rent ,"Monthly rent for 6 White Moss Court,",Homelessness Prevention,Social Community Care Supplies & Services,410000
South Lakeland District Council,http://opendatacommunities.org/id/district-council/south-lakeland,31/05/2015,Business Support Community Services,Housing Services,http://opendatacommunities.org/def/concept/finance/sercop/objective/108,Landlord,,27/05/2015,49725,500,0,Monthly rent ,"Monthly rent for 8 White Moss Court,",Homelessness Prevention,Social Community Care Supplies & Services,410000
South Lakeland District Council,http://opendatacommunities.org/id/district-council/south-lakeland,31/05/2015,Business Support Community Services,Housing Services,http://opendatacommunities.org/def/concept/finance/sercop/objective/108,Landlord,,27/05/2015,49726,625,0,Monthly rent ,"Monthly rent for 75 Hallgarth Circle,",Homelessness Prevention,Social Community Care Supplies & Services,410000
South Lakeland District Council,http://opendatacommunities.org/id/district-council/south-lakeland,31/05/2015,Business Support Community Services,Housing Services,http://opendatacommunities.org/def/concept/finance/sercop/objective/108,Landlord,,27/05/2015,49727,500,0,Monthly rent ,"Monthly rent for 33 Lowther Park, Kendal",Homelessness Prevention,Social Community Care Supplies & Services,410000
South Lakeland District Council,http://opendatacommunities.org/id/district-council/south-lakeland,31/05/2015,Business Support Community Services,Housing Services,http://opendatacommunities.org/def/concept/finance/sercop/objective/108,Landlord,,27/05/2015,49728,500,0,Monthly rent ,"Monthly rent for 7 Fellside Court,",Homelessness Prevention,Social Community Care Supplies & Services,410000
South Lakeland District Council,http://opendatacommunities.org/id/district-council/south-lakeland,31/05/2015,Business Support Community Services,Housing Services,http://opendatacommunities.org/def/concept/finance/sercop/objective/108,Landlord,,27/05/2015,49729,410,0,Monthly rent ,"Monthly rent for Flat 3, 13 New Road,",Homelessness Prevention,Social Community Care Supplies & Services,410000
South Lakeland District Council,http://opendatacommunities.org/id/district-council/south-lakeland,31/05/2015,Business Support Community Services,Housing Services,http://opendatacommunities.org/def/concept/finance/sercop/objective/108,Landlord,,27/05/2015,49730,625,0,Monthly rent ,"Monthly rent for Benson View, 3",Homelessness Prevention,Social Community Care Supplies & Services,410000
South Lakeland District Council,http://opendatacommunities.org/id/district-council/south-lakeland,31/05/2015,Business Support Community Services,Housing Services,http://opendatacommunities.org/def/concept/finance/sercop/objective/108,Landlord,,27/05/2015,49731,500,0,Monthly rent ,"Monthly rent for 37 Chambers Close,",Homelessness Prevention,Social Community Care Supplies & Services,410000
South Lakeland District Council,http://opendatacommunities.org/id/district-council/south-lakeland,31/05/2015,Democratic Services,Cultural Environmental Regulatory & Planning Services,http://opendatacommunities.org/def/concept/finance/sercop/objective/104,ULVERSTON TOWN COUNCIL,,27/05/2015,49733,15500,0,Contribution to Community Toilets 15/16,Contribution to Community Toilets 15/16,Other Local Authorities,Financial Services,200000
South Lakeland District Council,http://opendatacommunities.org/id/district-council/south-lakeland,31/05/2015,Business Support Community Services,Internal Trading Accounts,,STAGECOACH NORTHWEST,,27/05/2015,49734,125,0,Steam cleaning 01/04/15 - 31/03/16,Steam cleaning 01/04/15 - 31/03/16,MOT/Servicing Costs,Vehicle Management,380000
South Lakeland District Council,http://opendatacommunities.org/id/district-council/south-lakeland,31/05/2015,Business Support Community Services,Internal Trading Accounts,,AINSWORTH'S GARAGE,,27/05/2015,49735,162.5,0,Recover SL162,Recover SL162,Vehicle Insured Damage,,
South Lakeland District Council,http://opendatacommunities.org/id/district-council/south-lakeland,31/05/2015,Business Support Community Services,Internal Trading Accounts,,M G D LTD,,27/05/2015,49736,35,0,MOTs 01/04/15 - 31/03/16,MOTs 01/04/15 - 31/03/16,MOT/Servicing Costs,Vehicle Management,380000
South Lakeland District Council,http://opendatacommunities.org/id/district-council/south-lakeland,31/05/2015,Business Support Community Services,Cultural Environmental Regulatory & Planning Services,http://opendatacommunities.org/def/concept/finance/sercop/objective/104,CUMBRIA WASTE RECYCLING LTD,3162439,27/05/2015,49737,12017.3,0,Empty recycling banks in 2015/16,Empty recycling banks in 2015/16,Empty recycling banks,Environmental Services,180000
South Lakeland District Council,http://opendatacommunities.org/id/district-council/south-lakeland,31/05/2015,Business Support Community Services,Internal Trading Accounts,,Masterstaff Limited,2777593,27/05/2015,49738,1220.63,0,Agency staff - May 2015,Agency staff - May 2015,Contract & Agency staff,Consultancy,150000
South Lakeland District Council,http://opendatacommunities.org/id/district-council/south-lakeland,31/05/2015,Business Support Community Services,Internal Trading Accounts,,Masterstaff Limited,2777593,27/05/2015,49739,399.6,0,Agency staff - May 2015,Agency staff - May 2015,Contract & Agency staff,Consultancy,150000
South Lakeland District Council,http://opendatacommunities.org/id/district-council/south-lakeland,31/05/2015,Business Support Community Services,Internal Trading Accounts,,LANCASTER TRAINING SERVICES LTD,1447612,27/05/2015,49740,847.92,0,Training 2015/16,Training 2015/16,Training Costs,Education,170000
South Lakeland District Council,http://opendatacommunities.org/id/district-council/south-lakeland,31/05/2015,Business Support Community Services,Internal Trading Accounts,,PIER 1 METALWORKS LTD,4291520,27/05/2015,49741,22.42,0,Steel,Steel,Transport-Repair & Maintenance,Vehicle Management,380000
South Lakeland District Council,http://opendatacommunities.org/id/district-council/south-lakeland,31/05/2015,Business Support Community Services,Internal Trading Accounts,,RIBBLE FUEL OILS,,27/05/2015,49742,1050,0,Gas oil - Ulverston,Gas oil - Ulverston,Job Consumables,Cleaning & Janitorial,130000
South Lakeland District Council,http://opendatacommunities.org/id/district-council/south-lakeland,31/05/2015,Business Support Community Services,Internal Trading Accounts,,M G D LTD,,27/05/2015,49743,35,0,MOTs 01/04/15 - 31/03/16,MOTs 01/04/15 - 31/03/16,MOT/Servicing Costs,Vehicle Management,380000
South Lakeland District Council,http://opendatacommunities.org/id/district-council/south-lakeland,31/05/2015,Business Support Community Services,Internal Trading Accounts,,M G D LTD,,27/05/2015,49745,90,0,MOTs 01/04/15 - 31/03/16,MOTs 01/04/15 - 31/03/16,Vehicle - Tyres,Vehicle Management,380000
South Lakeland District Council,http://opendatacommunities.org/id/district-council/south-lakeland,31/05/2015,Business Support Community Services,Internal Trading Accounts,,M G D LTD,,27/05/2015,49745,35,0,MOTs 01/04/15 - 31/03/16,MOTs 01/04/15 - 31/03/16,MOT/Servicing Costs,Vehicle Management,380000
South Lakeland District Council,http://opendatacommunities.org/id/district-council/south-lakeland,31/05/2015,Business Support Community Services,Central Services,http://opendatacommunities.org/def/concept/finance/sercop/objective/102,CUMBRIA WASTE MANAGEMENT LIMITED,2665973,27/05/2015,49746,276.25,0,COTC cover at Ecclerigg - 2015/16,COTC cover at Ecclerigg - 2015/16,Other Consultants,Consultancy,150000
South Lakeland District Council,http://opendatacommunities.org/id/district-council/south-lakeland,31/05/2015,Business Support Community Services,Internal Trading Accounts,,AUTOMOTIVE GLAZING SOLUTIONS,5922870,27/05/2015,49747,45,0,Repair SL072,Repair SL072,Transport-Uninsured Damage,Vehicle Management,380000
South Lakeland District Council,http://opendatacommunities.org/id/district-council/south-lakeland,31/05/2015,Business Support Community Services,Internal Trading Accounts,,M G D LTD,,27/05/2015,49748,35,0,MOTs 01/04/15 - 31/03/16,MOTs 01/04/15 - 31/03/16,MOT/Servicing Costs,Vehicle Management,380000
South Lakeland District Council,http://opendatacommunities.org/id/district-council/south-lakeland,31/05/2015,Business Support Community Services,Central Services,http://opendatacommunities.org/def/concept/finance/sercop/objective/102,CUMBRIA WASTE MANAGEMENT LIMITED,2665973,27/05/2015,49749,65,0,COTC cover at Ecclerigg - 2015/16,COTC cover at Ecclerigg - 2015/16,Other Consultants,Consultancy,150000
South Lakeland District Council,http://opendatacommunities.org/id/district-council/south-lakeland,31/05/2015,Business Support Community Services,Internal Trading Accounts,,J R RICHARDSON LTD,2225792,27/05/2015,49750,219.92,0,Vehicle washing consumables,Vehicle washing consumables,Job Consumables,Cleaning & Janitorial,130000
South Lakeland District Council,http://opendatacommunities.org/id/district-council/south-lakeland,31/05/2015,Electoral Services,Central Services,http://opendatacommunities.org/def/concept/finance/sercop/objective/102,ROYAL MAIL GROUP PLC,,27/05/2015,49751,2694.12,0,Local Election Return Postal Votes,Local Election Return Postal Votes,Postages,Mail Services,300000
South Lakeland District Council,http://opendatacommunities.org/id/district-council/south-lakeland,31/05/2015,Electoral Services,Central Services,http://opendatacommunities.org/def/concept/finance/sercop/objective/102,ROYAL MAIL GROUP PLC,,27/05/2015,49751,4936.36,0,Local Election Return Postal Votes,Local Election Return Postal Votes,Postages,Mail Services,300000
South Lakeland District Council,http://opendatacommunities.org/id/district-council/south-lakeland,31/05/2015,Revenues and Benefits,Central Services,http://opendatacommunities.org/def/concept/finance/sercop/objective/102,VENN GROUP RECRUITMENT SOLUTIONS,,27/05/2015,49752,816.63,0,April 2015,April 2015 Vicky McDonald,Contract & Agency staff,Consultancy,150000
South Lakeland District Council,http://opendatacommunities.org/id/district-council/south-lakeland,31/05/2015,Business Support Community Services,Housing Services,http://opendatacommunities.org/def/concept/finance/sercop/objective/108,Vigilant Security Services UK Ltd,5914271,27/05/2015,49756,2960.08,0,Monthly payment for the security Guard,Monthly payment for the security Guard,Security Services,Human Resources,260000
South Lakeland District Council,http://opendatacommunities.org/id/district-council/south-lakeland,31/05/2015,Business Support Community Services,SLDC as Agent,,JOANNA SMAILES,,27/05/2015,49757,1800,0,"Project Management, Cumbria NSNO &","Project Management, Cumbria NSNO &",General,Financial Services,200000
South Lakeland District Council,http://opendatacommunities.org/id/district-council/south-lakeland,31/05/2015,Business Support Community Services,SLDC as Agent,,JOANNA SMAILES,,27/05/2015,49758,20.7,0,NSNO Project Manager Expenses,NSNO Project Manager Expenses,General,Financial Services,200000
South Lakeland District Council,http://opendatacommunities.org/id/district-council/south-lakeland,31/05/2015,Revenues and Benefits,Central Services,http://opendatacommunities.org/def/concept/finance/sercop/objective/102,PITNEY BOWES LTD,182037,27/05/2015,49762,455,0,2015-2016   Stationery & office,2015-2016   Stationery & office,Stationery/Office Supplies,Stationery,340000
South Lakeland District Council,http://opendatacommunities.org/id/district-council/south-lakeland,31/05/2015,Development Management,Cultural Environmental Regulatory & Planning Services,http://opendatacommunities.org/def/concept/finance/sercop/objective/104,CHRIS BOWKER LTD,1642561,27/05/2015,49764,45,0,Checking of electrical work under Part P,Checking of electrical work under Part P,Electrican Inspection,Facilities & Management Services,190000
South Lakeland District Council,http://opendatacommunities.org/id/district-council/south-lakeland,31/05/2015,Business Support Community Services,Housing Services,http://opendatacommunities.org/def/concept/finance/sercop/objective/108,KENDAL SECURITY CENTRE LTD,3179893,27/05/2015,49765,85,0,"Lock replacement White Moss Court,","Lock replacement for 6 White Moss Court,",Homelessness Prevention,Social Community Care Supplies & Services,410000
South Lakeland District Council,http://opendatacommunities.org/id/district-council/south-lakeland,31/05/2015,Business Support Community Services,Housing Services,http://opendatacommunities.org/def/concept/finance/sercop/objective/108,KENDAL SECURITY CENTRE LTD,3179893,27/05/2015,49766,95,0,"Replacement lock Bleaswood Road,","Replacement lock for 92 Bleaswood Road,",Homelessness Prevention,Social Community Care Supplies & Services,410000
South Lakeland District Council,http://opendatacommunities.org/id/district-council/south-lakeland,31/05/2015,Human Resources,Central Services,http://opendatacommunities.org/def/concept/finance/sercop/objective/102,KENDAL COLLEGE,,27/05/2015,49767,350,0,29.04.15 13:3015:00 E-Forms,29.04.15 13:3015:00 E-Forms,Training Costs,Education,170000
South Lakeland District Council,http://opendatacommunities.org/id/district-council/south-lakeland,31/05/2015,Coronation Hall,External Trading Accounts,,Morson International,,27/05/2015,49770,119.28,0,Ulverston Market Hall cleaner to y/e 31,Ulverston Market Hall cleaner to y/e 31,Contract & Agency staff,Consultancy,150000
South Lakeland District Council,http://opendatacommunities.org/id/district-council/south-lakeland,31/05/2015,Coronation Hall,Cultural Environmental Regulatory & Planning Services,http://opendatacommunities.org/def/concept/finance/sercop/objective/104,ULVERSTON AMATEUR OPERATIC SOCIETY,,27/05/2015,49771,55,0,Stewards for Sax Explosion,Stewards for Jess Gillam Sax Explosion,Contract & Agency staff,Consultancy,150000
South Lakeland District Council,http://opendatacommunities.org/id/district-council/south-lakeland,31/05/2015,Electoral Services,Central Services,http://opendatacommunities.org/def/concept/finance/sercop/objective/102,LAKELAND RADIO LTD,4031744,27/05/2015,49772,21,0,Radio Airtime 30 March 2015 3 spots,Radio Airtime 30 March 2015 3 spots,Individual Electoral Registrat,Mail Services,300000
South Lakeland District Council,http://opendatacommunities.org/id/district-council/south-lakeland,31/05/2015,Electoral Services,Central Services,http://opendatacommunities.org/def/concept/finance/sercop/objective/102,LAKELAND RADIO LTD,4031744,27/05/2015,49773,60,0,Radio Airtime 30 March 2015 3 spots,Radio Airtime 30 March 2015 3 spots,Individual Electoral Registrat,Mail Services,300000
South Lakeland District Council,http://opendatacommunities.org/id/district-council/south-lakeland,31/05/2015,Electoral Services,Central Services,http://opendatacommunities.org/def/concept/finance/sercop/objective/102,LAKELAND RADIO LTD,4031744,27/05/2015,49774,105,0,Radio Airtime 30 March 2015 3 spots,Radio Airtime 30 March 2015 3 spots,Individual Electoral Registrat,Mail Services,300000
South Lakeland District Council,http://opendatacommunities.org/id/district-council/south-lakeland,31/05/2015,Environment and Housing,Housing Services,http://opendatacommunities.org/def/concept/finance/sercop/objective/108,GROWING CONCERNS LANDSCAPING,,27/05/2015,49777,1297.2,0,Payment to Growing Concerns for Handy,Payment to Growing Concerns for Handy,Handyperson,"Works - Construction, Repair & Maintenance",390000
South Lakeland District Council,http://opendatacommunities.org/id/district-council/south-lakeland,31/05/2015,ICT Group,Cultural Environmental Regulatory & Planning Services,http://opendatacommunities.org/def/concept/finance/sercop/objective/104,VODAFONE LIMITED,1471587,27/05/2015,49780,130,0,Mororola Moto G handset to replace,Mororola Moto G handset to replace,Mobile Phones,Utilities,370000
South Lakeland District Council,http://opendatacommunities.org/id/district-council/south-lakeland,31/05/2015,Business Support Community Services,Internal Trading Accounts,,AINSWORTH'S GARAGE,,27/05/2015,49781,46,0,Turn tyres,Turn tyres,Vehicle - Tyres,Vehicle Management,380000
South Lakeland District Council,http://opendatacommunities.org/id/district-council/south-lakeland,31/05/2015,Business Support Community Services,Internal Trading Accounts,,M G D LTD,,27/05/2015,49782,35,0,MOTs 01/04/15 - 31/03/16,MOTs 01/04/15 - 31/03/16,MOT/Servicing Costs,Vehicle Management,380000
South Lakeland District Council,http://opendatacommunities.org/id/district-council/south-lakeland,31/05/2015,Business Support Community Services,Transport Planning Policy,http://opendatacommunities.org/def/concept/finance/sercop/objective/107,ARCO LIMITED,133804,27/05/2015,49783,6.77,0,PPE 2015/16,PPE 2015/16,Cleaning Supplies & Services,Cleaning & Janitorial,130000
South Lakeland District Council,http://opendatacommunities.org/id/district-council/south-lakeland,31/05/2015,Business Support Community Services,Internal Trading Accounts,,ARCO LIMITED,133804,27/05/2015,49783,29.2,0,PPE 2015/16,PPE 2015/16,Job Consumables,Cleaning & Janitorial,130000
South Lakeland District Council,http://opendatacommunities.org/id/district-council/south-lakeland,31/05/2015,Business Support Community Services,Internal Trading Accounts,,ARCO LIMITED,133804,27/05/2015,49783,236.1,0,PPE 2015/16,PPE 2015/16,Protective Clothing & Uniforms,Clothing,140000
South Lakeland District Council,http://opendatacommunities.org/id/district-council/south-lakeland,31/05/2015,Business Support Community Services,Internal Trading Accounts,,ARCO LIMITED,133804,27/05/2015,49783,0,0,PPE 2015/16,PPE 2015/16,Job Consumables,Cleaning & Janitorial,130000
South Lakeland District Council,http://opendatacommunities.org/id/district-council/south-lakeland,31/05/2015,Business Support Community Services,Internal Trading Accounts,,ARCO LIMITED,133804,27/05/2015,49783,0,0,PPE 2015/16,PPE 2015/16,Protective Clothing & Uniforms,Clothing,140000
South Lakeland District Council,http://opendatacommunities.org/id/district-council/south-lakeland,31/05/2015,Business Support Community Services,Internal Trading Accounts,,BERENDSEN UK LTD,228604,27/05/2015,49784,180.38,0,Workwear hire 29/03/15 - 28/03/16,Workwear hire 29/03/15 - 28/03/16,Protective Clothing & Uniforms,Clothing,140000
South Lakeland District Council,http://opendatacommunities.org/id/district-council/south-lakeland,31/05/2015,Business Support Community Services,Internal Trading Accounts,,FAUN ZOELLER (UK) LTD,751804,27/05/2015,49785,461,0,Camera,Camera,Transport-Repair & Maintenance,Vehicle Management,380000
South Lakeland District Council,http://opendatacommunities.org/id/district-council/south-lakeland,31/05/2015,Policy & Partnerships,Cultural Environmental Regulatory & Planning Services,http://opendatacommunities.org/def/concept/finance/sercop/objective/104,GRANTS- MISCELLANEOUS,,27/05/2015,49787,300,0,Woodland trust to put a handrail in,Woodland trust to put a handrail in,Contributions to Organisations,Financial Services,200000
South Lakeland District Council,http://opendatacommunities.org/id/district-council/south-lakeland,31/05/2015,Environment and Housing,Housing,http://opendatacommunities.org/def/concept/finance/sercop/objective/108,DOLPHIN STAIRLIFTS CUMBRIA,,27/05/2015,49788,4608.64,0,"Sedbergh, LA10","The Flat, 63 Main Street, Sedbergh, LA10",Grant Payments,Financial Services,200000
South Lakeland District Council,http://opendatacommunities.org/id/district-council/south-lakeland,31/05/2015,Environment and Housing,Housing,http://opendatacommunities.org/def/concept/finance/sercop/objective/108,DOLPHIN STAIRLIFTS CUMBRIA,,27/05/2015,49789,1525,0,"Kendal, LA9 5LZ","21 Long Close, Kendal, LA9 5LZ",Grant Payments,Financial Services,200000
South Lakeland District Council,http://opendatacommunities.org/id/district-council/south-lakeland,31/05/2015,Environment and Housing,Housing,http://opendatacommunities.org/def/concept/finance/sercop/objective/108,DOLPHIN STAIRLIFTS CUMBRIA,,27/05/2015,49790,1495,0,"Kendal, LA9 6LN","51 Grasmere Crescent, Kendal, LA9 6LN",Grant Payments,Financial Services,200000
South Lakeland District Council,http://opendatacommunities.org/id/district-council/south-lakeland,31/05/2015,Social Enterprise Admin,Cultural Environmental Regulatory & Planning Services,http://opendatacommunities.org/def/concept/finance/sercop/objective/104,ALLSTAR BUSINESS SOLUTIONS LTD (NCR),2631112,01/05/2015,49806,73.32,0,parks fuel,parks fuel,Fuel,Utilities,370000
South Lakeland District Council,http://opendatacommunities.org/id/district-council/south-lakeland,31/05/2015,Financial Services,Central Services,http://opendatacommunities.org/def/concept/finance/sercop/objective/102,CAPITA BUSINESS SERVICES LTD (NCR),,01/05/2015,49826,2476.64,0,Internet transactions April 2015,Internet transactions April 2015,Commission,Financial Services,200000
